{"text_format":"3","workbook":"xlsx","n_sheets":5,"sheets":["ZAČETEK","NAČRTOVANI STROŠKI","DEJANSKI STROŠKI","ODMIKI STROŠKOV","ANALIZA STROŠKOV"],"not_rendered":{"charts":3,"images":3,"defined_names":1},"read":"whole","date_system":"1900"}

{"sheet":"ZAČETEK","index":0,"n_rows":8,"n_cols":2,"rows_kept":8}
[null,"O TEJ PREDLOGI"]
[null,"Uporabite ta delovni zvezek Proračun poslovnih stroškov za sledenje načrtovanim in dejanskim stroškom ter odmikom."]
[null,"Vnesite ime podjetja in dodajte logotip."]
[null,"Vnesite podrobnosti v tabele na delovnem listu z načrtovani stroški in na delovnem listu z dejanski stroški."]
[null,"Samodejno se posodobijo tabele na delovnem listu s podatki o odmiki stroškov in grafikoni na delovnem listu z analiza stroškov"]
[null,"Opomba: "]
[null,"Dodatna navodila so na voljo v stolpcu A na vsakem delovnem listu. To besedilo je bilo skrito namenoma. Če želite besedilo premakniti, izberite stolpec A, nato izberite še IZBRIŠI. Če želite besedilo razkriti, izberite stolpec A, nato zamenjajte barvo pisave."]
[null,"Če želite izvedeti več o tabelah, znotraj tabele pritisnite SHIFT in nato F10, izberite možnost TABELA in nato izberite še NADOMESTNO BESEDILO"]

{"sheet":"NAČRTOVANI STROŠKI","index":1,"n_rows":37,"n_cols":18,"rows_kept":37,"merged":[[1,1,2,3],[1,10,1,12],[1,13,2,14],[2,10,2,12],[3,17,12,19],[8,1,8,2],[19,1,19,2],[28,1,28,2],[33,1,33,2]]}
["V ustrezne tabele na tem delovnem listu vnesite načrtovane stroški za zaposlene, stroški za pisarno, stroške trženje in usposabljanja ali potne stroške. Skupni zneski se izračunajo samodejno. Koristna navodila za uporabo tega delovnega lista najdete v celicah v tem stolpcu. Puščica dol za začetek dela.",{"$nulls":14}," "]
["V celico na desni vnesite ime podjetja, v celico N2 pa logotip. Naslov tega delovnega lista je v celici K2.","Ime podjetja",{"$nulls":8},"Podrobna ocena stroškov",null,null,"Označba mesta za logotip je v tej celici."]
["Namig je v celici K3.",{"$nulls":9},"Osenčene celice so izračuni."]
["Oznaka načrtovani stroški je v celici na desni, meseci so v celicah od C4 do N4, oznaka za leto je v O4 in navodila za uporabo te predloge so v celici R4.","NAČRTOVANI STROŠKI","JAN","FEB","MAR","APR","MAJ","JUN","JUL","AVG","SEPT","OKT","NOV","DEC","LETO",null,null,"Namig: KAKO UPORABLJATI TO PREDLOGO\nVnesite podatke v bele celice na delovnih listih NAČRTOVANI STROŠKI in DEJANSKI STROŠKI. ODMIK STROŠKOV in ANALIZA STROŠKOV bodo samodejno izračunani. Če na en list dodate vrstico, se morajo drugi listi ujemati."]
["Vnesite stroški za zaposlene v tabelo »Načrtovani stroški za zaposlene«. Začnite v celici na desni. Naslednji korak je v celici A10.","Stroški za zaposlene","Jan","Feb","Mar","Apr","Maj","Jun","Jul","Avg","Sep","Okt","Nov","Dec","LETO"]
[null,"Plače",{"v":85000,"d":"85,000.00 €"},{"v":85000,"d":"85,000.00 €"},{"v":85000,"d":"85,000.00 €"},{"v":87500,"d":"87,500.00 €"},{"v":87500,"d":"87,500.00 €"},{"v":87500,"d":"87,500.00 €"},{"v":87500,"d":"87,500.00 €"},{"v":92400,"d":"92,400.00 €"},{"v":92400,"d":"92,400.00 €"},{"v":92400,"d":"92,400.00 €"},{"v":92400,"d":"92,400.00 €"},{"v":92400,"d":"92,400.00 €"},{"$f":"SUM(C6:N6)","v":{"v":1067000,"d":"1,067,000.00 €"}}]
[null,"Dodatki",{"$f":"C6*0.27","v":{"v":22950,"d":"22,950.00 €"}},{"v":22950,"d":"22,950.00 €"},{"v":22950,"d":"22,950.00 €"},{"v":23625,"d":"23,625.00 €"},{"v":23625,"d":"23,625.00 €"},{"v":23625,"d":"23,625.00 €"},{"v":23625,"d":"23,625.00 €"},{"v":24948,"d":"24,948.00 €"},{"v":24948,"d":"24,948.00 €"},{"v":24948,"d":"24,948.00 €"},{"v":24948,"d":"24,948.00 €"},{"v":24948,"d":"24,948.00 €"},{"$f":"SUM(C7:N7)","v":{"v":288090,"d":"288,090.00 €"}}]
[null,"Delna vsota",{"$f":"SUBTOTAL(109,Načrtovani_stroški_za_zaposlene[Jan])","v":{"v":107950,"d":"107,950.00 €"}},{"$f":"SUBTOTAL(109,Načrtovani_stroški_za_zaposlene[Feb])","v":{"v":107950,"d":"107,950.00 €"}},{"$f":"SUBTOTAL(109,Načrtovani_stroški_za_zaposlene[Mar])","v":{"v":107950,"d":"107,950.00 €"}},{"$f":"SUBTOTAL(109,Načrtovani_stroški_za_zaposlene[Apr])","v":{"v":111125,"d":"111,125.00 €"}},{"$f":"SUBTOTAL(109,Načrtovani_stroški_za_zaposlene[Maj])","v":{"v":111125,"d":"111,125.00 €"}},{"$f":"SUBTOTAL(109,Načrtovani_stroški_za_zaposlene[Jun])","v":{"v":111125,"d":"111,125.00 €"}},{"$f":"SUBTOTAL(109,Načrtovani_stroški_za_zaposlene[Jul])","v":{"v":111125,"d":"111,125.00 €"}},{"$f":"SUBTOTAL(109,Načrtovani_stroški_za_zaposlene[Avg])","v":{"v":117348,"d":"117,348.00 €"}},{"$f":"SUBTOTAL(109,Načrtovani_stroški_za_zaposlene[Sep])","v":{"v":117348,"d":"117,348.00 €"}},{"$f":"SUBTOTAL(109,Načrtovani_stroški_za_zaposlene[Okt])","v":{"v":117348,"d":"117,348.00 €"}},{"$f":"SUBTOTAL(109,Načrtovani_stroški_za_zaposlene[Nov])","v":{"v":117348,"d":"117,348.00 €"}},{"$f":"SUBTOTAL(109,Načrtovani_stroški_za_zaposlene[Dec])","v":{"v":117348,"d":"117,348.00 €"}},{"$f":"SUBTOTAL(109,Načrtovani_stroški_za_zaposlene[LETO])","v":{"v":1355090,"d":"1,355,090.00 €"}}]
[]
["Vnesite stroški za pisarno v tabelo »Načrtovani stroški za pisarno«. Začnite v celici na desni. Naslednji korak je v celici A21.","Stroški za pisarno","Jan","Feb","Mar","Apr","Maj","Jun","Jul","Avg","Sep","Okt","Nov","Dec","LETO"]
[null,"Najem pisarne",{"v":9800,"d":"9,800.00 €"},{"v":9800,"d":"9,800.00 €"},{"v":9800,"d":"9,800.00 €"},{"v":9800,"d":"9,800.00 €"},{"v":9800,"d":"9,800.00 €"},{"v":9800,"d":"9,800.00 €"},{"v":9800,"d":"9,800.00 €"},{"v":9800,"d":"9,800.00 €"},{"v":9800,"d":"9,800.00 €"},{"v":9800,"d":"9,800.00 €"},{"v":9800,"d":"9,800.00 €"},{"v":9800,"d":"9,800.00 €"},{"$f":"SUM(C11:N11)","v":{"v":117600,"d":"117,600.00 €"}}]
[null,"Plin",null,{"v":400,"d":"400.00 €"},{"v":400,"d":"400.00 €"},{"v":100,"d":"100.00 €"},{"v":100,"d":"100.00 €"},{"v":100,"d":"100.00 €"},{"v":100,"d":"100.00 €"},{"v":100,"d":"100.00 €"},{"v":100,"d":"100.00 €"},{"v":100,"d":"100.00 €"},{"v":400,"d":"400.00 €"},{"v":400,"d":"400.00 €"},{"v":2300,"d":"2,300.00 €"}]
[null,"Elektrika",{"v":300,"d":"300.00 €"},{"v":300,"d":"300.00 €"},{"v":300,"d":"300.00 €"},{"v":300,"d":"300.00 €"},{"v":300,"d":"300.00 €"},{"v":300,"d":"300.00 €"},{"v":300,"d":"300.00 €"},{"v":300,"d":"300.00 €"},{"v":300,"d":"300.00 €"},{"v":300,"d":"300.00 €"},{"v":300,"d":"300.00 €"},{"v":300,"d":"300.00 €"},{"v":3600,"d":"3,600.00 €"}]
[null,"Voda",{"v":40,"d":"40.00 €"},{"v":40,"d":"40.00 €"},{"v":40,"d":"40.00 €"},{"v":40,"d":"40.00 €"},{"v":40,"d":"40.00 €"},{"v":40,"d":"40.00 €"},{"v":40,"d":"40.00 €"},{"v":40,"d":"40.00 €"},{"v":40,"d":"40.00 €"},{"v":40,"d":"40.00 €"},{"v":40,"d":"40.00 €"},{"v":40,"d":"40.00 €"},{"v":480,"d":"480.00 €"}]
[null,"Telefon",{"v":250,"d":"250.00 €"},{"v":250,"d":"250.00 €"},{"v":250,"d":"250.00 €"},{"v":250,"d":"250.00 €"},{"v":250,"d":"250.00 €"},{"v":250,"d":"250.00 €"},{"v":250,"d":"250.00 €"},{"v":250,"d":"250.00 €"},{"v":250,"d":"250.00 €"},{"v":250,"d":"250.00 €"},{"v":250,"d":"250.00 €"},{"v":250,"d":"250.00 €"},{"v":3000,"d":"3,000.00 €"}]
[null,"Dostop do interneta",{"v":180,"d":"180.00 €"},{"v":180,"d":"180.00 €"},{"v":180,"d":"180.00 €"},{"v":180,"d":"180.00 €"},{"v":180,"d":"180.00 €"},{"v":180,"d":"180.00 €"},{"v":180,"d":"180.00 €"},{"v":180,"d":"180.00 €"},{"v":180,"d":"180.00 €"},{"v":180,"d":"180.00 €"},{"v":180,"d":"180.00 €"},{"v":180,"d":"180.00 €"},{"v":2160,"d":"2,160.00 €"}]
[null,"Pisarniški material",{"v":200,"d":"200.00 €"},{"v":200,"d":"200.00 €"},{"v":200,"d":"200.00 €"},{"v":200,"d":"200.00 €"},{"v":200,"d":"200.00 €"},{"v":200,"d":"200.00 €"},{"v":200,"d":"200.00 €"},{"v":200,"d":"200.00 €"},{"v":200,"d":"200.00 €"},{"v":200,"d":"200.00 €"},{"v":200,"d":"200.00 €"},{"v":200,"d":"200.00 €"},{"v":2400,"d":"2,400.00 €"}]
[null,"Varnost",{"v":600,"d":"600.00 €"},{"v":600,"d":"600.00 €"},{"v":600,"d":"600.00 €"},{"v":600,"d":"600.00 €"},{"v":600,"d":"600.00 €"},{"v":600,"d":"600.00 €"},{"v":600,"d":"600.00 €"},{"v":600,"d":"600.00 €"},{"v":600,"d":"600.00 €"},{"v":600,"d":"600.00 €"},{"v":600,"d":"600.00 €"},{"v":600,"d":"600.00 €"},{"v":7200,"d":"7,200.00 €"}]
[null,"Delna vsota",{"$f":"SUBTOTAL(109,Načrtovani_stroški_za_pisarno[Jan])","v":{"v":11370,"d":"11,370.00 €"}},{"$f":"SUBTOTAL(109,Načrtovani_stroški_za_pisarno[Feb])","v":{"v":11770,"d":"11,770.00 €"}},{"$f":"SUBTOTAL(109,Načrtovani_stroški_za_pisarno[Mar])","v":{"v":11770,"d":"11,770.00 €"}},{"$f":"SUBTOTAL(109,Načrtovani_stroški_za_pisarno[Apr])","v":{"v":11470,"d":"11,470.00 €"}},{"$f":"SUBTOTAL(109,Načrtovani_stroški_za_pisarno[Maj])","v":{"v":11470,"d":"11,470.00 €"}},{"$f":"SUBTOTAL(109,Načrtovani_stroški_za_pisarno[Jun])","v":{"v":11470,"d":"11,470.00 €"}},{"$f":"SUBTOTAL(109,Načrtovani_stroški_za_pisarno[Jul])","v":{"v":11470,"d":"11,470.00 €"}},{"$f":"SUBTOTAL(109,Načrtovani_stroški_za_pisarno[Avg])","v":{"v":11470,"d":"11,470.00 €"}},{"$f":"SUBTOTAL(109,Načrtovani_stroški_za_pisarno[Sep])","v":{"v":11470,"d":"11,470.00 €"}},{"$f":"SUBTOTAL(109,Načrtovani_stroški_za_pisarno[Okt])","v":{"v":11470,"d":"11,470.00 €"}},{"$f":"SUBTOTAL(109,Načrtovani_stroški_za_pisarno[Nov])","v":{"v":11770,"d":"11,770.00 €"}},{"$f":"SUBTOTAL(109,Načrtovani_stroški_za_pisarno[Dec])","v":{"v":11770,"d":"11,770.00 €"}},{"$f":"SUBTOTAL(109,Načrtovani_stroški_za_pisarno[LETO])","v":{"v":138740,"d":"138,740.00 €"}}]
[]
["Vnesite stroške za trženje v tabelo »Načrtovani stroški trženja«. Začnite v celici na desni. Naslednji korak je v celici A30.","Trženje","Jan","Feb","Mar","Apr","Maj","Jun","Jul","Avg","Sep","Okt","Nov","Dec","LETO"]
[null,"Gostovanje spletnega mesta",{"v":500,"d":"500.00 €"},{"v":500,"d":"500.00 €"},{"v":500,"d":"500.00 €"},{"v":500,"d":"500.00 €"},{"v":500,"d":"500.00 €"},{"v":500,"d":"500.00 €"},{"v":500,"d":"500.00 €"},{"v":500,"d":"500.00 €"},{"v":500,"d":"500.00 €"},{"v":500,"d":"500.00 €"},{"v":500,"d":"500.00 €"},{"v":500,"d":"500.00 €"},{"$f":"SUM(C22:N22)","v":{"v":6000,"d":"6,000.00 €"}}]
[null,"Posodobitve spletnega mesta",{"v":200,"d":"200.00 €"},{"v":200,"d":"200.00 €"},{"v":200,"d":"200.00 €"},{"v":200,"d":"200.00 €"},{"v":200,"d":"200.00 €"},{"v":1000,"d":"1,000.00 €"},{"v":200,"d":"200.00 €"},{"v":200,"d":"200.00 €"},{"v":200,"d":"200.00 €"},{"v":200,"d":"200.00 €"},{"v":200,"d":"200.00 €"},{"v":1000,"d":"1,000.00 €"},{"v":4000,"d":"4,000.00 €"}]
[null,"Dodatne priprave",{"v":5000,"d":"5,000.00 €"},{"v":0,"d":"0.00 €"},{"v":0,"d":"0.00 €"},{"v":5000,"d":"5,000.00 €"},{"v":0,"d":"0.00 €"},{"v":0,"d":"0.00 €"},{"v":5000,"d":"5,000.00 €"},{"v":0,"d":"0.00 €"},{"v":0,"d":"0.00 €"},{"v":5000,"d":"5,000.00 €"},{"v":0,"d":"0.00 €"},{"v":0,"d":"0.00 €"},{"v":20000,"d":"20,000.00 €"}]
[null,"Dodatno tiskanje",{"v":200,"d":"200.00 €"},{"v":200,"d":"200.00 €"},{"v":200,"d":"200.00 €"},{"v":200,"d":"200.00 €"},{"v":200,"d":"200.00 €"},{"v":200,"d":"200.00 €"},{"v":200,"d":"200.00 €"},{"v":200,"d":"200.00 €"},{"v":200,"d":"200.00 €"},{"v":200,"d":"200.00 €"},{"v":200,"d":"200.00 €"},{"v":200,"d":"200.00 €"},{"v":2400,"d":"2,400.00 €"}]
[null,"Trženjski dogodki",{"v":2000,"d":"2,000.00 €"},{"v":2000,"d":"2,000.00 €"},{"v":2000,"d":"2,000.00 €"},{"v":5000,"d":"5,000.00 €"},{"v":2000,"d":"2,000.00 €"},{"v":2000,"d":"2,000.00 €"},{"v":2000,"d":"2,000.00 €"},{"v":5000,"d":"5,000.00 €"},{"v":2000,"d":"2,000.00 €"},{"v":2000,"d":"2,000.00 €"},{"v":2000,"d":"2,000.00 €"},{"v":5000,"d":"5,000.00 €"},{"v":33000,"d":"33,000.00 €"}]
[null,"Različni stroški",{"v":200,"d":"200.00 €"},{"v":200,"d":"200.00 €"},{"v":200,"d":"200.00 €"},{"v":200,"d":"200.00 €"},{"v":200,"d":"200.00 €"},{"v":200,"d":"200.00 €"},{"v":200,"d":"200.00 €"},{"v":200,"d":"200.00 €"},{"v":200,"d":"200.00 €"},{"v":200,"d":"200.00 €"},{"v":200,"d":"200.00 €"},{"v":200,"d":"200.00 €"},{"v":2400,"d":"2,400.00 €"}]
[null,"Delna vsota",{"$f":"SUBTOTAL(109,Načrtovani_stroški_trženja[Jan])","v":{"v":8100,"d":"8,100.00 €"}},{"$f":"SUBTOTAL(109,Načrtovani_stroški_trženja[Feb])","v":{"v":3100,"d":"3,100.00 €"}},{"$f":"SUBTOTAL(109,Načrtovani_stroški_trženja[Mar])","v":{"v":3100,"d":"3,100.00 €"}},{"$f":"SUBTOTAL(109,Načrtovani_stroški_trženja[Apr])","v":{"v":11100,"d":"11,100.00 €"}},{"$f":"SUBTOTAL(109,Načrtovani_stroški_trženja[Maj])","v":{"v":3100,"d":"3,100.00 €"}},{"$f":"SUBTOTAL(109,Načrtovani_stroški_trženja[Jun])","v":{"v":3900,"d":"3,900.00 €"}},{"$f":"SUBTOTAL(109,Načrtovani_stroški_trženja[Jul])","v":{"v":8100,"d":"8,100.00 €"}},{"$f":"SUBTOTAL(109,Načrtovani_stroški_trženja[Avg])","v":{"v":6100,"d":"6,100.00 €"}},{"$f":"SUBTOTAL(109,Načrtovani_stroški_trženja[Sep])","v":{"v":3100,"d":"3,100.00 €"}},{"$f":"SUBTOTAL(109,Načrtovani_stroški_trženja[Okt])","v":{"v":8100,"d":"8,100.00 €"}},{"$f":"SUBTOTAL(109,Načrtovani_stroški_trženja[Nov])","v":{"v":3100,"d":"3,100.00 €"}},{"$f":"SUBTOTAL(109,Načrtovani_stroški_trženja[Dec])","v":{"v":6900,"d":"6,900.00 €"}},{"$f":"SUBTOTAL(109,Načrtovani_stroški_trženja[LETO])","v":{"v":67800,"d":"67,800.00 €"}}]
[]
["Vnesite stroške usposabljanja in potne stroške v tabelo »Načrtovani stroški usposabljanja in potni stroški«. Začnite v celici na desni. Naslednji korak je v celici A35.","Usposabljanje/potovanja","Jan","Feb","Mar","Apr","Maj","Jun","Jul","Avg","Sep","Okt","Nov","Dec","LETO"]
[null,"Učne ure",{"v":2000,"d":"2,000.00 €"},{"v":2000,"d":"2,000.00 €"},{"v":2000,"d":"2,000.00 €"},{"v":2000,"d":"2,000.00 €"},{"v":2000,"d":"2,000.00 €"},{"v":2000,"d":"2,000.00 €"},{"v":2000,"d":"2,000.00 €"},{"v":2000,"d":"2,000.00 €"},{"v":2000,"d":"2,000.00 €"},{"v":2000,"d":"2,000.00 €"},{"v":2000,"d":"2,000.00 €"},{"v":2000,"d":"2,000.00 €"},{"$f":"SUM(C31:N31)","v":{"v":24000,"d":"24,000.00 €"}}]
[null,"Potni stroški zaradi usposabljanja",{"v":2000,"d":"2,000.00 €"},{"v":2000,"d":"2,000.00 €"},{"v":2000,"d":"2,000.00 €"},{"v":2000,"d":"2,000.00 €"},{"v":2000,"d":"2,000.00 €"},{"v":2000,"d":"2,000.00 €"},{"v":2000,"d":"2,000.00 €"},{"v":2000,"d":"2,000.00 €"},{"v":2000,"d":"2,000.00 €"},{"v":2000,"d":"2,000.00 €"},{"v":2000,"d":"2,000.00 €"},{"v":2000,"d":"2,000.00 €"},{"$f":"SUM(C32:N32)","v":{"v":24000,"d":"24,000.00 €"}}]
[null,"Delna vsota",{"$f":"SUBTOTAL(109,Načrtovani_stroški_usposabljanja_in_potni_stroški[Jan])","v":{"v":4000,"d":"4,000.00 €"}},{"$f":"SUBTOTAL(109,Načrtovani_stroški_usposabljanja_in_potni_stroški[Feb])","v":{"v":4000,"d":"4,000.00 €"}},{"$f":"SUBTOTAL(109,Načrtovani_stroški_usposabljanja_in_potni_stroški[Mar])","v":{"v":4000,"d":"4,000.00 €"}},{"$f":"SUBTOTAL(109,Načrtovani_stroški_usposabljanja_in_potni_stroški[Apr])","v":{"v":4000,"d":"4,000.00 €"}},{"$f":"SUBTOTAL(109,Načrtovani_stroški_usposabljanja_in_potni_stroški[Maj])","v":{"v":4000,"d":"4,000.00 €"}},{"$f":"SUBTOTAL(109,Načrtovani_stroški_usposabljanja_in_potni_stroški[Jun])","v":{"v":4000,"d":"4,000.00 €"}},{"$f":"SUBTOTAL(109,Načrtovani_stroški_usposabljanja_in_potni_stroški[Jul])","v":{"v":4000,"d":"4,000.00 €"}},{"$f":"SUBTOTAL(109,Načrtovani_stroški_usposabljanja_in_potni_stroški[Avg])","v":{"v":4000,"d":"4,000.00 €"}},{"$f":"SUBTOTAL(109,Načrtovani_stroški_usposabljanja_in_potni_stroški[Sep])","v":{"v":4000,"d":"4,000.00 €"}},{"$f":"SUBTOTAL(109,Načrtovani_stroški_usposabljanja_in_potni_stroški[Okt])","v":{"v":4000,"d":"4,000.00 €"}},{"$f":"SUBTOTAL(109,Načrtovani_stroški_usposabljanja_in_potni_stroški[Nov])","v":{"v":4000,"d":"4,000.00 €"}},{"$f":"SUBTOTAL(109,Načrtovani_stroški_usposabljanja_in_potni_stroški[Dec])","v":{"v":4000,"d":"4,000.00 €"}},{"$f":"SUBTOTAL(109,Načrtovani_stroški_usposabljanja_in_potni_stroški[LETO])","v":{"v":48000,"d":"48,000.00 €"}}]
[]
["Skupni zneski se izračunajo samodejno v tabeli »Skupni znesek načrtovanih stroškov«. Izračun se začne v celici na desni.","SKUPNI ZNESKI","Jan","Feb","Mar","Apr","Maj","Jun","Jul","Avg","Sep","Okt","Nov","Dec","Leto"]
[null,"Mesečni načrtovani stroški",{"$f":"Načrtovani_stroški_usposabljanja_in_potni_stroški[[#Totals],[Jan]]+Načrtovani_stroški_trženja[[#Totals],[Jan]]+Načrtovani_stroški_za_pisarno[[#Totals],[Jan]]+Načrtovani_stroški_za_zaposlene[[#Totals],[Jan]]","v":{"v":131420,"d":"131,420.00 €"}},{"$f":"Načrtovani_stroški_usposabljanja_in_potni_stroški[[#Totals],[Feb]]+Načrtovani_stroški_trženja[[#Totals],[Feb]]+Načrtovani_stroški_za_pisarno[[#Totals],[Feb]]+Načrtovani_stroški_za_zaposlene[[#Totals],[Feb]]","v":{"v":126820,"d":"126,820.00 €"}},{"$f":"Načrtovani_stroški_usposabljanja_in_potni_stroški[[#Totals],[Mar]]+Načrtovani_stroški_trženja[[#Totals],[Mar]]+Načrtovani_stroški_za_pisarno[[#Totals],[Mar]]+Načrtovani_stroški_za_zaposlene[[#Totals],[Mar]]","v":{"v":126820,"d":"126,820.00 €"}},{"$f":"Načrtovani_stroški_usposabljanja_in_potni_stroški[[#Totals],[Apr]]+Načrtovani_stroški_trženja[[#Totals],[Apr]]+Načrtovani_stroški_za_pisarno[[#Totals],[Apr]]+Načrtovani_stroški_za_zaposlene[[#Totals],[Apr]]","v":{"v":137695,"d":"137,695.00 €"}},{"$f":"Načrtovani_stroški_usposabljanja_in_potni_stroški[[#Totals],[Maj]]+Načrtovani_stroški_trženja[[#Totals],[Maj]]+Načrtovani_stroški_za_pisarno[[#Totals],[Maj]]+Načrtovani_stroški_za_zaposlene[[#Totals],[Maj]]","v":{"v":129695,"d":"129,695.00 €"}},{"$f":"Načrtovani_stroški_usposabljanja_in_potni_stroški[[#Totals],[Jun]]+Načrtovani_stroški_trženja[[#Totals],[Jun]]+Načrtovani_stroški_za_pisarno[[#Totals],[Jun]]+Načrtovani_stroški_za_zaposlene[[#Totals],[Jun]]","v":{"v":130495,"d":"130,495.00 €"}},{"$f":"Načrtovani_stroški_usposabljanja_in_potni_stroški[[#Totals],[Jul]]+Načrtovani_stroški_trženja[[#Totals],[Jul]]+Načrtovani_stroški_za_pisarno[[#Totals],[Jul]]+Načrtovani_stroški_za_zaposlene[[#Totals],[Jul]]","v":{"v":134695,"d":"134,695.00 €"}},{"$f":"Načrtovani_stroški_usposabljanja_in_potni_stroški[[#Totals],[Avg]]+Načrtovani_stroški_trženja[[#Totals],[Avg]]+Načrtovani_stroški_za_pisarno[[#Totals],[Avg]]+Načrtovani_stroški_za_zaposlene[[#Totals],[Avg]]","v":{"v":138918,"d":"138,918.00 €"}},{"$f":"Načrtovani_stroški_usposabljanja_in_potni_stroški[[#Totals],[Sep]]+Načrtovani_stroški_trženja[[#Totals],[Sep]]+Načrtovani_stroški_za_pisarno[[#Totals],[Sep]]+Načrtovani_stroški_za_zaposlene[[#Totals],[Sep]]","v":{"v":135918,"d":"135,918.00 €"}},{"$f":"Načrtovani_stroški_usposabljanja_in_potni_stroški[[#Totals],[Okt]]+Načrtovani_stroški_trženja[[#Totals],[Okt]]+Načrtovani_stroški_za_pisarno[[#Totals],[Okt]]+Načrtovani_stroški_za_zaposlene[[#Totals],[Okt]]","v":{"v":140918,"d":"140,918.00 €"}},{"$f":"Načrtovani_stroški_usposabljanja_in_potni_stroški[[#Totals],[Nov]]+Načrtovani_stroški_trženja[[#Totals],[Nov]]+Načrtovani_stroški_za_pisarno[[#Totals],[Nov]]+Načrtovani_stroški_za_zaposlene[[#Totals],[Nov]]","v":{"v":136218,"d":"136,218.00 €"}},{"$f":"Načrtovani_stroški_usposabljanja_in_potni_stroški[[#Totals],[Dec]]+Načrtovani_stroški_trženja[[#Totals],[Dec]]+Načrtovani_stroški_za_pisarno[[#Totals],[Dec]]+Načrtovani_stroški_za_zaposlene[[#Totals],[Dec]]","v":{"v":140018,"d":"140,018.00 €"}},{"$f":"Načrtovani_stroški_usposabljanja_in_potni_stroški[[#Totals],[LETO]]+Načrtovani_stroški_trženja[[#Totals],[LETO]]+Načrtovani_stroški_za_pisarno[[#Totals],[LETO]]+Načrtovani_stroški_za_zaposlene[[#Totals],[LETO]]","v":{"v":1609630,"d":"1,609,630.00 €"}}]
[null,"Skupni znesek načrtovanih stroškov",{"$f":"SUM($C$36:C36)","v":{"v":131420,"d":"131,420.00 €"}},{"$f":"SUM($C$36:D36)","v":{"v":258240,"d":"258,240.00 €"}},{"$f":"SUM($C$36:E36)","v":{"v":385060,"d":"385,060.00 €"}},{"$f":"SUM($C$36:F36)","v":{"v":522755,"d":"522,755.00 €"}},{"$f":"SUM($C$36:G36)","v":{"v":652450,"d":"652,450.00 €"}},{"$f":"SUM($C$36:H36)","v":{"v":782945,"d":"782,945.00 €"}},{"$f":"SUM($C$36:I36)","v":{"v":917640,"d":"917,640.00 €"}},{"$f":"SUM($C$36:J36)","v":{"v":1056558,"d":"1,056,558.00 €"}},{"$f":"SUM($C$36:K36)","v":{"v":1192476,"d":"1,192,476.00 €"}},{"$f":"SUM($C$36:L36)","v":{"v":1333394,"d":"1,333,394.00 €"}},{"$f":"SUM($C$36:M36)","v":{"v":1469612,"d":"1,469,612.00 €"}},{"$f":"SUM($C$36:N36)","v":{"v":1609630,"d":"1,609,630.00 €"}}]

{"sheet":"DEJANSKI STROŠKI","index":2,"n_rows":37,"n_cols":16,"rows_kept":37,"merged":[[1,1,2,3],[1,10,1,12],[1,13,2,14],[2,10,2,12],[8,1,8,2],[19,1,19,2],[28,1,28,2],[33,1,33,2]]}
["V ustrezne tabele na tem delovnem listu vnesite dejanske stroški za zaposlene, stroški za pisarno, stroške trženje in usposabljanja ali potne stroške. Skupni zneski se izračunajo samodejno. Koristna navodila za uporabo tega delovnega lista najdete v celicah v tem stolpcu. Puščica dol za začetek dela.",{"$nulls":14}," "]
["Ime podjetja se samodejno posodobi v celici na desni strani. Naslov tega delovnega lista je v celici K2. Vnesite logotip v celico N2.",{"$f":"'NAČRTOVANI STROŠKI'!B2:D3","v":"Ime podjetja"},{"$nulls":8},{"$f":"naslov_delovnega_lista","v":"Podrobna ocena stroškov"},null,null,"Označba mesta za logotip je v tej celici."]
["Namig je v celici K3.",{"$nulls":9},"Osenčene celice so izračuni."]
["Oznaka dejanski stroški je v celici na desni, mesecev v celicah od C4 do N4 in oznaka leto je v celici O4.","DEJANSKI STROŠKI","JAN","FEB","MAR","APR","MAJ","JUN","JUL","AVG","SEPT","OKT","NOV","DEC","LETO"]
["Vnesite stroški za zaposlene v tabelo »Dejanski stroški za zaposlene«. Začnite v celici na desni. Naslednji korak je v celici A10.","Stroški za zaposlene","Jan","Feb","Mar","Apr","Maj","Jun","Jul","Avg","Sep","Okt","Nov","Dec","LETO"]
[null,"Plače",{"v":85000,"d":"85,000.00 €"},{"v":85000,"d":"85,000.00 €"},{"v":85000,"d":"85,000.00 €"},{"v":88000,"d":"88,000.00 €"},{"v":88000,"d":"88,000.00 €"},{"v":88000,"d":"88,000.00 €"},{"$nulls":6},{"$f":"SUM(C6:N6)","v":{"v":519000,"d":"519,000.00 €"}}]
[null,"Dodatki",{"$f":"C6*0.27","v":{"v":22950,"d":"22,950.00 €"}},{"v":22950,"d":"22,950.00 €"},{"v":22950,"d":"22,950.00 €"},{"v":23760,"d":"23,760.00 €"},{"v":23760,"d":"23,760.00 €"},{"v":23760,"d":"23,760.00 €"},{"v":0,"d":"0.00 €"},{"v":0,"d":"0.00 €"},{"v":0,"d":"0.00 €"},{"v":0,"d":"0.00 €"},{"v":0,"d":"0.00 €"},{"v":0,"d":"0.00 €"},{"$f":"SUM(C7:N7)","v":{"v":140130,"d":"140,130.00 €"}}]
[null,"Delna vsota",{"$f":"SUBTOTAL(109,Dejanski_stroški_za_zaposlene[Jan])","v":{"v":107950,"d":"107,950.00 €"}},{"$f":"SUBTOTAL(109,Dejanski_stroški_za_zaposlene[Feb])","v":{"v":107950,"d":"107,950.00 €"}},{"$f":"SUBTOTAL(109,Dejanski_stroški_za_zaposlene[Mar])","v":{"v":107950,"d":"107,950.00 €"}},{"$f":"SUBTOTAL(109,Dejanski_stroški_za_zaposlene[Apr])","v":{"v":111760,"d":"111,760.00 €"}},{"$f":"SUBTOTAL(109,Dejanski_stroški_za_zaposlene[Maj])","v":{"v":111760,"d":"111,760.00 €"}},{"$f":"SUBTOTAL(109,Dejanski_stroški_za_zaposlene[Jun])","v":{"v":111760,"d":"111,760.00 €"}},{"$f":"SUBTOTAL(109,Dejanski_stroški_za_zaposlene[Jul])","v":{"v":0,"d":"0.00 €"}},{"$f":"SUBTOTAL(109,Dejanski_stroški_za_zaposlene[Avg])","v":{"v":0,"d":"0.00 €"}},{"$f":"SUBTOTAL(109,Dejanski_stroški_za_zaposlene[Sep])","v":{"v":0,"d":"0.00 €"}},{"$f":"SUBTOTAL(109,Dejanski_stroški_za_zaposlene[Okt])","v":{"v":0,"d":"0.00 €"}},{"$f":"SUBTOTAL(109,Dejanski_stroški_za_zaposlene[Nov])","v":{"v":0,"d":"0.00 €"}},{"$f":"SUBTOTAL(109,Dejanski_stroški_za_zaposlene[Dec])","v":{"v":0,"d":"0.00 €"}},{"$f":"SUBTOTAL(109,Dejanski_stroški_za_zaposlene[LETO])","v":{"v":659130,"d":"659,130.00 €"}}]
[]
["Vnesite stroški za pisarno v tabelo »Dejanski stroški za pisarno«. Začnite v celici na desni. Naslednji korak je v celici A21.","Stroški za pisarno","Jan","Feb","Mar","Apr","Maj","Jun","Jul","Avg","Sep","Okt","Nov","Dec","LETO"]
[null,"Najem pisarne",{"v":9800,"d":"9,800.00 €"},{"v":9800,"d":"9,800.00 €"},{"v":9800,"d":"9,800.00 €"},{"v":9800,"d":"9,800.00 €"},{"v":9800,"d":"9,800.00 €"},{"v":9800,"d":"9,800.00 €"},{"$nulls":6},{"$f":"SUM(C11:N11)","v":{"v":58800,"d":"58,800.00 €"}}]
[null,"Plin",{"v":4,"d":"4.00 €"},{"v":430,"d":"430.00 €"},{"v":385,"d":"385.00 €"},{"v":230,"d":"230.00 €"},{"v":87,"d":"87.00 €"},{"v":88,"d":"88.00 €"},{"$nulls":6},{"v":1224,"d":"1,224.00 €"}]
[null,"Elektrika",{"v":288,"d":"288.00 €"},{"v":278,"d":"278.00 €"},{"v":268,"d":"268.00 €"},{"v":299,"d":"299.00 €"},{"v":306,"d":"306.00 €"},{"v":290,"d":"290.00 €"},{"$nulls":6},{"v":1729,"d":"1,729.00 €"}]
[null,"Voda",{"v":35,"d":"35.00 €"},{"v":33,"d":"33.00 €"},{"v":34,"d":"34.00 €"},{"v":36,"d":"36.00 €"},{"v":34,"d":"34.00 €"},{"v":36,"d":"36.00 €"},{"$nulls":6},{"v":208,"d":"208.00 €"}]
[null,"Telefon",{"v":224,"d":"224.00 €"},{"v":235,"d":"235.00 €"},{"v":265,"d":"265.00 €"},{"v":245,"d":"245.00 €"},{"v":245,"d":"245.00 €"},{"v":220,"d":"220.00 €"},{"$nulls":6},{"v":1434,"d":"1,434.00 €"}]
[null,"Dostop do interneta",{"v":180,"d":"180.00 €"},{"v":180,"d":"180.00 €"},{"v":180,"d":"180.00 €"},{"v":180,"d":"180.00 €"},{"v":180,"d":"180.00 €"},{"v":180,"d":"180.00 €"},{"$nulls":6},{"v":1080,"d":"1,080.00 €"}]
[null,"Pisarniški material",{"v":256,"d":"256.00 €"},{"v":142,"d":"142.00 €"},{"v":160,"d":"160.00 €"},{"v":221,"d":"221.00 €"},{"v":256,"d":"256.00 €"},{"v":240,"d":"240.00 €"},{"$nulls":6},{"v":1275,"d":"1,275.00 €"}]
[null,"Varnost",{"v":600,"d":"600.00 €"},{"v":600,"d":"600.00 €"},{"v":600,"d":"600.00 €"},{"v":600,"d":"600.00 €"},{"v":600,"d":"600.00 €"},{"v":600,"d":"600.00 €"},{"$nulls":6},{"v":3600,"d":"3,600.00 €"}]
[null,"Delna vsota",{"$f":"SUBTOTAL(109,Dejanski_stroški_za_pisarno[Jan])","v":{"v":11387,"d":"11,387.00 €"}},{"$f":"SUBTOTAL(109,Dejanski_stroški_za_pisarno[Feb])","v":{"v":11698,"d":"11,698.00 €"}},{"$f":"SUBTOTAL(109,Dejanski_stroški_za_pisarno[Mar])","v":{"v":11692,"d":"11,692.00 €"}},{"$f":"SUBTOTAL(109,Dejanski_stroški_za_pisarno[Apr])","v":{"v":11611,"d":"11,611.00 €"}},{"$f":"SUBTOTAL(109,Dejanski_stroški_za_pisarno[Maj])","v":{"v":11508,"d":"11,508.00 €"}},{"$f":"SUBTOTAL(109,Dejanski_stroški_za_pisarno[Jun])","v":{"v":11454,"d":"11,454.00 €"}},{"$f":"SUBTOTAL(109,Dejanski_stroški_za_pisarno[Jul])","v":{"v":0,"d":"0.00 €"}},{"$f":"SUBTOTAL(109,Dejanski_stroški_za_pisarno[Avg])","v":{"v":0,"d":"0.00 €"}},{"$f":"SUBTOTAL(109,Dejanski_stroški_za_pisarno[Sep])","v":{"v":0,"d":"0.00 €"}},{"$f":"SUBTOTAL(109,Dejanski_stroški_za_pisarno[Okt])","v":{"v":0,"d":"0.00 €"}},{"$f":"SUBTOTAL(109,Dejanski_stroški_za_pisarno[Nov])","v":{"v":0,"d":"0.00 €"}},{"$f":"SUBTOTAL(109,Dejanski_stroški_za_pisarno[Dec])","v":{"v":0,"d":"0.00 €"}},{"$f":"SUBTOTAL(109,Dejanski_stroški_za_pisarno[LETO])","v":{"v":69350,"d":"69,350.00 €"}}]
[]
["Vnesite stroške za trženje v tabelo »Dejanski stroški trženja«. Začnite v celici na desni. Naslednji korak je v celici A30.","Trženje","Jan","Feb","Mar","Apr","Maj","Jun","Jul","Avg","Sep","Okt","Nov","Dec","LETO"]
[null,"Gostovanje spletnega mesta",{"v":500,"d":"500.00 €"},{"v":500,"d":"500.00 €"},{"v":500,"d":"500.00 €"},{"v":500,"d":"500.00 €"},{"v":500,"d":"500.00 €"},{"v":500,"d":"500.00 €"},{"$nulls":6},{"$f":"SUM(C22:N22)","v":{"v":3000,"d":"3,000.00 €"}}]
[null,"Posodobitve spletnega mesta",{"v":200,"d":"200.00 €"},{"v":200,"d":"200.00 €"},{"v":200,"d":"200.00 €"},{"v":200,"d":"200.00 €"},{"v":200,"d":"200.00 €"},{"v":1500,"d":"1,500.00 €"},{"$nulls":6},{"v":2500,"d":"2,500.00 €"}]
[null,"Dodatne priprave",{"v":4800,"d":"4,800.00 €"},{"v":0,"d":"0.00 €"},{"v":0,"d":"0.00 €"},{"v":5500,"d":"5,500.00 €"},{"v":0,"d":"0.00 €"},{"v":0,"d":"0.00 €"},{"$nulls":6},{"v":10300,"d":"10,300.00 €"}]
[null,"Dodatno tiskanje",{"v":100,"d":"100.00 €"},{"v":500,"d":"500.00 €"},{"v":100,"d":"100.00 €"},{"v":100,"d":"100.00 €"},{"v":600,"d":"600.00 €"},{"v":180,"d":"180.00 €"},{"$nulls":6},{"v":1580,"d":"1,580.00 €"}]
[null,"Trženjski dogodki",{"v":1800,"d":"1,800.00 €"},{"v":2200,"d":"2,200.00 €"},{"v":2200,"d":"2,200.00 €"},{"v":4700,"d":"4,700.00 €"},{"v":1500,"d":"1,500.00 €"},{"v":2300,"d":"2,300.00 €"},{"$nulls":6},{"v":14700,"d":"14,700.00 €"}]
[null,"Različni stroški",{"v":145,"d":"145.00 €"},{"v":156,"d":"156.00 €"},{"v":123,"d":"123.00 €"},{"v":223,"d":"223.00 €"},{"v":187,"d":"187.00 €"},{"v":245,"d":"245.00 €"},{"$nulls":6},{"v":1079,"d":"1,079.00 €"}]
[null,"Delna vsota",{"$f":"SUBTOTAL(109,Dejanski_stroški_trženja[Jan])","v":{"v":7545,"d":"7,545.00 €"}},{"$f":"SUBTOTAL(109,Dejanski_stroški_trženja[Feb])","v":{"v":3556,"d":"3,556.00 €"}},{"$f":"SUBTOTAL(109,Dejanski_stroški_trženja[Mar])","v":{"v":3123,"d":"3,123.00 €"}},{"$f":"SUBTOTAL(109,Dejanski_stroški_trženja[Apr])","v":{"v":11223,"d":"11,223.00 €"}},{"$f":"SUBTOTAL(109,Dejanski_stroški_trženja[Maj])","v":{"v":2987,"d":"2,987.00 €"}},{"$f":"SUBTOTAL(109,Dejanski_stroški_trženja[Jun])","v":{"v":4725,"d":"4,725.00 €"}},{"$f":"SUBTOTAL(109,Dejanski_stroški_trženja[Jul])","v":{"v":0,"d":"0.00 €"}},{"$f":"SUBTOTAL(109,Dejanski_stroški_trženja[Avg])","v":{"v":0,"d":"0.00 €"}},{"$f":"SUBTOTAL(109,Dejanski_stroški_trženja[Sep])","v":{"v":0,"d":"0.00 €"}},{"$f":"SUBTOTAL(109,Dejanski_stroški_trženja[Okt])","v":{"v":0,"d":"0.00 €"}},{"$f":"SUBTOTAL(109,Dejanski_stroški_trženja[Nov])","v":{"v":0,"d":"0.00 €"}},{"$f":"SUBTOTAL(109,Dejanski_stroški_trženja[Dec])","v":{"v":0,"d":"0.00 €"}},{"$f":"SUBTOTAL(109,Dejanski_stroški_trženja[LETO])","v":{"v":33159,"d":"33,159.00 €"}}]
[]
["Vnesite stroške usposabljanja in potne stroške v tabelo »Dejanski stroški usposabljanja in potni stroški«. Začnite v celici na desni. Naslednji korak je v celici A35.","Usposabljanje/potovanja","Jan","Feb","Mar","Apr","Maj","Jun","Jul","Avg","Sep","Okt","Nov","Dec","LETO"]
[null,"Učne ure",{"v":1600,"d":"1,600.00 €"},{"v":2400,"d":"2,400.00 €"},{"v":1400,"d":"1,400.00 €"},{"v":1600,"d":"1,600.00 €"},{"v":1200,"d":"1,200.00 €"},{"v":2800,"d":"2,800.00 €"},{"$nulls":6},{"$f":"SUM(C31:N31)","v":{"v":11000,"d":"11,000.00 €"}}]
[null,"Potni stroški zaradi usposabljanja",{"v":1200,"d":"1,200.00 €"},{"v":2200,"d":"2,200.00 €"},{"v":1400,"d":"1,400.00 €"},{"v":1200,"d":"1,200.00 €"},{"v":800,"d":"800.00 €"},{"v":3500,"d":"3,500.00 €"},{"$nulls":6},{"$f":"SUM(C32:N32)","v":{"v":10300,"d":"10,300.00 €"}}]
[null,"Delna vsota",{"$f":"SUBTOTAL(109,Dejanski_stroški_usposabljanja_in_potni_stroški[Jan])","v":{"v":2800,"d":"2,800.00 €"}},{"$f":"SUBTOTAL(109,Dejanski_stroški_usposabljanja_in_potni_stroški[Feb])","v":{"v":4600,"d":"4,600.00 €"}},{"$f":"SUBTOTAL(109,Dejanski_stroški_usposabljanja_in_potni_stroški[Mar])","v":{"v":2800,"d":"2,800.00 €"}},{"$f":"SUBTOTAL(109,Dejanski_stroški_usposabljanja_in_potni_stroški[Apr])","v":{"v":2800,"d":"2,800.00 €"}},{"$f":"SUBTOTAL(109,Dejanski_stroški_usposabljanja_in_potni_stroški[Maj])","v":{"v":2000,"d":"2,000.00 €"}},{"$f":"SUBTOTAL(109,Dejanski_stroški_usposabljanja_in_potni_stroški[Jun])","v":{"v":6300,"d":"6,300.00 €"}},{"$f":"SUBTOTAL(109,Dejanski_stroški_usposabljanja_in_potni_stroški[Jul])","v":{"v":0,"d":"0.00 €"}},{"$f":"SUBTOTAL(109,Dejanski_stroški_usposabljanja_in_potni_stroški[Avg])","v":{"v":0,"d":"0.00 €"}},{"$f":"SUBTOTAL(109,Dejanski_stroški_usposabljanja_in_potni_stroški[Sep])","v":{"v":0,"d":"0.00 €"}},{"$f":"SUBTOTAL(109,Dejanski_stroški_usposabljanja_in_potni_stroški[Okt])","v":{"v":0,"d":"0.00 €"}},{"$f":"SUBTOTAL(109,Dejanski_stroški_usposabljanja_in_potni_stroški[Nov])","v":{"v":0,"d":"0.00 €"}},{"$f":"SUBTOTAL(109,Dejanski_stroški_usposabljanja_in_potni_stroški[Dec])","v":{"v":0,"d":"0.00 €"}},{"$f":"SUBTOTAL(109,Dejanski_stroški_usposabljanja_in_potni_stroški[LETO])","v":{"v":21300,"d":"21,300.00 €"}}]
[]
["Skupni zneski dejanskih stroškov se samodejno izračunajo v tabeli »Skupni znesek dejanskih stroškov«. Izračun se začne v celici na desni.","Skupni znesek načrtovanih stroškov","Jan","Feb","Mar","Apr","Maj","Jun","Jul","Avg","Sep","Okt","Nov","Dec","Leto"]
[null,"Mesečni dejanski stroški",{"$f":"Dejanski_stroški_usposabljanja_in_potni_stroški[[#Totals],[Jan]]+Dejanski_stroški_trženja[[#Totals],[Jan]]+Dejanski_stroški_za_pisarno[[#Totals],[Jan]]+Dejanski_stroški_za_zaposlene[[#Totals],[Jan]]","v":{"v":129682,"d":"129,682.00 €"}},{"$f":"Dejanski_stroški_usposabljanja_in_potni_stroški[[#Totals],[Feb]]+Dejanski_stroški_trženja[[#Totals],[Feb]]+Dejanski_stroški_za_pisarno[[#Totals],[Feb]]+Dejanski_stroški_za_zaposlene[[#Totals],[Feb]]","v":{"v":127804,"d":"127,804.00 €"}},{"$f":"Dejanski_stroški_usposabljanja_in_potni_stroški[[#Totals],[Mar]]+Dejanski_stroški_trženja[[#Totals],[Mar]]+Dejanski_stroški_za_pisarno[[#Totals],[Mar]]+Dejanski_stroški_za_zaposlene[[#Totals],[Mar]]","v":{"v":125565,"d":"125,565.00 €"}},{"$f":"Dejanski_stroški_usposabljanja_in_potni_stroški[[#Totals],[Apr]]+Dejanski_stroški_trženja[[#Totals],[Apr]]+Dejanski_stroški_za_pisarno[[#Totals],[Apr]]+Dejanski_stroški_za_zaposlene[[#Totals],[Apr]]","v":{"v":137394,"d":"137,394.00 €"}},{"$f":"Dejanski_stroški_usposabljanja_in_potni_stroški[[#Totals],[Maj]]+Dejanski_stroški_trženja[[#Totals],[Maj]]+Dejanski_stroški_za_pisarno[[#Totals],[Maj]]+Dejanski_stroški_za_zaposlene[[#Totals],[Maj]]","v":{"v":128255,"d":"128,255.00 €"}},{"$f":"Dejanski_stroški_usposabljanja_in_potni_stroški[[#Totals],[Jun]]+Dejanski_stroški_trženja[[#Totals],[Jun]]+Dejanski_stroški_za_pisarno[[#Totals],[Jun]]+Dejanski_stroški_za_zaposlene[[#Totals],[Jun]]","v":{"v":134239,"d":"134,239.00 €"}},{"$f":"Dejanski_stroški_usposabljanja_in_potni_stroški[[#Totals],[Jul]]+Dejanski_stroški_trženja[[#Totals],[Jul]]+Dejanski_stroški_za_pisarno[[#Totals],[Jul]]+Dejanski_stroški_za_zaposlene[[#Totals],[Jul]]","v":{"v":0,"d":"0.00 €"}},{"$f":"Dejanski_stroški_usposabljanja_in_potni_stroški[[#Totals],[Avg]]+Dejanski_stroški_trženja[[#Totals],[Avg]]+Dejanski_stroški_za_pisarno[[#Totals],[Avg]]+Dejanski_stroški_za_zaposlene[[#Totals],[Avg]]","v":{"v":0,"d":"0.00 €"}},{"$f":"Dejanski_stroški_usposabljanja_in_potni_stroški[[#Totals],[Sep]]+Dejanski_stroški_trženja[[#Totals],[Sep]]+Dejanski_stroški_za_pisarno[[#Totals],[Sep]]+Dejanski_stroški_za_zaposlene[[#Totals],[Sep]]","v":{"v":0,"d":"0.00 €"}},{"$f":"Dejanski_stroški_usposabljanja_in_potni_stroški[[#Totals],[Okt]]+Dejanski_stroški_trženja[[#Totals],[Okt]]+Dejanski_stroški_za_pisarno[[#Totals],[Okt]]+Dejanski_stroški_za_zaposlene[[#Totals],[Okt]]","v":{"v":0,"d":"0.00 €"}},{"$f":"Dejanski_stroški_usposabljanja_in_potni_stroški[[#Totals],[Nov]]+Dejanski_stroški_trženja[[#Totals],[Nov]]+Dejanski_stroški_za_pisarno[[#Totals],[Nov]]+Dejanski_stroški_za_zaposlene[[#Totals],[Nov]]","v":{"v":0,"d":"0.00 €"}},{"$f":"Dejanski_stroški_usposabljanja_in_potni_stroški[[#Totals],[Dec]]+Dejanski_stroški_trženja[[#Totals],[Dec]]+Dejanski_stroški_za_pisarno[[#Totals],[Dec]]+Dejanski_stroški_za_zaposlene[[#Totals],[Dec]]","v":{"v":0,"d":"0.00 €"}},{"$f":"Dejanski_stroški_usposabljanja_in_potni_stroški[[#Totals],[LETO]]+Dejanski_stroški_trženja[[#Totals],[LETO]]+Dejanski_stroški_za_pisarno[[#Totals],[LETO]]+Dejanski_stroški_za_zaposlene[[#Totals],[LETO]]","v":{"v":782939,"d":"782,939.00 €"}}]
[null,"SKUPNI dejanski stroški",{"$f":"SUM($C$36:C36)","v":{"v":129682,"d":"129,682.00 €"}},{"$f":"SUM($C$36:D36)","v":{"v":257486,"d":"257,486.00 €"}},{"$f":"SUM($C$36:E36)","v":{"v":383051,"d":"383,051.00 €"}},{"$f":"SUM($C$36:F36)","v":{"v":520445,"d":"520,445.00 €"}},{"$f":"SUM($C$36:G36)","v":{"v":648700,"d":"648,700.00 €"}},{"$f":"SUM($C$36:H36)","v":{"v":782939,"d":"782,939.00 €"}},{"$f":"SUM($C$36:I36)","v":{"v":782939,"d":"782,939.00 €"}},{"$f":"SUM($C$36:J36)","v":{"v":782939,"d":"782,939.00 €"}},{"$f":"SUM($C$36:K36)","v":{"v":782939,"d":"782,939.00 €"}},{"$f":"SUM($C$36:L36)","v":{"v":782939,"d":"782,939.00 €"}},{"$f":"SUM($C$36:M36)","v":{"v":782939,"d":"782,939.00 €"}},{"$f":"SUM($C$36:N36)","v":{"v":782939,"d":"782,939.00 €"}}]

{"sheet":"ODMIKI STROŠKOV","index":3,"n_rows":37,"n_cols":16,"rows_kept":37,"merged":[[1,1,2,3],[1,10,1,12],[1,13,2,14],[2,10,2,12],[8,1,8,2],[19,1,19,2],[28,1,28,2],[33,1,33,2]]}
["Odmiki stroškov se samodejno izračunajo na tem delovnem listu za stroški za zaposlene, stroški za  pisarno, trženje in usposabljanja ali potne stroške, in sicer v ustreznih tabelah na tem delovnem listu. Koristna navodila za uporabo tega delovnega lista najdete v celicah v tem stolpcu. Puščica dol za začetek dela.",{"$nulls":14}," "]
["Ime podjetja se samodejno posodobi v celici na desni strani. Naslov tega delovnega lista je v celici K2. Vnesite logotip v celico N2.",{"$f":"'NAČRTOVANI STROŠKI'!B2:D3","v":"Ime podjetja"},{"$nulls":8},{"$f":"naslov_delovnega_lista","v":"Podrobna ocena stroškov"},null,null,"Označba mesta za logotip je v tej celici."]
["Namig je v celici K3.",{"$nulls":9},"Osenčene celice so izračuni."]
["Oznaka odmiki stroškov je v celici na desni, mesecev v celicah od C4 do N4 in oznaka leto je v celici O4.","ODMIKI STROŠKOV","JAN","FEB","MAR","APR","MAJ","JUN","JUL","AVG","SEPT","OKT","NOV","DEC","LETO"]
["Odmik stroški za zaposlene se samodejno izračuna v tabeli »Odmiki stroškov za zaposlene«. Izračun se začne v celici na desni. Naslednji korak je v celici A10.","Stroški za zaposlene","Jan","Feb","Mar","Apr","Maj","Jun","Jul","Avg","Sep","Okt","Nov","Dec","LETO"]
[null,"Plače",{"$f":"INDEX(Načrtovani_stroški_za_zaposlene[],MATCH(INDEX(Odmiki_stroškov_za_zaposlene[],ROW()-ROW(Odmiki_stroškov_za_zaposlene[[#Headers],[Jan]]),1),INDEX(Načrtovani_stroški_za_zaposlene[],,1),0),MATCH(Odmiki_stroškov_za_zaposlene[[#Headers],[Jan]],Načrtovani_stroški_za_zaposlene[#Headers],0))-INDEX(Dejanski_stroški_za_zaposlene[],MATCH(INDEX(Odmiki_stroškov_za_zaposlene[],ROW()-ROW(Odmiki_stroškov_za_zaposlene[[#Headers],[Jan]]),1),INDEX(Načrtovani_stroški_za_zaposlene[],,1),0),MATCH(Odmiki_stroškov_za_zaposlene[[#Headers],[Jan]],Dejanski_stroški_za_zaposlene[#Headers],0))","v":{"v":0,"d":"0.00 €"}},{"$f":"INDEX(Načrtovani_stroški_za_zaposlene[],MATCH(INDEX(Odmiki_stroškov_za_zaposlene[],ROW()-ROW(Odmiki_stroškov_za_zaposlene[[#Headers],[Feb]]),1),INDEX(Načrtovani_stroški_za_zaposlene[],,1),0),MATCH(Odmiki_stroškov_za_zaposlene[[#Headers],[Feb]],Načrtovani_stroški_za_zaposlene[#Headers],0))-INDEX(Dejanski_stroški_za_zaposlene[],MATCH(INDEX(Odmiki_stroškov_za_zaposlene[],ROW()-ROW(Odmiki_stroškov_za_zaposlene[[#Headers],[Feb]]),1),INDEX(Načrtovani_stroški_za_zaposlene[],,1),0),MATCH(Odmiki_stroškov_za_zaposlene[[#Headers],[Feb]],Dejanski_stroški_za_zaposlene[#Headers],0))","v":{"v":0,"d":"0.00 €"}},{"$f":"INDEX(Načrtovani_stroški_za_zaposlene[],MATCH(INDEX(Odmiki_stroškov_za_zaposlene[],ROW()-ROW(Odmiki_stroškov_za_zaposlene[[#Headers],[Mar]]),1),INDEX(Načrtovani_stroški_za_zaposlene[],,1),0),MATCH(Odmiki_stroškov_za_zaposlene[[#Headers],[Mar]],Načrtovani_stroški_za_zaposlene[#Headers],0))-INDEX(Dejanski_stroški_za_zaposlene[],MATCH(INDEX(Odmiki_stroškov_za_zaposlene[],ROW()-ROW(Odmiki_stroškov_za_zaposlene[[#Headers],[Mar]]),1),INDEX(Načrtovani_stroški_za_zaposlene[],,1),0),MATCH(Odmiki_stroškov_za_zaposlene[[#Headers],[Mar]],Dejanski_stroški_za_zaposlene[#Headers],0))","v":{"v":0,"d":"0.00 €"}},{"$f":"INDEX(Načrtovani_stroški_za_zaposlene[],MATCH(INDEX(Odmiki_stroškov_za_zaposlene[],ROW()-ROW(Odmiki_stroškov_za_zaposlene[[#Headers],[Apr]]),1),INDEX(Načrtovani_stroški_za_zaposlene[],,1),0),MATCH(Odmiki_stroškov_za_zaposlene[[#Headers],[Apr]],Načrtovani_stroški_za_zaposlene[#Headers],0))-INDEX(Dejanski_stroški_za_zaposlene[],MATCH(INDEX(Odmiki_stroškov_za_zaposlene[],ROW()-ROW(Odmiki_stroškov_za_zaposlene[[#Headers],[Apr]]),1),INDEX(Načrtovani_stroški_za_zaposlene[],,1),0),MATCH(Odmiki_stroškov_za_zaposlene[[#Headers],[Apr]],Dejanski_stroški_za_zaposlene[#Headers],0))","v":{"v":-500,"d":"-500.00 €"}},{"$f":"INDEX(Načrtovani_stroški_za_zaposlene[],MATCH(INDEX(Odmiki_stroškov_za_zaposlene[],ROW()-ROW(Odmiki_stroškov_za_zaposlene[[#Headers],[Maj]]),1),INDEX(Načrtovani_stroški_za_zaposlene[],,1),0),MATCH(Odmiki_stroškov_za_zaposlene[[#Headers],[Maj]],Načrtovani_stroški_za_zaposlene[#Headers],0))-INDEX(Dejanski_stroški_za_zaposlene[],MATCH(INDEX(Odmiki_stroškov_za_zaposlene[],ROW()-ROW(Odmiki_stroškov_za_zaposlene[[#Headers],[Maj]]),1),INDEX(Načrtovani_stroški_za_zaposlene[],,1),0),MATCH(Odmiki_stroškov_za_zaposlene[[#Headers],[Maj]],Dejanski_stroški_za_zaposlene[#Headers],0))","v":{"v":-500,"d":"-500.00 €"}},{"$f":"INDEX(Načrtovani_stroški_za_zaposlene[],MATCH(INDEX(Odmiki_stroškov_za_zaposlene[],ROW()-ROW(Odmiki_stroškov_za_zaposlene[[#Headers],[Jun]]),1),INDEX(Načrtovani_stroški_za_zaposlene[],,1),0),MATCH(Odmiki_stroškov_za_zaposlene[[#Headers],[Jun]],Načrtovani_stroški_za_zaposlene[#Headers],0))-INDEX(Dejanski_stroški_za_zaposlene[],MATCH(INDEX(Odmiki_stroškov_za_zaposlene[],ROW()-ROW(Odmiki_stroškov_za_zaposlene[[#Headers],[Jun]]),1),INDEX(Načrtovani_stroški_za_zaposlene[],,1),0),MATCH(Odmiki_stroškov_za_zaposlene[[#Headers],[Jun]],Dejanski_stroški_za_zaposlene[#Headers],0))","v":{"v":-500,"d":"-500.00 €"}},{"$f":"INDEX(Načrtovani_stroški_za_zaposlene[],MATCH(INDEX(Odmiki_stroškov_za_zaposlene[],ROW()-ROW(Odmiki_stroškov_za_zaposlene[[#Headers],[Jul]]),1),INDEX(Načrtovani_stroški_za_zaposlene[],,1),0),MATCH(Odmiki_stroškov_za_zaposlene[[#Headers],[Jul]],Načrtovani_stroški_za_zaposlene[#Headers],0))-INDEX(Dejanski_stroški_za_zaposlene[],MATCH(INDEX(Odmiki_stroškov_za_zaposlene[],ROW()-ROW(Odmiki_stroškov_za_zaposlene[[#Headers],[Jul]]),1),INDEX(Načrtovani_stroški_za_zaposlene[],,1),0),MATCH(Odmiki_stroškov_za_zaposlene[[#Headers],[Jul]],Dejanski_stroški_za_zaposlene[#Headers],0))","v":{"v":87500,"d":"87,500.00 €"}},{"$f":"INDEX(Načrtovani_stroški_za_zaposlene[],MATCH(INDEX(Odmiki_stroškov_za_zaposlene[],ROW()-ROW(Odmiki_stroškov_za_zaposlene[[#Headers],[Avg]]),1),INDEX(Načrtovani_stroški_za_zaposlene[],,1),0),MATCH(Odmiki_stroškov_za_zaposlene[[#Headers],[Avg]],Načrtovani_stroški_za_zaposlene[#Headers],0))-INDEX(Dejanski_stroški_za_zaposlene[],MATCH(INDEX(Odmiki_stroškov_za_zaposlene[],ROW()-ROW(Odmiki_stroškov_za_zaposlene[[#Headers],[Avg]]),1),INDEX(Načrtovani_stroški_za_zaposlene[],,1),0),MATCH(Odmiki_stroškov_za_zaposlene[[#Headers],[Avg]],Dejanski_stroški_za_zaposlene[#Headers],0))","v":{"v":92400,"d":"92,400.00 €"}},{"$f":"INDEX(Načrtovani_stroški_za_zaposlene[],MATCH(INDEX(Odmiki_stroškov_za_zaposlene[],ROW()-ROW(Odmiki_stroškov_za_zaposlene[[#Headers],[Sep]]),1),INDEX(Načrtovani_stroški_za_zaposlene[],,1),0),MATCH(Odmiki_stroškov_za_zaposlene[[#Headers],[Sep]],Načrtovani_stroški_za_zaposlene[#Headers],0))-INDEX(Dejanski_stroški_za_zaposlene[],MATCH(INDEX(Odmiki_stroškov_za_zaposlene[],ROW()-ROW(Odmiki_stroškov_za_zaposlene[[#Headers],[Sep]]),1),INDEX(Načrtovani_stroški_za_zaposlene[],,1),0),MATCH(Odmiki_stroškov_za_zaposlene[[#Headers],[Sep]],Dejanski_stroški_za_zaposlene[#Headers],0))","v":{"v":92400,"d":"92,400.00 €"}},{"$f":"INDEX(Načrtovani_stroški_za_zaposlene[],MATCH(INDEX(Odmiki_stroškov_za_zaposlene[],ROW()-ROW(Odmiki_stroškov_za_zaposlene[[#Headers],[Okt]]),1),INDEX(Načrtovani_stroški_za_zaposlene[],,1),0),MATCH(Odmiki_stroškov_za_zaposlene[[#Headers],[Okt]],Načrtovani_stroški_za_zaposlene[#Headers],0))-INDEX(Dejanski_stroški_za_zaposlene[],MATCH(INDEX(Odmiki_stroškov_za_zaposlene[],ROW()-ROW(Odmiki_stroškov_za_zaposlene[[#Headers],[Okt]]),1),INDEX(Načrtovani_stroški_za_zaposlene[],,1),0),MATCH(Odmiki_stroškov_za_zaposlene[[#Headers],[Okt]],Dejanski_stroški_za_zaposlene[#Headers],0))","v":{"v":92400,"d":"92,400.00 €"}},{"$f":"INDEX(Načrtovani_stroški_za_zaposlene[],MATCH(INDEX(Odmiki_stroškov_za_zaposlene[],ROW()-ROW(Odmiki_stroškov_za_zaposlene[[#Headers],[Nov]]),1),INDEX(Načrtovani_stroški_za_zaposlene[],,1),0),MATCH(Odmiki_stroškov_za_zaposlene[[#Headers],[Nov]],Načrtovani_stroški_za_zaposlene[#Headers],0))-INDEX(Dejanski_stroški_za_zaposlene[],MATCH(INDEX(Odmiki_stroškov_za_zaposlene[],ROW()-ROW(Odmiki_stroškov_za_zaposlene[[#Headers],[Nov]]),1),INDEX(Načrtovani_stroški_za_zaposlene[],,1),0),MATCH(Odmiki_stroškov_za_zaposlene[[#Headers],[Nov]],Dejanski_stroški_za_zaposlene[#Headers],0))","v":{"v":92400,"d":"92,400.00 €"}},{"$f":"INDEX(Načrtovani_stroški_za_zaposlene[],MATCH(INDEX(Odmiki_stroškov_za_zaposlene[],ROW()-ROW(Odmiki_stroškov_za_zaposlene[[#Headers],[Dec]]),1),INDEX(Načrtovani_stroški_za_zaposlene[],,1),0),MATCH(Odmiki_stroškov_za_zaposlene[[#Headers],[Dec]],Načrtovani_stroški_za_zaposlene[#Headers],0))-INDEX(Dejanski_stroški_za_zaposlene[],MATCH(INDEX(Odmiki_stroškov_za_zaposlene[],ROW()-ROW(Odmiki_stroškov_za_zaposlene[[#Headers],[Dec]]),1),INDEX(Načrtovani_stroški_za_zaposlene[],,1),0),MATCH(Odmiki_stroškov_za_zaposlene[[#Headers],[Dec]],Dejanski_stroški_za_zaposlene[#Headers],0))","v":{"v":92400,"d":"92,400.00 €"}},{"$f":"SUM(Odmiki_stroškov_za_zaposlene[[#This Row],[Jan]:[Dec]])","v":{"v":548000,"d":"548,000.00 €"}}]
[null,"Dodatki",{"$f":"INDEX(Načrtovani_stroški_za_zaposlene[],MATCH(INDEX(Odmiki_stroškov_za_zaposlene[],ROW()-ROW(Odmiki_stroškov_za_zaposlene[[#Headers],[Jan]]),1),INDEX(Načrtovani_stroški_za_zaposlene[],,1),0),MATCH(Odmiki_stroškov_za_zaposlene[[#Headers],[Jan]],Načrtovani_stroški_za_zaposlene[#Headers],0))-INDEX(Dejanski_stroški_za_zaposlene[],MATCH(INDEX(Odmiki_stroškov_za_zaposlene[],ROW()-ROW(Odmiki_stroškov_za_zaposlene[[#Headers],[Jan]]),1),INDEX(Načrtovani_stroški_za_zaposlene[],,1),0),MATCH(Odmiki_stroškov_za_zaposlene[[#Headers],[Jan]],Dejanski_stroški_za_zaposlene[#Headers],0))","v":{"v":0,"d":"0.00 €"}},{"$f":"INDEX(Načrtovani_stroški_za_zaposlene[],MATCH(INDEX(Odmiki_stroškov_za_zaposlene[],ROW()-ROW(Odmiki_stroškov_za_zaposlene[[#Headers],[Feb]]),1),INDEX(Načrtovani_stroški_za_zaposlene[],,1),0),MATCH(Odmiki_stroškov_za_zaposlene[[#Headers],[Feb]],Načrtovani_stroški_za_zaposlene[#Headers],0))-INDEX(Dejanski_stroški_za_zaposlene[],MATCH(INDEX(Odmiki_stroškov_za_zaposlene[],ROW()-ROW(Odmiki_stroškov_za_zaposlene[[#Headers],[Feb]]),1),INDEX(Načrtovani_stroški_za_zaposlene[],,1),0),MATCH(Odmiki_stroškov_za_zaposlene[[#Headers],[Feb]],Dejanski_stroški_za_zaposlene[#Headers],0))","v":{"v":0,"d":"0.00 €"}},{"$f":"INDEX(Načrtovani_stroški_za_zaposlene[],MATCH(INDEX(Odmiki_stroškov_za_zaposlene[],ROW()-ROW(Odmiki_stroškov_za_zaposlene[[#Headers],[Mar]]),1),INDEX(Načrtovani_stroški_za_zaposlene[],,1),0),MATCH(Odmiki_stroškov_za_zaposlene[[#Headers],[Mar]],Načrtovani_stroški_za_zaposlene[#Headers],0))-INDEX(Dejanski_stroški_za_zaposlene[],MATCH(INDEX(Odmiki_stroškov_za_zaposlene[],ROW()-ROW(Odmiki_stroškov_za_zaposlene[[#Headers],[Mar]]),1),INDEX(Načrtovani_stroški_za_zaposlene[],,1),0),MATCH(Odmiki_stroškov_za_zaposlene[[#Headers],[Mar]],Dejanski_stroški_za_zaposlene[#Headers],0))","v":{"v":0,"d":"0.00 €"}},{"$f":"INDEX(Načrtovani_stroški_za_zaposlene[],MATCH(INDEX(Odmiki_stroškov_za_zaposlene[],ROW()-ROW(Odmiki_stroškov_za_zaposlene[[#Headers],[Apr]]),1),INDEX(Načrtovani_stroški_za_zaposlene[],,1),0),MATCH(Odmiki_stroškov_za_zaposlene[[#Headers],[Apr]],Načrtovani_stroški_za_zaposlene[#Headers],0))-INDEX(Dejanski_stroški_za_zaposlene[],MATCH(INDEX(Odmiki_stroškov_za_zaposlene[],ROW()-ROW(Odmiki_stroškov_za_zaposlene[[#Headers],[Apr]]),1),INDEX(Načrtovani_stroški_za_zaposlene[],,1),0),MATCH(Odmiki_stroškov_za_zaposlene[[#Headers],[Apr]],Dejanski_stroški_za_zaposlene[#Headers],0))","v":{"v":-135,"d":"-135.00 €"}},{"$f":"INDEX(Načrtovani_stroški_za_zaposlene[],MATCH(INDEX(Odmiki_stroškov_za_zaposlene[],ROW()-ROW(Odmiki_stroškov_za_zaposlene[[#Headers],[Maj]]),1),INDEX(Načrtovani_stroški_za_zaposlene[],,1),0),MATCH(Odmiki_stroškov_za_zaposlene[[#Headers],[Maj]],Načrtovani_stroški_za_zaposlene[#Headers],0))-INDEX(Dejanski_stroški_za_zaposlene[],MATCH(INDEX(Odmiki_stroškov_za_zaposlene[],ROW()-ROW(Odmiki_stroškov_za_zaposlene[[#Headers],[Maj]]),1),INDEX(Načrtovani_stroški_za_zaposlene[],,1),0),MATCH(Odmiki_stroškov_za_zaposlene[[#Headers],[Maj]],Dejanski_stroški_za_zaposlene[#Headers],0))","v":{"v":-135,"d":"-135.00 €"}},{"$f":"INDEX(Načrtovani_stroški_za_zaposlene[],MATCH(INDEX(Odmiki_stroškov_za_zaposlene[],ROW()-ROW(Odmiki_stroškov_za_zaposlene[[#Headers],[Jun]]),1),INDEX(Načrtovani_stroški_za_zaposlene[],,1),0),MATCH(Odmiki_stroškov_za_zaposlene[[#Headers],[Jun]],Načrtovani_stroški_za_zaposlene[#Headers],0))-INDEX(Dejanski_stroški_za_zaposlene[],MATCH(INDEX(Odmiki_stroškov_za_zaposlene[],ROW()-ROW(Odmiki_stroškov_za_zaposlene[[#Headers],[Jun]]),1),INDEX(Načrtovani_stroški_za_zaposlene[],,1),0),MATCH(Odmiki_stroškov_za_zaposlene[[#Headers],[Jun]],Dejanski_stroški_za_zaposlene[#Headers],0))","v":{"v":-135,"d":"-135.00 €"}},{"$f":"INDEX(Načrtovani_stroški_za_zaposlene[],MATCH(INDEX(Odmiki_stroškov_za_zaposlene[],ROW()-ROW(Odmiki_stroškov_za_zaposlene[[#Headers],[Jul]]),1),INDEX(Načrtovani_stroški_za_zaposlene[],,1),0),MATCH(Odmiki_stroškov_za_zaposlene[[#Headers],[Jul]],Načrtovani_stroški_za_zaposlene[#Headers],0))-INDEX(Dejanski_stroški_za_zaposlene[],MATCH(INDEX(Odmiki_stroškov_za_zaposlene[],ROW()-ROW(Odmiki_stroškov_za_zaposlene[[#Headers],[Jul]]),1),INDEX(Načrtovani_stroški_za_zaposlene[],,1),0),MATCH(Odmiki_stroškov_za_zaposlene[[#Headers],[Jul]],Dejanski_stroški_za_zaposlene[#Headers],0))","v":{"v":23625,"d":"23,625.00 €"}},{"$f":"INDEX(Načrtovani_stroški_za_zaposlene[],MATCH(INDEX(Odmiki_stroškov_za_zaposlene[],ROW()-ROW(Odmiki_stroškov_za_zaposlene[[#Headers],[Avg]]),1),INDEX(Načrtovani_stroški_za_zaposlene[],,1),0),MATCH(Odmiki_stroškov_za_zaposlene[[#Headers],[Avg]],Načrtovani_stroški_za_zaposlene[#Headers],0))-INDEX(Dejanski_stroški_za_zaposlene[],MATCH(INDEX(Odmiki_stroškov_za_zaposlene[],ROW()-ROW(Odmiki_stroškov_za_zaposlene[[#Headers],[Avg]]),1),INDEX(Načrtovani_stroški_za_zaposlene[],,1),0),MATCH(Odmiki_stroškov_za_zaposlene[[#Headers],[Avg]],Dejanski_stroški_za_zaposlene[#Headers],0))","v":{"v":24948,"d":"24,948.00 €"}},{"$f":"INDEX(Načrtovani_stroški_za_zaposlene[],MATCH(INDEX(Odmiki_stroškov_za_zaposlene[],ROW()-ROW(Odmiki_stroškov_za_zaposlene[[#Headers],[Sep]]),1),INDEX(Načrtovani_stroški_za_zaposlene[],,1),0),MATCH(Odmiki_stroškov_za_zaposlene[[#Headers],[Sep]],Načrtovani_stroški_za_zaposlene[#Headers],0))-INDEX(Dejanski_stroški_za_zaposlene[],MATCH(INDEX(Odmiki_stroškov_za_zaposlene[],ROW()-ROW(Odmiki_stroškov_za_zaposlene[[#Headers],[Sep]]),1),INDEX(Načrtovani_stroški_za_zaposlene[],,1),0),MATCH(Odmiki_stroškov_za_zaposlene[[#Headers],[Sep]],Dejanski_stroški_za_zaposlene[#Headers],0))","v":{"v":24948,"d":"24,948.00 €"}},{"$f":"INDEX(Načrtovani_stroški_za_zaposlene[],MATCH(INDEX(Odmiki_stroškov_za_zaposlene[],ROW()-ROW(Odmiki_stroškov_za_zaposlene[[#Headers],[Okt]]),1),INDEX(Načrtovani_stroški_za_zaposlene[],,1),0),MATCH(Odmiki_stroškov_za_zaposlene[[#Headers],[Okt]],Načrtovani_stroški_za_zaposlene[#Headers],0))-INDEX(Dejanski_stroški_za_zaposlene[],MATCH(INDEX(Odmiki_stroškov_za_zaposlene[],ROW()-ROW(Odmiki_stroškov_za_zaposlene[[#Headers],[Okt]]),1),INDEX(Načrtovani_stroški_za_zaposlene[],,1),0),MATCH(Odmiki_stroškov_za_zaposlene[[#Headers],[Okt]],Dejanski_stroški_za_zaposlene[#Headers],0))","v":{"v":24948,"d":"24,948.00 €"}},{"$f":"INDEX(Načrtovani_stroški_za_zaposlene[],MATCH(INDEX(Odmiki_stroškov_za_zaposlene[],ROW()-ROW(Odmiki_stroškov_za_zaposlene[[#Headers],[Nov]]),1),INDEX(Načrtovani_stroški_za_zaposlene[],,1),0),MATCH(Odmiki_stroškov_za_zaposlene[[#Headers],[Nov]],Načrtovani_stroški_za_zaposlene[#Headers],0))-INDEX(Dejanski_stroški_za_zaposlene[],MATCH(INDEX(Odmiki_stroškov_za_zaposlene[],ROW()-ROW(Odmiki_stroškov_za_zaposlene[[#Headers],[Nov]]),1),INDEX(Načrtovani_stroški_za_zaposlene[],,1),0),MATCH(Odmiki_stroškov_za_zaposlene[[#Headers],[Nov]],Dejanski_stroški_za_zaposlene[#Headers],0))","v":{"v":24948,"d":"24,948.00 €"}},{"$f":"INDEX(Načrtovani_stroški_za_zaposlene[],MATCH(INDEX(Odmiki_stroškov_za_zaposlene[],ROW()-ROW(Odmiki_stroškov_za_zaposlene[[#Headers],[Dec]]),1),INDEX(Načrtovani_stroški_za_zaposlene[],,1),0),MATCH(Odmiki_stroškov_za_zaposlene[[#Headers],[Dec]],Načrtovani_stroški_za_zaposlene[#Headers],0))-INDEX(Dejanski_stroški_za_zaposlene[],MATCH(INDEX(Odmiki_stroškov_za_zaposlene[],ROW()-ROW(Odmiki_stroškov_za_zaposlene[[#Headers],[Dec]]),1),INDEX(Načrtovani_stroški_za_zaposlene[],,1),0),MATCH(Odmiki_stroškov_za_zaposlene[[#Headers],[Dec]],Dejanski_stroški_za_zaposlene[#Headers],0))","v":{"v":24948,"d":"24,948.00 €"}},{"$f":"SUM(Odmiki_stroškov_za_zaposlene[[#This Row],[Jan]:[Dec]])","v":{"v":147960,"d":"147,960.00 €"}}]
[null,"Delna vsota",{"$f":"SUBTOTAL(109,Odmiki_stroškov_za_zaposlene[Jan])","v":{"v":0,"d":"0.00 €"}},{"$f":"SUBTOTAL(109,Odmiki_stroškov_za_zaposlene[Feb])","v":{"v":0,"d":"0.00 €"}},{"$f":"SUBTOTAL(109,Odmiki_stroškov_za_zaposlene[Mar])","v":{"v":0,"d":"0.00 €"}},{"$f":"SUBTOTAL(109,Odmiki_stroškov_za_zaposlene[Apr])","v":{"v":-635,"d":"-635.00 €"}},{"$f":"SUBTOTAL(109,Odmiki_stroškov_za_zaposlene[Maj])","v":{"v":-635,"d":"-635.00 €"}},{"$f":"SUBTOTAL(109,Odmiki_stroškov_za_zaposlene[Jun])","v":{"v":-635,"d":"-635.00 €"}},{"$f":"SUBTOTAL(109,Odmiki_stroškov_za_zaposlene[Jul])","v":{"v":111125,"d":"111,125.00 €"}},{"$f":"SUBTOTAL(109,Odmiki_stroškov_za_zaposlene[Avg])","v":{"v":117348,"d":"117,348.00 €"}},{"$f":"SUBTOTAL(109,Odmiki_stroškov_za_zaposlene[Sep])","v":{"v":117348,"d":"117,348.00 €"}},{"$f":"SUBTOTAL(109,Odmiki_stroškov_za_zaposlene[Okt])","v":{"v":117348,"d":"117,348.00 €"}},{"$f":"SUBTOTAL(109,Odmiki_stroškov_za_zaposlene[Nov])","v":{"v":117348,"d":"117,348.00 €"}},{"$f":"SUBTOTAL(109,Odmiki_stroškov_za_zaposlene[Dec])","v":{"v":117348,"d":"117,348.00 €"}},{"$f":"SUBTOTAL(109,Odmiki_stroškov_za_zaposlene[LETO])","v":{"v":695960,"d":"695,960.00 €"}}]
[]
["Odmik stroški za pisarno se samodejno izračuna v tabeli »Odmiki stroškov za pisarno«. Izračun se začne v celici na desni. Naslednji korak je v celici A21.","Stroški za pisarno","Jan","Feb","Mar","Apr","Maj","Jun","Jul","Avg","Sep","Okt","Nov","Dec","LETO"]
[null,"Najem pisarne",{"$f":"INDEX(Načrtovani_stroški_za_pisarno[],MATCH(INDEX(Odmiki_stroškov_za_pisarno[],ROW()-ROW(Odmiki_stroškov_za_pisarno[[#Headers],[Jan]]),1),INDEX(Načrtovani_stroški_za_pisarno[],,1),0),MATCH(Odmiki_stroškov_za_pisarno[[#Headers],[Jan]],Načrtovani_stroški_za_pisarno[#Headers],0))-INDEX(Dejanski_stroški_za_pisarno[],MATCH(INDEX(Odmiki_stroškov_za_pisarno[],ROW()-ROW(Odmiki_stroškov_za_pisarno[[#Headers],[Jan]]),1),INDEX(Načrtovani_stroški_za_pisarno[],,1),0),MATCH(Odmiki_stroškov_za_pisarno[[#Headers],[Jan]],Dejanski_stroški_za_pisarno[#Headers],0))","v":{"v":0,"d":"0.00 €"}},{"$f":"INDEX(Načrtovani_stroški_za_pisarno[],MATCH(INDEX(Odmiki_stroškov_za_pisarno[],ROW()-ROW(Odmiki_stroškov_za_pisarno[[#Headers],[Feb]]),1),INDEX(Načrtovani_stroški_za_pisarno[],,1),0),MATCH(Odmiki_stroškov_za_pisarno[[#Headers],[Feb]],Načrtovani_stroški_za_pisarno[#Headers],0))-INDEX(Dejanski_stroški_za_pisarno[],MATCH(INDEX(Odmiki_stroškov_za_pisarno[],ROW()-ROW(Odmiki_stroškov_za_pisarno[[#Headers],[Feb]]),1),INDEX(Načrtovani_stroški_za_pisarno[],,1),0),MATCH(Odmiki_stroškov_za_pisarno[[#Headers],[Feb]],Dejanski_stroški_za_pisarno[#Headers],0))","v":{"v":0,"d":"0.00 €"}},{"$f":"INDEX(Načrtovani_stroški_za_pisarno[],MATCH(INDEX(Odmiki_stroškov_za_pisarno[],ROW()-ROW(Odmiki_stroškov_za_pisarno[[#Headers],[Mar]]),1),INDEX(Načrtovani_stroški_za_pisarno[],,1),0),MATCH(Odmiki_stroškov_za_pisarno[[#Headers],[Mar]],Načrtovani_stroški_za_pisarno[#Headers],0))-INDEX(Dejanski_stroški_za_pisarno[],MATCH(INDEX(Odmiki_stroškov_za_pisarno[],ROW()-ROW(Odmiki_stroškov_za_pisarno[[#Headers],[Mar]]),1),INDEX(Načrtovani_stroški_za_pisarno[],,1),0),MATCH(Odmiki_stroškov_za_pisarno[[#Headers],[Mar]],Dejanski_stroški_za_pisarno[#Headers],0))","v":{"v":0,"d":"0.00 €"}},{"$f":"INDEX(Načrtovani_stroški_za_pisarno[],MATCH(INDEX(Odmiki_stroškov_za_pisarno[],ROW()-ROW(Odmiki_stroškov_za_pisarno[[#Headers],[Apr]]),1),INDEX(Načrtovani_stroški_za_pisarno[],,1),0),MATCH(Odmiki_stroškov_za_pisarno[[#Headers],[Apr]],Načrtovani_stroški_za_pisarno[#Headers],0))-INDEX(Dejanski_stroški_za_pisarno[],MATCH(INDEX(Odmiki_stroškov_za_pisarno[],ROW()-ROW(Odmiki_stroškov_za_pisarno[[#Headers],[Apr]]),1),INDEX(Načrtovani_stroški_za_pisarno[],,1),0),MATCH(Odmiki_stroškov_za_pisarno[[#Headers],[Apr]],Dejanski_stroški_za_pisarno[#Headers],0))","v":{"v":0,"d":"0.00 €"}},{"$f":"INDEX(Načrtovani_stroški_za_pisarno[],MATCH(INDEX(Odmiki_stroškov_za_pisarno[],ROW()-ROW(Odmiki_stroškov_za_pisarno[[#Headers],[Maj]]),1),INDEX(Načrtovani_stroški_za_pisarno[],,1),0),MATCH(Odmiki_stroškov_za_pisarno[[#Headers],[Maj]],Načrtovani_stroški_za_pisarno[#Headers],0))-INDEX(Dejanski_stroški_za_pisarno[],MATCH(INDEX(Odmiki_stroškov_za_pisarno[],ROW()-ROW(Odmiki_stroškov_za_pisarno[[#Headers],[Maj]]),1),INDEX(Načrtovani_stroški_za_pisarno[],,1),0),MATCH(Odmiki_stroškov_za_pisarno[[#Headers],[Maj]],Dejanski_stroški_za_pisarno[#Headers],0))","v":{"v":0,"d":"0.00 €"}},{"$f":"INDEX(Načrtovani_stroški_za_pisarno[],MATCH(INDEX(Odmiki_stroškov_za_pisarno[],ROW()-ROW(Odmiki_stroškov_za_pisarno[[#Headers],[Jun]]),1),INDEX(Načrtovani_stroški_za_pisarno[],,1),0),MATCH(Odmiki_stroškov_za_pisarno[[#Headers],[Jun]],Načrtovani_stroški_za_pisarno[#Headers],0))-INDEX(Dejanski_stroški_za_pisarno[],MATCH(INDEX(Odmiki_stroškov_za_pisarno[],ROW()-ROW(Odmiki_stroškov_za_pisarno[[#Headers],[Jun]]),1),INDEX(Načrtovani_stroški_za_pisarno[],,1),0),MATCH(Odmiki_stroškov_za_pisarno[[#Headers],[Jun]],Dejanski_stroški_za_pisarno[#Headers],0))","v":{"v":0,"d":"0.00 €"}},{"$f":"INDEX(Načrtovani_stroški_za_pisarno[],MATCH(INDEX(Odmiki_stroškov_za_pisarno[],ROW()-ROW(Odmiki_stroškov_za_pisarno[[#Headers],[Jul]]),1),INDEX(Načrtovani_stroški_za_pisarno[],,1),0),MATCH(Odmiki_stroškov_za_pisarno[[#Headers],[Jul]],Načrtovani_stroški_za_pisarno[#Headers],0))-INDEX(Dejanski_stroški_za_pisarno[],MATCH(INDEX(Odmiki_stroškov_za_pisarno[],ROW()-ROW(Odmiki_stroškov_za_pisarno[[#Headers],[Jul]]),1),INDEX(Načrtovani_stroški_za_pisarno[],,1),0),MATCH(Odmiki_stroškov_za_pisarno[[#Headers],[Jul]],Dejanski_stroški_za_pisarno[#Headers],0))","v":{"v":9800,"d":"9,800.00 €"}},{"$f":"INDEX(Načrtovani_stroški_za_pisarno[],MATCH(INDEX(Odmiki_stroškov_za_pisarno[],ROW()-ROW(Odmiki_stroškov_za_pisarno[[#Headers],[Avg]]),1),INDEX(Načrtovani_stroški_za_pisarno[],,1),0),MATCH(Odmiki_stroškov_za_pisarno[[#Headers],[Avg]],Načrtovani_stroški_za_pisarno[#Headers],0))-INDEX(Dejanski_stroški_za_pisarno[],MATCH(INDEX(Odmiki_stroškov_za_pisarno[],ROW()-ROW(Odmiki_stroškov_za_pisarno[[#Headers],[Avg]]),1),INDEX(Načrtovani_stroški_za_pisarno[],,1),0),MATCH(Odmiki_stroškov_za_pisarno[[#Headers],[Avg]],Dejanski_stroški_za_pisarno[#Headers],0))","v":{"v":9800,"d":"9,800.00 €"}},{"$f":"INDEX(Načrtovani_stroški_za_pisarno[],MATCH(INDEX(Odmiki_stroškov_za_pisarno[],ROW()-ROW(Odmiki_stroškov_za_pisarno[[#Headers],[Sep]]),1),INDEX(Načrtovani_stroški_za_pisarno[],,1),0),MATCH(Odmiki_stroškov_za_pisarno[[#Headers],[Sep]],Načrtovani_stroški_za_pisarno[#Headers],0))-INDEX(Dejanski_stroški_za_pisarno[],MATCH(INDEX(Odmiki_stroškov_za_pisarno[],ROW()-ROW(Odmiki_stroškov_za_pisarno[[#Headers],[Sep]]),1),INDEX(Načrtovani_stroški_za_pisarno[],,1),0),MATCH(Odmiki_stroškov_za_pisarno[[#Headers],[Sep]],Dejanski_stroški_za_pisarno[#Headers],0))","v":{"v":9800,"d":"9,800.00 €"}},{"$f":"INDEX(Načrtovani_stroški_za_pisarno[],MATCH(INDEX(Odmiki_stroškov_za_pisarno[],ROW()-ROW(Odmiki_stroškov_za_pisarno[[#Headers],[Okt]]),1),INDEX(Načrtovani_stroški_za_pisarno[],,1),0),MATCH(Odmiki_stroškov_za_pisarno[[#Headers],[Okt]],Načrtovani_stroški_za_pisarno[#Headers],0))-INDEX(Dejanski_stroški_za_pisarno[],MATCH(INDEX(Odmiki_stroškov_za_pisarno[],ROW()-ROW(Odmiki_stroškov_za_pisarno[[#Headers],[Okt]]),1),INDEX(Načrtovani_stroški_za_pisarno[],,1),0),MATCH(Odmiki_stroškov_za_pisarno[[#Headers],[Okt]],Dejanski_stroški_za_pisarno[#Headers],0))","v":{"v":9800,"d":"9,800.00 €"}},{"$f":"INDEX(Načrtovani_stroški_za_pisarno[],MATCH(INDEX(Odmiki_stroškov_za_pisarno[],ROW()-ROW(Odmiki_stroškov_za_pisarno[[#Headers],[Nov]]),1),INDEX(Načrtovani_stroški_za_pisarno[],,1),0),MATCH(Odmiki_stroškov_za_pisarno[[#Headers],[Nov]],Načrtovani_stroški_za_pisarno[#Headers],0))-INDEX(Dejanski_stroški_za_pisarno[],MATCH(INDEX(Odmiki_stroškov_za_pisarno[],ROW()-ROW(Odmiki_stroškov_za_pisarno[[#Headers],[Nov]]),1),INDEX(Načrtovani_stroški_za_pisarno[],,1),0),MATCH(Odmiki_stroškov_za_pisarno[[#Headers],[Nov]],Dejanski_stroški_za_pisarno[#Headers],0))","v":{"v":9800,"d":"9,800.00 €"}},{"$f":"INDEX(Načrtovani_stroški_za_pisarno[],MATCH(INDEX(Odmiki_stroškov_za_pisarno[],ROW()-ROW(Odmiki_stroškov_za_pisarno[[#Headers],[Dec]]),1),INDEX(Načrtovani_stroški_za_pisarno[],,1),0),MATCH(Odmiki_stroškov_za_pisarno[[#Headers],[Dec]],Načrtovani_stroški_za_pisarno[#Headers],0))-INDEX(Dejanski_stroški_za_pisarno[],MATCH(INDEX(Odmiki_stroškov_za_pisarno[],ROW()-ROW(Odmiki_stroškov_za_pisarno[[#Headers],[Dec]]),1),INDEX(Načrtovani_stroški_za_pisarno[],,1),0),MATCH(Odmiki_stroškov_za_pisarno[[#Headers],[Dec]],Dejanski_stroški_za_pisarno[#Headers],0))","v":{"v":9800,"d":"9,800.00 €"}},{"$f":"SUM(Odmiki_stroškov_za_pisarno[[#This Row],[Jan]:[Dec]])","v":{"v":58800,"d":"58,800.00 €"}}]
[null,"Plin",{"$f":"INDEX(Načrtovani_stroški_za_pisarno[],MATCH(INDEX(Odmiki_stroškov_za_pisarno[],ROW()-ROW(Odmiki_stroškov_za_pisarno[[#Headers],[Jan]]),1),INDEX(Načrtovani_stroški_za_pisarno[],,1),0),MATCH(Odmiki_stroškov_za_pisarno[[#Headers],[Jan]],Načrtovani_stroški_za_pisarno[#Headers],0))-INDEX(Dejanski_stroški_za_pisarno[],MATCH(INDEX(Odmiki_stroškov_za_pisarno[],ROW()-ROW(Odmiki_stroškov_za_pisarno[[#Headers],[Jan]]),1),INDEX(Načrtovani_stroški_za_pisarno[],,1),0),MATCH(Odmiki_stroškov_za_pisarno[[#Headers],[Jan]],Dejanski_stroški_za_pisarno[#Headers],0))","v":{"v":-4,"d":"-4.00 €"}},{"$f":"INDEX(Načrtovani_stroški_za_pisarno[],MATCH(INDEX(Odmiki_stroškov_za_pisarno[],ROW()-ROW(Odmiki_stroškov_za_pisarno[[#Headers],[Feb]]),1),INDEX(Načrtovani_stroški_za_pisarno[],,1),0),MATCH(Odmiki_stroškov_za_pisarno[[#Headers],[Feb]],Načrtovani_stroški_za_pisarno[#Headers],0))-INDEX(Dejanski_stroški_za_pisarno[],MATCH(INDEX(Odmiki_stroškov_za_pisarno[],ROW()-ROW(Odmiki_stroškov_za_pisarno[[#Headers],[Feb]]),1),INDEX(Načrtovani_stroški_za_pisarno[],,1),0),MATCH(Odmiki_stroškov_za_pisarno[[#Headers],[Feb]],Dejanski_stroški_za_pisarno[#Headers],0))","v":{"v":-30,"d":"-30.00 €"}},{"$f":"INDEX(Načrtovani_stroški_za_pisarno[],MATCH(INDEX(Odmiki_stroškov_za_pisarno[],ROW()-ROW(Odmiki_stroškov_za_pisarno[[#Headers],[Mar]]),1),INDEX(Načrtovani_stroški_za_pisarno[],,1),0),MATCH(Odmiki_stroškov_za_pisarno[[#Headers],[Mar]],Načrtovani_stroški_za_pisarno[#Headers],0))-INDEX(Dejanski_stroški_za_pisarno[],MATCH(INDEX(Odmiki_stroškov_za_pisarno[],ROW()-ROW(Odmiki_stroškov_za_pisarno[[#Headers],[Mar]]),1),INDEX(Načrtovani_stroški_za_pisarno[],,1),0),MATCH(Odmiki_stroškov_za_pisarno[[#Headers],[Mar]],Dejanski_stroški_za_pisarno[#Headers],0))","v":{"v":15,"d":"15.00 €"}},{"$f":"INDEX(Načrtovani_stroški_za_pisarno[],MATCH(INDEX(Odmiki_stroškov_za_pisarno[],ROW()-ROW(Odmiki_stroškov_za_pisarno[[#Headers],[Apr]]),1),INDEX(Načrtovani_stroški_za_pisarno[],,1),0),MATCH(Odmiki_stroškov_za_pisarno[[#Headers],[Apr]],Načrtovani_stroški_za_pisarno[#Headers],0))-INDEX(Dejanski_stroški_za_pisarno[],MATCH(INDEX(Odmiki_stroškov_za_pisarno[],ROW()-ROW(Odmiki_stroškov_za_pisarno[[#Headers],[Apr]]),1),INDEX(Načrtovani_stroški_za_pisarno[],,1),0),MATCH(Odmiki_stroškov_za_pisarno[[#Headers],[Apr]],Dejanski_stroški_za_pisarno[#Headers],0))","v":{"v":-130,"d":"-130.00 €"}},{"$f":"INDEX(Načrtovani_stroški_za_pisarno[],MATCH(INDEX(Odmiki_stroškov_za_pisarno[],ROW()-ROW(Odmiki_stroškov_za_pisarno[[#Headers],[Maj]]),1),INDEX(Načrtovani_stroški_za_pisarno[],,1),0),MATCH(Odmiki_stroškov_za_pisarno[[#Headers],[Maj]],Načrtovani_stroški_za_pisarno[#Headers],0))-INDEX(Dejanski_stroški_za_pisarno[],MATCH(INDEX(Odmiki_stroškov_za_pisarno[],ROW()-ROW(Odmiki_stroškov_za_pisarno[[#Headers],[Maj]]),1),INDEX(Načrtovani_stroški_za_pisarno[],,1),0),MATCH(Odmiki_stroškov_za_pisarno[[#Headers],[Maj]],Dejanski_stroški_za_pisarno[#Headers],0))","v":{"v":13,"d":"13.00 €"}},{"$f":"INDEX(Načrtovani_stroški_za_pisarno[],MATCH(INDEX(Odmiki_stroškov_za_pisarno[],ROW()-ROW(Odmiki_stroškov_za_pisarno[[#Headers],[Jun]]),1),INDEX(Načrtovani_stroški_za_pisarno[],,1),0),MATCH(Odmiki_stroškov_za_pisarno[[#Headers],[Jun]],Načrtovani_stroški_za_pisarno[#Headers],0))-INDEX(Dejanski_stroški_za_pisarno[],MATCH(INDEX(Odmiki_stroškov_za_pisarno[],ROW()-ROW(Odmiki_stroškov_za_pisarno[[#Headers],[Jun]]),1),INDEX(Načrtovani_stroški_za_pisarno[],,1),0),MATCH(Odmiki_stroškov_za_pisarno[[#Headers],[Jun]],Dejanski_stroški_za_pisarno[#Headers],0))","v":{"v":12,"d":"12.00 €"}},{"$f":"INDEX(Načrtovani_stroški_za_pisarno[],MATCH(INDEX(Odmiki_stroškov_za_pisarno[],ROW()-ROW(Odmiki_stroškov_za_pisarno[[#Headers],[Jul]]),1),INDEX(Načrtovani_stroški_za_pisarno[],,1),0),MATCH(Odmiki_stroškov_za_pisarno[[#Headers],[Jul]],Načrtovani_stroški_za_pisarno[#Headers],0))-INDEX(Dejanski_stroški_za_pisarno[],MATCH(INDEX(Odmiki_stroškov_za_pisarno[],ROW()-ROW(Odmiki_stroškov_za_pisarno[[#Headers],[Jul]]),1),INDEX(Načrtovani_stroški_za_pisarno[],,1),0),MATCH(Odmiki_stroškov_za_pisarno[[#Headers],[Jul]],Dejanski_stroški_za_pisarno[#Headers],0))","v":{"v":100,"d":"100.00 €"}},{"$f":"INDEX(Načrtovani_stroški_za_pisarno[],MATCH(INDEX(Odmiki_stroškov_za_pisarno[],ROW()-ROW(Odmiki_stroškov_za_pisarno[[#Headers],[Avg]]),1),INDEX(Načrtovani_stroški_za_pisarno[],,1),0),MATCH(Odmiki_stroškov_za_pisarno[[#Headers],[Avg]],Načrtovani_stroški_za_pisarno[#Headers],0))-INDEX(Dejanski_stroški_za_pisarno[],MATCH(INDEX(Odmiki_stroškov_za_pisarno[],ROW()-ROW(Odmiki_stroškov_za_pisarno[[#Headers],[Avg]]),1),INDEX(Načrtovani_stroški_za_pisarno[],,1),0),MATCH(Odmiki_stroškov_za_pisarno[[#Headers],[Avg]],Dejanski_stroški_za_pisarno[#Headers],0))","v":{"v":100,"d":"100.00 €"}},{"$f":"INDEX(Načrtovani_stroški_za_pisarno[],MATCH(INDEX(Odmiki_stroškov_za_pisarno[],ROW()-ROW(Odmiki_stroškov_za_pisarno[[#Headers],[Sep]]),1),INDEX(Načrtovani_stroški_za_pisarno[],,1),0),MATCH(Odmiki_stroškov_za_pisarno[[#Headers],[Sep]],Načrtovani_stroški_za_pisarno[#Headers],0))-INDEX(Dejanski_stroški_za_pisarno[],MATCH(INDEX(Odmiki_stroškov_za_pisarno[],ROW()-ROW(Odmiki_stroškov_za_pisarno[[#Headers],[Sep]]),1),INDEX(Načrtovani_stroški_za_pisarno[],,1),0),MATCH(Odmiki_stroškov_za_pisarno[[#Headers],[Sep]],Dejanski_stroški_za_pisarno[#Headers],0))","v":{"v":100,"d":"100.00 €"}},{"$f":"INDEX(Načrtovani_stroški_za_pisarno[],MATCH(INDEX(Odmiki_stroškov_za_pisarno[],ROW()-ROW(Odmiki_stroškov_za_pisarno[[#Headers],[Okt]]),1),INDEX(Načrtovani_stroški_za_pisarno[],,1),0),MATCH(Odmiki_stroškov_za_pisarno[[#Headers],[Okt]],Načrtovani_stroški_za_pisarno[#Headers],0))-INDEX(Dejanski_stroški_za_pisarno[],MATCH(INDEX(Odmiki_stroškov_za_pisarno[],ROW()-ROW(Odmiki_stroškov_za_pisarno[[#Headers],[Okt]]),1),INDEX(Načrtovani_stroški_za_pisarno[],,1),0),MATCH(Odmiki_stroškov_za_pisarno[[#Headers],[Okt]],Dejanski_stroški_za_pisarno[#Headers],0))","v":{"v":100,"d":"100.00 €"}},{"$f":"INDEX(Načrtovani_stroški_za_pisarno[],MATCH(INDEX(Odmiki_stroškov_za_pisarno[],ROW()-ROW(Odmiki_stroškov_za_pisarno[[#Headers],[Nov]]),1),INDEX(Načrtovani_stroški_za_pisarno[],,1),0),MATCH(Odmiki_stroškov_za_pisarno[[#Headers],[Nov]],Načrtovani_stroški_za_pisarno[#Headers],0))-INDEX(Dejanski_stroški_za_pisarno[],MATCH(INDEX(Odmiki_stroškov_za_pisarno[],ROW()-ROW(Odmiki_stroškov_za_pisarno[[#Headers],[Nov]]),1),INDEX(Načrtovani_stroški_za_pisarno[],,1),0),MATCH(Odmiki_stroškov_za_pisarno[[#Headers],[Nov]],Dejanski_stroški_za_pisarno[#Headers],0))","v":{"v":400,"d":"400.00 €"}},{"$f":"INDEX(Načrtovani_stroški_za_pisarno[],MATCH(INDEX(Odmiki_stroškov_za_pisarno[],ROW()-ROW(Odmiki_stroškov_za_pisarno[[#Headers],[Dec]]),1),INDEX(Načrtovani_stroški_za_pisarno[],,1),0),MATCH(Odmiki_stroškov_za_pisarno[[#Headers],[Dec]],Načrtovani_stroški_za_pisarno[#Headers],0))-INDEX(Dejanski_stroški_za_pisarno[],MATCH(INDEX(Odmiki_stroškov_za_pisarno[],ROW()-ROW(Odmiki_stroškov_za_pisarno[[#Headers],[Dec]]),1),INDEX(Načrtovani_stroški_za_pisarno[],,1),0),MATCH(Odmiki_stroškov_za_pisarno[[#Headers],[Dec]],Dejanski_stroški_za_pisarno[#Headers],0))","v":{"v":400,"d":"400.00 €"}},{"$f":"SUM(Odmiki_stroškov_za_pisarno[[#This Row],[Jan]:[Dec]])","v":{"v":1076,"d":"1,076.00 €"}}]
[null,"Elektrika",{"$f":"INDEX(Načrtovani_stroški_za_pisarno[],MATCH(INDEX(Odmiki_stroškov_za_pisarno[],ROW()-ROW(Odmiki_stroškov_za_pisarno[[#Headers],[Jan]]),1),INDEX(Načrtovani_stroški_za_pisarno[],,1),0),MATCH(Odmiki_stroškov_za_pisarno[[#Headers],[Jan]],Načrtovani_stroški_za_pisarno[#Headers],0))-INDEX(Dejanski_stroški_za_pisarno[],MATCH(INDEX(Odmiki_stroškov_za_pisarno[],ROW()-ROW(Odmiki_stroškov_za_pisarno[[#Headers],[Jan]]),1),INDEX(Načrtovani_stroški_za_pisarno[],,1),0),MATCH(Odmiki_stroškov_za_pisarno[[#Headers],[Jan]],Dejanski_stroški_za_pisarno[#Headers],0))","v":{"v":12,"d":"12.00 €"}},{"$f":"INDEX(Načrtovani_stroški_za_pisarno[],MATCH(INDEX(Odmiki_stroškov_za_pisarno[],ROW()-ROW(Odmiki_stroškov_za_pisarno[[#Headers],[Feb]]),1),INDEX(Načrtovani_stroški_za_pisarno[],,1),0),MATCH(Odmiki_stroškov_za_pisarno[[#Headers],[Feb]],Načrtovani_stroški_za_pisarno[#Headers],0))-INDEX(Dejanski_stroški_za_pisarno[],MATCH(INDEX(Odmiki_stroškov_za_pisarno[],ROW()-ROW(Odmiki_stroškov_za_pisarno[[#Headers],[Feb]]),1),INDEX(Načrtovani_stroški_za_pisarno[],,1),0),MATCH(Odmiki_stroškov_za_pisarno[[#Headers],[Feb]],Dejanski_stroški_za_pisarno[#Headers],0))","v":{"v":22,"d":"22.00 €"}},{"$f":"INDEX(Načrtovani_stroški_za_pisarno[],MATCH(INDEX(Odmiki_stroškov_za_pisarno[],ROW()-ROW(Odmiki_stroškov_za_pisarno[[#Headers],[Mar]]),1),INDEX(Načrtovani_stroški_za_pisarno[],,1),0),MATCH(Odmiki_stroškov_za_pisarno[[#Headers],[Mar]],Načrtovani_stroški_za_pisarno[#Headers],0))-INDEX(Dejanski_stroški_za_pisarno[],MATCH(INDEX(Odmiki_stroškov_za_pisarno[],ROW()-ROW(Odmiki_stroškov_za_pisarno[[#Headers],[Mar]]),1),INDEX(Načrtovani_stroški_za_pisarno[],,1),0),MATCH(Odmiki_stroškov_za_pisarno[[#Headers],[Mar]],Dejanski_stroški_za_pisarno[#Headers],0))","v":{"v":32,"d":"32.00 €"}},{"$f":"INDEX(Načrtovani_stroški_za_pisarno[],MATCH(INDEX(Odmiki_stroškov_za_pisarno[],ROW()-ROW(Odmiki_stroškov_za_pisarno[[#Headers],[Apr]]),1),INDEX(Načrtovani_stroški_za_pisarno[],,1),0),MATCH(Odmiki_stroškov_za_pisarno[[#Headers],[Apr]],Načrtovani_stroški_za_pisarno[#Headers],0))-INDEX(Dejanski_stroški_za_pisarno[],MATCH(INDEX(Odmiki_stroškov_za_pisarno[],ROW()-ROW(Odmiki_stroškov_za_pisarno[[#Headers],[Apr]]),1),INDEX(Načrtovani_stroški_za_pisarno[],,1),0),MATCH(Odmiki_stroškov_za_pisarno[[#Headers],[Apr]],Dejanski_stroški_za_pisarno[#Headers],0))","v":{"v":1,"d":"1.00 €"}},{"$f":"INDEX(Načrtovani_stroški_za_pisarno[],MATCH(INDEX(Odmiki_stroškov_za_pisarno[],ROW()-ROW(Odmiki_stroškov_za_pisarno[[#Headers],[Maj]]),1),INDEX(Načrtovani_stroški_za_pisarno[],,1),0),MATCH(Odmiki_stroškov_za_pisarno[[#Headers],[Maj]],Načrtovani_stroški_za_pisarno[#Headers],0))-INDEX(Dejanski_stroški_za_pisarno[],MATCH(INDEX(Odmiki_stroškov_za_pisarno[],ROW()-ROW(Odmiki_stroškov_za_pisarno[[#Headers],[Maj]]),1),INDEX(Načrtovani_stroški_za_pisarno[],,1),0),MATCH(Odmiki_stroškov_za_pisarno[[#Headers],[Maj]],Dejanski_stroški_za_pisarno[#Headers],0))","v":{"v":-6,"d":"-6.00 €"}},{"$f":"INDEX(Načrtovani_stroški_za_pisarno[],MATCH(INDEX(Odmiki_stroškov_za_pisarno[],ROW()-ROW(Odmiki_stroškov_za_pisarno[[#Headers],[Jun]]),1),INDEX(Načrtovani_stroški_za_pisarno[],,1),0),MATCH(Odmiki_stroškov_za_pisarno[[#Headers],[Jun]],Načrtovani_stroški_za_pisarno[#Headers],0))-INDEX(Dejanski_stroški_za_pisarno[],MATCH(INDEX(Odmiki_stroškov_za_pisarno[],ROW()-ROW(Odmiki_stroškov_za_pisarno[[#Headers],[Jun]]),1),INDEX(Načrtovani_stroški_za_pisarno[],,1),0),MATCH(Odmiki_stroškov_za_pisarno[[#Headers],[Jun]],Dejanski_stroški_za_pisarno[#Headers],0))","v":{"v":10,"d":"10.00 €"}},{"$f":"INDEX(Načrtovani_stroški_za_pisarno[],MATCH(INDEX(Odmiki_stroškov_za_pisarno[],ROW()-ROW(Odmiki_stroškov_za_pisarno[[#Headers],[Jul]]),1),INDEX(Načrtovani_stroški_za_pisarno[],,1),0),MATCH(Odmiki_stroškov_za_pisarno[[#Headers],[Jul]],Načrtovani_stroški_za_pisarno[#Headers],0))-INDEX(Dejanski_stroški_za_pisarno[],MATCH(INDEX(Odmiki_stroškov_za_pisarno[],ROW()-ROW(Odmiki_stroškov_za_pisarno[[#Headers],[Jul]]),1),INDEX(Načrtovani_stroški_za_pisarno[],,1),0),MATCH(Odmiki_stroškov_za_pisarno[[#Headers],[Jul]],Dejanski_stroški_za_pisarno[#Headers],0))","v":{"v":300,"d":"300.00 €"}},{"$f":"INDEX(Načrtovani_stroški_za_pisarno[],MATCH(INDEX(Odmiki_stroškov_za_pisarno[],ROW()-ROW(Odmiki_stroškov_za_pisarno[[#Headers],[Avg]]),1),INDEX(Načrtovani_stroški_za_pisarno[],,1),0),MATCH(Odmiki_stroškov_za_pisarno[[#Headers],[Avg]],Načrtovani_stroški_za_pisarno[#Headers],0))-INDEX(Dejanski_stroški_za_pisarno[],MATCH(INDEX(Odmiki_stroškov_za_pisarno[],ROW()-ROW(Odmiki_stroškov_za_pisarno[[#Headers],[Avg]]),1),INDEX(Načrtovani_stroški_za_pisarno[],,1),0),MATCH(Odmiki_stroškov_za_pisarno[[#Headers],[Avg]],Dejanski_stroški_za_pisarno[#Headers],0))","v":{"v":300,"d":"300.00 €"}},{"$f":"INDEX(Načrtovani_stroški_za_pisarno[],MATCH(INDEX(Odmiki_stroškov_za_pisarno[],ROW()-ROW(Odmiki_stroškov_za_pisarno[[#Headers],[Sep]]),1),INDEX(Načrtovani_stroški_za_pisarno[],,1),0),MATCH(Odmiki_stroškov_za_pisarno[[#Headers],[Sep]],Načrtovani_stroški_za_pisarno[#Headers],0))-INDEX(Dejanski_stroški_za_pisarno[],MATCH(INDEX(Odmiki_stroškov_za_pisarno[],ROW()-ROW(Odmiki_stroškov_za_pisarno[[#Headers],[Sep]]),1),INDEX(Načrtovani_stroški_za_pisarno[],,1),0),MATCH(Odmiki_stroškov_za_pisarno[[#Headers],[Sep]],Dejanski_stroški_za_pisarno[#Headers],0))","v":{"v":300,"d":"300.00 €"}},{"$f":"INDEX(Načrtovani_stroški_za_pisarno[],MATCH(INDEX(Odmiki_stroškov_za_pisarno[],ROW()-ROW(Odmiki_stroškov_za_pisarno[[#Headers],[Okt]]),1),INDEX(Načrtovani_stroški_za_pisarno[],,1),0),MATCH(Odmiki_stroškov_za_pisarno[[#Headers],[Okt]],Načrtovani_stroški_za_pisarno[#Headers],0))-INDEX(Dejanski_stroški_za_pisarno[],MATCH(INDEX(Odmiki_stroškov_za_pisarno[],ROW()-ROW(Odmiki_stroškov_za_pisarno[[#Headers],[Okt]]),1),INDEX(Načrtovani_stroški_za_pisarno[],,1),0),MATCH(Odmiki_stroškov_za_pisarno[[#Headers],[Okt]],Dejanski_stroški_za_pisarno[#Headers],0))","v":{"v":300,"d":"300.00 €"}},{"$f":"INDEX(Načrtovani_stroški_za_pisarno[],MATCH(INDEX(Odmiki_stroškov_za_pisarno[],ROW()-ROW(Odmiki_stroškov_za_pisarno[[#Headers],[Nov]]),1),INDEX(Načrtovani_stroški_za_pisarno[],,1),0),MATCH(Odmiki_stroškov_za_pisarno[[#Headers],[Nov]],Načrtovani_stroški_za_pisarno[#Headers],0))-INDEX(Dejanski_stroški_za_pisarno[],MATCH(INDEX(Odmiki_stroškov_za_pisarno[],ROW()-ROW(Odmiki_stroškov_za_pisarno[[#Headers],[Nov]]),1),INDEX(Načrtovani_stroški_za_pisarno[],,1),0),MATCH(Odmiki_stroškov_za_pisarno[[#Headers],[Nov]],Dejanski_stroški_za_pisarno[#Headers],0))","v":{"v":300,"d":"300.00 €"}},{"$f":"INDEX(Načrtovani_stroški_za_pisarno[],MATCH(INDEX(Odmiki_stroškov_za_pisarno[],ROW()-ROW(Odmiki_stroškov_za_pisarno[[#Headers],[Dec]]),1),INDEX(Načrtovani_stroški_za_pisarno[],,1),0),MATCH(Odmiki_stroškov_za_pisarno[[#Headers],[Dec]],Načrtovani_stroški_za_pisarno[#Headers],0))-INDEX(Dejanski_stroški_za_pisarno[],MATCH(INDEX(Odmiki_stroškov_za_pisarno[],ROW()-ROW(Odmiki_stroškov_za_pisarno[[#Headers],[Dec]]),1),INDEX(Načrtovani_stroški_za_pisarno[],,1),0),MATCH(Odmiki_stroškov_za_pisarno[[#Headers],[Dec]],Dejanski_stroški_za_pisarno[#Headers],0))","v":{"v":300,"d":"300.00 €"}},{"$f":"SUM(Odmiki_stroškov_za_pisarno[[#This Row],[Jan]:[Dec]])","v":{"v":1871,"d":"1,871.00 €"}}]
[null,"Voda",{"$f":"INDEX(Načrtovani_stroški_za_pisarno[],MATCH(INDEX(Odmiki_stroškov_za_pisarno[],ROW()-ROW(Odmiki_stroškov_za_pisarno[[#Headers],[Jan]]),1),INDEX(Načrtovani_stroški_za_pisarno[],,1),0),MATCH(Odmiki_stroškov_za_pisarno[[#Headers],[Jan]],Načrtovani_stroški_za_pisarno[#Headers],0))-INDEX(Dejanski_stroški_za_pisarno[],MATCH(INDEX(Odmiki_stroškov_za_pisarno[],ROW()-ROW(Odmiki_stroškov_za_pisarno[[#Headers],[Jan]]),1),INDEX(Načrtovani_stroški_za_pisarno[],,1),0),MATCH(Odmiki_stroškov_za_pisarno[[#Headers],[Jan]],Dejanski_stroški_za_pisarno[#Headers],0))","v":{"v":5,"d":"5.00 €"}},{"$f":"INDEX(Načrtovani_stroški_za_pisarno[],MATCH(INDEX(Odmiki_stroškov_za_pisarno[],ROW()-ROW(Odmiki_stroškov_za_pisarno[[#Headers],[Feb]]),1),INDEX(Načrtovani_stroški_za_pisarno[],,1),0),MATCH(Odmiki_stroškov_za_pisarno[[#Headers],[Feb]],Načrtovani_stroški_za_pisarno[#Headers],0))-INDEX(Dejanski_stroški_za_pisarno[],MATCH(INDEX(Odmiki_stroškov_za_pisarno[],ROW()-ROW(Odmiki_stroškov_za_pisarno[[#Headers],[Feb]]),1),INDEX(Načrtovani_stroški_za_pisarno[],,1),0),MATCH(Odmiki_stroškov_za_pisarno[[#Headers],[Feb]],Dejanski_stroški_za_pisarno[#Headers],0))","v":{"v":7,"d":"7.00 €"}},{"$f":"INDEX(Načrtovani_stroški_za_pisarno[],MATCH(INDEX(Odmiki_stroškov_za_pisarno[],ROW()-ROW(Odmiki_stroškov_za_pisarno[[#Headers],[Mar]]),1),INDEX(Načrtovani_stroški_za_pisarno[],,1),0),MATCH(Odmiki_stroškov_za_pisarno[[#Headers],[Mar]],Načrtovani_stroški_za_pisarno[#Headers],0))-INDEX(Dejanski_stroški_za_pisarno[],MATCH(INDEX(Odmiki_stroškov_za_pisarno[],ROW()-ROW(Odmiki_stroškov_za_pisarno[[#Headers],[Mar]]),1),INDEX(Načrtovani_stroški_za_pisarno[],,1),0),MATCH(Odmiki_stroškov_za_pisarno[[#Headers],[Mar]],Dejanski_stroški_za_pisarno[#Headers],0))","v":{"v":6,"d":"6.00 €"}},{"$f":"INDEX(Načrtovani_stroški_za_pisarno[],MATCH(INDEX(Odmiki_stroškov_za_pisarno[],ROW()-ROW(Odmiki_stroškov_za_pisarno[[#Headers],[Apr]]),1),INDEX(Načrtovani_stroški_za_pisarno[],,1),0),MATCH(Odmiki_stroškov_za_pisarno[[#Headers],[Apr]],Načrtovani_stroški_za_pisarno[#Headers],0))-INDEX(Dejanski_stroški_za_pisarno[],MATCH(INDEX(Odmiki_stroškov_za_pisarno[],ROW()-ROW(Odmiki_stroškov_za_pisarno[[#Headers],[Apr]]),1),INDEX(Načrtovani_stroški_za_pisarno[],,1),0),MATCH(Odmiki_stroškov_za_pisarno[[#Headers],[Apr]],Dejanski_stroški_za_pisarno[#Headers],0))","v":{"v":4,"d":"4.00 €"}},{"$f":"INDEX(Načrtovani_stroški_za_pisarno[],MATCH(INDEX(Odmiki_stroškov_za_pisarno[],ROW()-ROW(Odmiki_stroškov_za_pisarno[[#Headers],[Maj]]),1),INDEX(Načrtovani_stroški_za_pisarno[],,1),0),MATCH(Odmiki_stroškov_za_pisarno[[#Headers],[Maj]],Načrtovani_stroški_za_pisarno[#Headers],0))-INDEX(Dejanski_stroški_za_pisarno[],MATCH(INDEX(Odmiki_stroškov_za_pisarno[],ROW()-ROW(Odmiki_stroškov_za_pisarno[[#Headers],[Maj]]),1),INDEX(Načrtovani_stroški_za_pisarno[],,1),0),MATCH(Odmiki_stroškov_za_pisarno[[#Headers],[Maj]],Dejanski_stroški_za_pisarno[#Headers],0))","v":{"v":6,"d":"6.00 €"}},{"$f":"INDEX(Načrtovani_stroški_za_pisarno[],MATCH(INDEX(Odmiki_stroškov_za_pisarno[],ROW()-ROW(Odmiki_stroškov_za_pisarno[[#Headers],[Jun]]),1),INDEX(Načrtovani_stroški_za_pisarno[],,1),0),MATCH(Odmiki_stroškov_za_pisarno[[#Headers],[Jun]],Načrtovani_stroški_za_pisarno[#Headers],0))-INDEX(Dejanski_stroški_za_pisarno[],MATCH(INDEX(Odmiki_stroškov_za_pisarno[],ROW()-ROW(Odmiki_stroškov_za_pisarno[[#Headers],[Jun]]),1),INDEX(Načrtovani_stroški_za_pisarno[],,1),0),MATCH(Odmiki_stroškov_za_pisarno[[#Headers],[Jun]],Dejanski_stroški_za_pisarno[#Headers],0))","v":{"v":4,"d":"4.00 €"}},{"$f":"INDEX(Načrtovani_stroški_za_pisarno[],MATCH(INDEX(Odmiki_stroškov_za_pisarno[],ROW()-ROW(Odmiki_stroškov_za_pisarno[[#Headers],[Jul]]),1),INDEX(Načrtovani_stroški_za_pisarno[],,1),0),MATCH(Odmiki_stroškov_za_pisarno[[#Headers],[Jul]],Načrtovani_stroški_za_pisarno[#Headers],0))-INDEX(Dejanski_stroški_za_pisarno[],MATCH(INDEX(Odmiki_stroškov_za_pisarno[],ROW()-ROW(Odmiki_stroškov_za_pisarno[[#Headers],[Jul]]),1),INDEX(Načrtovani_stroški_za_pisarno[],,1),0),MATCH(Odmiki_stroškov_za_pisarno[[#Headers],[Jul]],Dejanski_stroški_za_pisarno[#Headers],0))","v":{"v":40,"d":"40.00 €"}},{"$f":"INDEX(Načrtovani_stroški_za_pisarno[],MATCH(INDEX(Odmiki_stroškov_za_pisarno[],ROW()-ROW(Odmiki_stroškov_za_pisarno[[#Headers],[Avg]]),1),INDEX(Načrtovani_stroški_za_pisarno[],,1),0),MATCH(Odmiki_stroškov_za_pisarno[[#Headers],[Avg]],Načrtovani_stroški_za_pisarno[#Headers],0))-INDEX(Dejanski_stroški_za_pisarno[],MATCH(INDEX(Odmiki_stroškov_za_pisarno[],ROW()-ROW(Odmiki_stroškov_za_pisarno[[#Headers],[Avg]]),1),INDEX(Načrtovani_stroški_za_pisarno[],,1),0),MATCH(Odmiki_stroškov_za_pisarno[[#Headers],[Avg]],Dejanski_stroški_za_pisarno[#Headers],0))","v":{"v":40,"d":"40.00 €"}},{"$f":"INDEX(Načrtovani_stroški_za_pisarno[],MATCH(INDEX(Odmiki_stroškov_za_pisarno[],ROW()-ROW(Odmiki_stroškov_za_pisarno[[#Headers],[Sep]]),1),INDEX(Načrtovani_stroški_za_pisarno[],,1),0),MATCH(Odmiki_stroškov_za_pisarno[[#Headers],[Sep]],Načrtovani_stroški_za_pisarno[#Headers],0))-INDEX(Dejanski_stroški_za_pisarno[],MATCH(INDEX(Odmiki_stroškov_za_pisarno[],ROW()-ROW(Odmiki_stroškov_za_pisarno[[#Headers],[Sep]]),1),INDEX(Načrtovani_stroški_za_pisarno[],,1),0),MATCH(Odmiki_stroškov_za_pisarno[[#Headers],[Sep]],Dejanski_stroški_za_pisarno[#Headers],0))","v":{"v":40,"d":"40.00 €"}},{"$f":"INDEX(Načrtovani_stroški_za_pisarno[],MATCH(INDEX(Odmiki_stroškov_za_pisarno[],ROW()-ROW(Odmiki_stroškov_za_pisarno[[#Headers],[Okt]]),1),INDEX(Načrtovani_stroški_za_pisarno[],,1),0),MATCH(Odmiki_stroškov_za_pisarno[[#Headers],[Okt]],Načrtovani_stroški_za_pisarno[#Headers],0))-INDEX(Dejanski_stroški_za_pisarno[],MATCH(INDEX(Odmiki_stroškov_za_pisarno[],ROW()-ROW(Odmiki_stroškov_za_pisarno[[#Headers],[Okt]]),1),INDEX(Načrtovani_stroški_za_pisarno[],,1),0),MATCH(Odmiki_stroškov_za_pisarno[[#Headers],[Okt]],Dejanski_stroški_za_pisarno[#Headers],0))","v":{"v":40,"d":"40.00 €"}},{"$f":"INDEX(Načrtovani_stroški_za_pisarno[],MATCH(INDEX(Odmiki_stroškov_za_pisarno[],ROW()-ROW(Odmiki_stroškov_za_pisarno[[#Headers],[Nov]]),1),INDEX(Načrtovani_stroški_za_pisarno[],,1),0),MATCH(Odmiki_stroškov_za_pisarno[[#Headers],[Nov]],Načrtovani_stroški_za_pisarno[#Headers],0))-INDEX(Dejanski_stroški_za_pisarno[],MATCH(INDEX(Odmiki_stroškov_za_pisarno[],ROW()-ROW(Odmiki_stroškov_za_pisarno[[#Headers],[Nov]]),1),INDEX(Načrtovani_stroški_za_pisarno[],,1),0),MATCH(Odmiki_stroškov_za_pisarno[[#Headers],[Nov]],Dejanski_stroški_za_pisarno[#Headers],0))","v":{"v":40,"d":"40.00 €"}},{"$f":"INDEX(Načrtovani_stroški_za_pisarno[],MATCH(INDEX(Odmiki_stroškov_za_pisarno[],ROW()-ROW(Odmiki_stroškov_za_pisarno[[#Headers],[Dec]]),1),INDEX(Načrtovani_stroški_za_pisarno[],,1),0),MATCH(Odmiki_stroškov_za_pisarno[[#Headers],[Dec]],Načrtovani_stroški_za_pisarno[#Headers],0))-INDEX(Dejanski_stroški_za_pisarno[],MATCH(INDEX(Odmiki_stroškov_za_pisarno[],ROW()-ROW(Odmiki_stroškov_za_pisarno[[#Headers],[Dec]]),1),INDEX(Načrtovani_stroški_za_pisarno[],,1),0),MATCH(Odmiki_stroškov_za_pisarno[[#Headers],[Dec]],Dejanski_stroški_za_pisarno[#Headers],0))","v":{"v":40,"d":"40.00 €"}},{"$f":"SUM(Odmiki_stroškov_za_pisarno[[#This Row],[Jan]:[Dec]])","v":{"v":272,"d":"272.00 €"}}]
[null,"Telefon",{"$f":"INDEX(Načrtovani_stroški_za_pisarno[],MATCH(INDEX(Odmiki_stroškov_za_pisarno[],ROW()-ROW(Odmiki_stroškov_za_pisarno[[#Headers],[Jan]]),1),INDEX(Načrtovani_stroški_za_pisarno[],,1),0),MATCH(Odmiki_stroškov_za_pisarno[[#Headers],[Jan]],Načrtovani_stroški_za_pisarno[#Headers],0))-INDEX(Dejanski_stroški_za_pisarno[],MATCH(INDEX(Odmiki_stroškov_za_pisarno[],ROW()-ROW(Odmiki_stroškov_za_pisarno[[#Headers],[Jan]]),1),INDEX(Načrtovani_stroški_za_pisarno[],,1),0),MATCH(Odmiki_stroškov_za_pisarno[[#Headers],[Jan]],Dejanski_stroški_za_pisarno[#Headers],0))","v":{"v":26,"d":"26.00 €"}},{"$f":"INDEX(Načrtovani_stroški_za_pisarno[],MATCH(INDEX(Odmiki_stroškov_za_pisarno[],ROW()-ROW(Odmiki_stroškov_za_pisarno[[#Headers],[Feb]]),1),INDEX(Načrtovani_stroški_za_pisarno[],,1),0),MATCH(Odmiki_stroškov_za_pisarno[[#Headers],[Feb]],Načrtovani_stroški_za_pisarno[#Headers],0))-INDEX(Dejanski_stroški_za_pisarno[],MATCH(INDEX(Odmiki_stroškov_za_pisarno[],ROW()-ROW(Odmiki_stroškov_za_pisarno[[#Headers],[Feb]]),1),INDEX(Načrtovani_stroški_za_pisarno[],,1),0),MATCH(Odmiki_stroškov_za_pisarno[[#Headers],[Feb]],Dejanski_stroški_za_pisarno[#Headers],0))","v":{"v":15,"d":"15.00 €"}},{"$f":"INDEX(Načrtovani_stroški_za_pisarno[],MATCH(INDEX(Odmiki_stroškov_za_pisarno[],ROW()-ROW(Odmiki_stroškov_za_pisarno[[#Headers],[Mar]]),1),INDEX(Načrtovani_stroški_za_pisarno[],,1),0),MATCH(Odmiki_stroškov_za_pisarno[[#Headers],[Mar]],Načrtovani_stroški_za_pisarno[#Headers],0))-INDEX(Dejanski_stroški_za_pisarno[],MATCH(INDEX(Odmiki_stroškov_za_pisarno[],ROW()-ROW(Odmiki_stroškov_za_pisarno[[#Headers],[Mar]]),1),INDEX(Načrtovani_stroški_za_pisarno[],,1),0),MATCH(Odmiki_stroškov_za_pisarno[[#Headers],[Mar]],Dejanski_stroški_za_pisarno[#Headers],0))","v":{"v":-15,"d":"-15.00 €"}},{"$f":"INDEX(Načrtovani_stroški_za_pisarno[],MATCH(INDEX(Odmiki_stroškov_za_pisarno[],ROW()-ROW(Odmiki_stroškov_za_pisarno[[#Headers],[Apr]]),1),INDEX(Načrtovani_stroški_za_pisarno[],,1),0),MATCH(Odmiki_stroškov_za_pisarno[[#Headers],[Apr]],Načrtovani_stroški_za_pisarno[#Headers],0))-INDEX(Dejanski_stroški_za_pisarno[],MATCH(INDEX(Odmiki_stroškov_za_pisarno[],ROW()-ROW(Odmiki_stroškov_za_pisarno[[#Headers],[Apr]]),1),INDEX(Načrtovani_stroški_za_pisarno[],,1),0),MATCH(Odmiki_stroškov_za_pisarno[[#Headers],[Apr]],Dejanski_stroški_za_pisarno[#Headers],0))","v":{"v":5,"d":"5.00 €"}},{"$f":"INDEX(Načrtovani_stroški_za_pisarno[],MATCH(INDEX(Odmiki_stroškov_za_pisarno[],ROW()-ROW(Odmiki_stroškov_za_pisarno[[#Headers],[Maj]]),1),INDEX(Načrtovani_stroški_za_pisarno[],,1),0),MATCH(Odmiki_stroškov_za_pisarno[[#Headers],[Maj]],Načrtovani_stroški_za_pisarno[#Headers],0))-INDEX(Dejanski_stroški_za_pisarno[],MATCH(INDEX(Odmiki_stroškov_za_pisarno[],ROW()-ROW(Odmiki_stroškov_za_pisarno[[#Headers],[Maj]]),1),INDEX(Načrtovani_stroški_za_pisarno[],,1),0),MATCH(Odmiki_stroškov_za_pisarno[[#Headers],[Maj]],Dejanski_stroški_za_pisarno[#Headers],0))","v":{"v":5,"d":"5.00 €"}},{"$f":"INDEX(Načrtovani_stroški_za_pisarno[],MATCH(INDEX(Odmiki_stroškov_za_pisarno[],ROW()-ROW(Odmiki_stroškov_za_pisarno[[#Headers],[Jun]]),1),INDEX(Načrtovani_stroški_za_pisarno[],,1),0),MATCH(Odmiki_stroškov_za_pisarno[[#Headers],[Jun]],Načrtovani_stroški_za_pisarno[#Headers],0))-INDEX(Dejanski_stroški_za_pisarno[],MATCH(INDEX(Odmiki_stroškov_za_pisarno[],ROW()-ROW(Odmiki_stroškov_za_pisarno[[#Headers],[Jun]]),1),INDEX(Načrtovani_stroški_za_pisarno[],,1),0),MATCH(Odmiki_stroškov_za_pisarno[[#Headers],[Jun]],Dejanski_stroški_za_pisarno[#Headers],0))","v":{"v":30,"d":"30.00 €"}},{"$f":"INDEX(Načrtovani_stroški_za_pisarno[],MATCH(INDEX(Odmiki_stroškov_za_pisarno[],ROW()-ROW(Odmiki_stroškov_za_pisarno[[#Headers],[Jul]]),1),INDEX(Načrtovani_stroški_za_pisarno[],,1),0),MATCH(Odmiki_stroškov_za_pisarno[[#Headers],[Jul]],Načrtovani_stroški_za_pisarno[#Headers],0))-INDEX(Dejanski_stroški_za_pisarno[],MATCH(INDEX(Odmiki_stroškov_za_pisarno[],ROW()-ROW(Odmiki_stroškov_za_pisarno[[#Headers],[Jul]]),1),INDEX(Načrtovani_stroški_za_pisarno[],,1),0),MATCH(Odmiki_stroškov_za_pisarno[[#Headers],[Jul]],Dejanski_stroški_za_pisarno[#Headers],0))","v":{"v":250,"d":"250.00 €"}},{"$f":"INDEX(Načrtovani_stroški_za_pisarno[],MATCH(INDEX(Odmiki_stroškov_za_pisarno[],ROW()-ROW(Odmiki_stroškov_za_pisarno[[#Headers],[Avg]]),1),INDEX(Načrtovani_stroški_za_pisarno[],,1),0),MATCH(Odmiki_stroškov_za_pisarno[[#Headers],[Avg]],Načrtovani_stroški_za_pisarno[#Headers],0))-INDEX(Dejanski_stroški_za_pisarno[],MATCH(INDEX(Odmiki_stroškov_za_pisarno[],ROW()-ROW(Odmiki_stroškov_za_pisarno[[#Headers],[Avg]]),1),INDEX(Načrtovani_stroški_za_pisarno[],,1),0),MATCH(Odmiki_stroškov_za_pisarno[[#Headers],[Avg]],Dejanski_stroški_za_pisarno[#Headers],0))","v":{"v":250,"d":"250.00 €"}},{"$f":"INDEX(Načrtovani_stroški_za_pisarno[],MATCH(INDEX(Odmiki_stroškov_za_pisarno[],ROW()-ROW(Odmiki_stroškov_za_pisarno[[#Headers],[Sep]]),1),INDEX(Načrtovani_stroški_za_pisarno[],,1),0),MATCH(Odmiki_stroškov_za_pisarno[[#Headers],[Sep]],Načrtovani_stroški_za_pisarno[#Headers],0))-INDEX(Dejanski_stroški_za_pisarno[],MATCH(INDEX(Odmiki_stroškov_za_pisarno[],ROW()-ROW(Odmiki_stroškov_za_pisarno[[#Headers],[Sep]]),1),INDEX(Načrtovani_stroški_za_pisarno[],,1),0),MATCH(Odmiki_stroškov_za_pisarno[[#Headers],[Sep]],Dejanski_stroški_za_pisarno[#Headers],0))","v":{"v":250,"d":"250.00 €"}},{"$f":"INDEX(Načrtovani_stroški_za_pisarno[],MATCH(INDEX(Odmiki_stroškov_za_pisarno[],ROW()-ROW(Odmiki_stroškov_za_pisarno[[#Headers],[Okt]]),1),INDEX(Načrtovani_stroški_za_pisarno[],,1),0),MATCH(Odmiki_stroškov_za_pisarno[[#Headers],[Okt]],Načrtovani_stroški_za_pisarno[#Headers],0))-INDEX(Dejanski_stroški_za_pisarno[],MATCH(INDEX(Odmiki_stroškov_za_pisarno[],ROW()-ROW(Odmiki_stroškov_za_pisarno[[#Headers],[Okt]]),1),INDEX(Načrtovani_stroški_za_pisarno[],,1),0),MATCH(Odmiki_stroškov_za_pisarno[[#Headers],[Okt]],Dejanski_stroški_za_pisarno[#Headers],0))","v":{"v":250,"d":"250.00 €"}},{"$f":"INDEX(Načrtovani_stroški_za_pisarno[],MATCH(INDEX(Odmiki_stroškov_za_pisarno[],ROW()-ROW(Odmiki_stroškov_za_pisarno[[#Headers],[Nov]]),1),INDEX(Načrtovani_stroški_za_pisarno[],,1),0),MATCH(Odmiki_stroškov_za_pisarno[[#Headers],[Nov]],Načrtovani_stroški_za_pisarno[#Headers],0))-INDEX(Dejanski_stroški_za_pisarno[],MATCH(INDEX(Odmiki_stroškov_za_pisarno[],ROW()-ROW(Odmiki_stroškov_za_pisarno[[#Headers],[Nov]]),1),INDEX(Načrtovani_stroški_za_pisarno[],,1),0),MATCH(Odmiki_stroškov_za_pisarno[[#Headers],[Nov]],Dejanski_stroški_za_pisarno[#Headers],0))","v":{"v":250,"d":"250.00 €"}},{"$f":"INDEX(Načrtovani_stroški_za_pisarno[],MATCH(INDEX(Odmiki_stroškov_za_pisarno[],ROW()-ROW(Odmiki_stroškov_za_pisarno[[#Headers],[Dec]]),1),INDEX(Načrtovani_stroški_za_pisarno[],,1),0),MATCH(Odmiki_stroškov_za_pisarno[[#Headers],[Dec]],Načrtovani_stroški_za_pisarno[#Headers],0))-INDEX(Dejanski_stroški_za_pisarno[],MATCH(INDEX(Odmiki_stroškov_za_pisarno[],ROW()-ROW(Odmiki_stroškov_za_pisarno[[#Headers],[Dec]]),1),INDEX(Načrtovani_stroški_za_pisarno[],,1),0),MATCH(Odmiki_stroškov_za_pisarno[[#Headers],[Dec]],Dejanski_stroški_za_pisarno[#Headers],0))","v":{"v":250,"d":"250.00 €"}},{"$f":"SUM(Odmiki_stroškov_za_pisarno[[#This Row],[Jan]:[Dec]])","v":{"v":1566,"d":"1,566.00 €"}}]
[null,"Dostop do interneta",{"$f":"INDEX(Načrtovani_stroški_za_pisarno[],MATCH(INDEX(Odmiki_stroškov_za_pisarno[],ROW()-ROW(Odmiki_stroškov_za_pisarno[[#Headers],[Jan]]),1),INDEX(Načrtovani_stroški_za_pisarno[],,1),0),MATCH(Odmiki_stroškov_za_pisarno[[#Headers],[Jan]],Načrtovani_stroški_za_pisarno[#Headers],0))-INDEX(Dejanski_stroški_za_pisarno[],MATCH(INDEX(Odmiki_stroškov_za_pisarno[],ROW()-ROW(Odmiki_stroškov_za_pisarno[[#Headers],[Jan]]),1),INDEX(Načrtovani_stroški_za_pisarno[],,1),0),MATCH(Odmiki_stroškov_za_pisarno[[#Headers],[Jan]],Dejanski_stroški_za_pisarno[#Headers],0))","v":{"v":0,"d":"0.00 €"}},{"$f":"INDEX(Načrtovani_stroški_za_pisarno[],MATCH(INDEX(Odmiki_stroškov_za_pisarno[],ROW()-ROW(Odmiki_stroškov_za_pisarno[[#Headers],[Feb]]),1),INDEX(Načrtovani_stroški_za_pisarno[],,1),0),MATCH(Odmiki_stroškov_za_pisarno[[#Headers],[Feb]],Načrtovani_stroški_za_pisarno[#Headers],0))-INDEX(Dejanski_stroški_za_pisarno[],MATCH(INDEX(Odmiki_stroškov_za_pisarno[],ROW()-ROW(Odmiki_stroškov_za_pisarno[[#Headers],[Feb]]),1),INDEX(Načrtovani_stroški_za_pisarno[],,1),0),MATCH(Odmiki_stroškov_za_pisarno[[#Headers],[Feb]],Dejanski_stroški_za_pisarno[#Headers],0))","v":{"v":0,"d":"0.00 €"}},{"$f":"INDEX(Načrtovani_stroški_za_pisarno[],MATCH(INDEX(Odmiki_stroškov_za_pisarno[],ROW()-ROW(Odmiki_stroškov_za_pisarno[[#Headers],[Mar]]),1),INDEX(Načrtovani_stroški_za_pisarno[],,1),0),MATCH(Odmiki_stroškov_za_pisarno[[#Headers],[Mar]],Načrtovani_stroški_za_pisarno[#Headers],0))-INDEX(Dejanski_stroški_za_pisarno[],MATCH(INDEX(Odmiki_stroškov_za_pisarno[],ROW()-ROW(Odmiki_stroškov_za_pisarno[[#Headers],[Mar]]),1),INDEX(Načrtovani_stroški_za_pisarno[],,1),0),MATCH(Odmiki_stroškov_za_pisarno[[#Headers],[Mar]],Dejanski_stroški_za_pisarno[#Headers],0))","v":{"v":0,"d":"0.00 €"}},{"$f":"INDEX(Načrtovani_stroški_za_pisarno[],MATCH(INDEX(Odmiki_stroškov_za_pisarno[],ROW()-ROW(Odmiki_stroškov_za_pisarno[[#Headers],[Apr]]),1),INDEX(Načrtovani_stroški_za_pisarno[],,1),0),MATCH(Odmiki_stroškov_za_pisarno[[#Headers],[Apr]],Načrtovani_stroški_za_pisarno[#Headers],0))-INDEX(Dejanski_stroški_za_pisarno[],MATCH(INDEX(Odmiki_stroškov_za_pisarno[],ROW()-ROW(Odmiki_stroškov_za_pisarno[[#Headers],[Apr]]),1),INDEX(Načrtovani_stroški_za_pisarno[],,1),0),MATCH(Odmiki_stroškov_za_pisarno[[#Headers],[Apr]],Dejanski_stroški_za_pisarno[#Headers],0))","v":{"v":0,"d":"0.00 €"}},{"$f":"INDEX(Načrtovani_stroški_za_pisarno[],MATCH(INDEX(Odmiki_stroškov_za_pisarno[],ROW()-ROW(Odmiki_stroškov_za_pisarno[[#Headers],[Maj]]),1),INDEX(Načrtovani_stroški_za_pisarno[],,1),0),MATCH(Odmiki_stroškov_za_pisarno[[#Headers],[Maj]],Načrtovani_stroški_za_pisarno[#Headers],0))-INDEX(Dejanski_stroški_za_pisarno[],MATCH(INDEX(Odmiki_stroškov_za_pisarno[],ROW()-ROW(Odmiki_stroškov_za_pisarno[[#Headers],[Maj]]),1),INDEX(Načrtovani_stroški_za_pisarno[],,1),0),MATCH(Odmiki_stroškov_za_pisarno[[#Headers],[Maj]],Dejanski_stroški_za_pisarno[#Headers],0))","v":{"v":0,"d":"0.00 €"}},{"$f":"INDEX(Načrtovani_stroški_za_pisarno[],MATCH(INDEX(Odmiki_stroškov_za_pisarno[],ROW()-ROW(Odmiki_stroškov_za_pisarno[[#Headers],[Jun]]),1),INDEX(Načrtovani_stroški_za_pisarno[],,1),0),MATCH(Odmiki_stroškov_za_pisarno[[#Headers],[Jun]],Načrtovani_stroški_za_pisarno[#Headers],0))-INDEX(Dejanski_stroški_za_pisarno[],MATCH(INDEX(Odmiki_stroškov_za_pisarno[],ROW()-ROW(Odmiki_stroškov_za_pisarno[[#Headers],[Jun]]),1),INDEX(Načrtovani_stroški_za_pisarno[],,1),0),MATCH(Odmiki_stroškov_za_pisarno[[#Headers],[Jun]],Dejanski_stroški_za_pisarno[#Headers],0))","v":{"v":0,"d":"0.00 €"}},{"$f":"INDEX(Načrtovani_stroški_za_pisarno[],MATCH(INDEX(Odmiki_stroškov_za_pisarno[],ROW()-ROW(Odmiki_stroškov_za_pisarno[[#Headers],[Jul]]),1),INDEX(Načrtovani_stroški_za_pisarno[],,1),0),MATCH(Odmiki_stroškov_za_pisarno[[#Headers],[Jul]],Načrtovani_stroški_za_pisarno[#Headers],0))-INDEX(Dejanski_stroški_za_pisarno[],MATCH(INDEX(Odmiki_stroškov_za_pisarno[],ROW()-ROW(Odmiki_stroškov_za_pisarno[[#Headers],[Jul]]),1),INDEX(Načrtovani_stroški_za_pisarno[],,1),0),MATCH(Odmiki_stroškov_za_pisarno[[#Headers],[Jul]],Dejanski_stroški_za_pisarno[#Headers],0))","v":{"v":180,"d":"180.00 €"}},{"$f":"INDEX(Načrtovani_stroški_za_pisarno[],MATCH(INDEX(Odmiki_stroškov_za_pisarno[],ROW()-ROW(Odmiki_stroškov_za_pisarno[[#Headers],[Avg]]),1),INDEX(Načrtovani_stroški_za_pisarno[],,1),0),MATCH(Odmiki_stroškov_za_pisarno[[#Headers],[Avg]],Načrtovani_stroški_za_pisarno[#Headers],0))-INDEX(Dejanski_stroški_za_pisarno[],MATCH(INDEX(Odmiki_stroškov_za_pisarno[],ROW()-ROW(Odmiki_stroškov_za_pisarno[[#Headers],[Avg]]),1),INDEX(Načrtovani_stroški_za_pisarno[],,1),0),MATCH(Odmiki_stroškov_za_pisarno[[#Headers],[Avg]],Dejanski_stroški_za_pisarno[#Headers],0))","v":{"v":180,"d":"180.00 €"}},{"$f":"INDEX(Načrtovani_stroški_za_pisarno[],MATCH(INDEX(Odmiki_stroškov_za_pisarno[],ROW()-ROW(Odmiki_stroškov_za_pisarno[[#Headers],[Sep]]),1),INDEX(Načrtovani_stroški_za_pisarno[],,1),0),MATCH(Odmiki_stroškov_za_pisarno[[#Headers],[Sep]],Načrtovani_stroški_za_pisarno[#Headers],0))-INDEX(Dejanski_stroški_za_pisarno[],MATCH(INDEX(Odmiki_stroškov_za_pisarno[],ROW()-ROW(Odmiki_stroškov_za_pisarno[[#Headers],[Sep]]),1),INDEX(Načrtovani_stroški_za_pisarno[],,1),0),MATCH(Odmiki_stroškov_za_pisarno[[#Headers],[Sep]],Dejanski_stroški_za_pisarno[#Headers],0))","v":{"v":180,"d":"180.00 €"}},{"$f":"INDEX(Načrtovani_stroški_za_pisarno[],MATCH(INDEX(Odmiki_stroškov_za_pisarno[],ROW()-ROW(Odmiki_stroškov_za_pisarno[[#Headers],[Okt]]),1),INDEX(Načrtovani_stroški_za_pisarno[],,1),0),MATCH(Odmiki_stroškov_za_pisarno[[#Headers],[Okt]],Načrtovani_stroški_za_pisarno[#Headers],0))-INDEX(Dejanski_stroški_za_pisarno[],MATCH(INDEX(Odmiki_stroškov_za_pisarno[],ROW()-ROW(Odmiki_stroškov_za_pisarno[[#Headers],[Okt]]),1),INDEX(Načrtovani_stroški_za_pisarno[],,1),0),MATCH(Odmiki_stroškov_za_pisarno[[#Headers],[Okt]],Dejanski_stroški_za_pisarno[#Headers],0))","v":{"v":180,"d":"180.00 €"}},{"$f":"INDEX(Načrtovani_stroški_za_pisarno[],MATCH(INDEX(Odmiki_stroškov_za_pisarno[],ROW()-ROW(Odmiki_stroškov_za_pisarno[[#Headers],[Nov]]),1),INDEX(Načrtovani_stroški_za_pisarno[],,1),0),MATCH(Odmiki_stroškov_za_pisarno[[#Headers],[Nov]],Načrtovani_stroški_za_pisarno[#Headers],0))-INDEX(Dejanski_stroški_za_pisarno[],MATCH(INDEX(Odmiki_stroškov_za_pisarno[],ROW()-ROW(Odmiki_stroškov_za_pisarno[[#Headers],[Nov]]),1),INDEX(Načrtovani_stroški_za_pisarno[],,1),0),MATCH(Odmiki_stroškov_za_pisarno[[#Headers],[Nov]],Dejanski_stroški_za_pisarno[#Headers],0))","v":{"v":180,"d":"180.00 €"}},{"$f":"INDEX(Načrtovani_stroški_za_pisarno[],MATCH(INDEX(Odmiki_stroškov_za_pisarno[],ROW()-ROW(Odmiki_stroškov_za_pisarno[[#Headers],[Dec]]),1),INDEX(Načrtovani_stroški_za_pisarno[],,1),0),MATCH(Odmiki_stroškov_za_pisarno[[#Headers],[Dec]],Načrtovani_stroški_za_pisarno[#Headers],0))-INDEX(Dejanski_stroški_za_pisarno[],MATCH(INDEX(Odmiki_stroškov_za_pisarno[],ROW()-ROW(Odmiki_stroškov_za_pisarno[[#Headers],[Dec]]),1),INDEX(Načrtovani_stroški_za_pisarno[],,1),0),MATCH(Odmiki_stroškov_za_pisarno[[#Headers],[Dec]],Dejanski_stroški_za_pisarno[#Headers],0))","v":{"v":180,"d":"180.00 €"}},{"$f":"SUM(Odmiki_stroškov_za_pisarno[[#This Row],[Jan]:[Dec]])","v":{"v":1080,"d":"1,080.00 €"}}]
[null,"Pisarniški material",{"$f":"INDEX(Načrtovani_stroški_za_pisarno[],MATCH(INDEX(Odmiki_stroškov_za_pisarno[],ROW()-ROW(Odmiki_stroškov_za_pisarno[[#Headers],[Jan]]),1),INDEX(Načrtovani_stroški_za_pisarno[],,1),0),MATCH(Odmiki_stroškov_za_pisarno[[#Headers],[Jan]],Načrtovani_stroški_za_pisarno[#Headers],0))-INDEX(Dejanski_stroški_za_pisarno[],MATCH(INDEX(Odmiki_stroškov_za_pisarno[],ROW()-ROW(Odmiki_stroškov_za_pisarno[[#Headers],[Jan]]),1),INDEX(Načrtovani_stroški_za_pisarno[],,1),0),MATCH(Odmiki_stroškov_za_pisarno[[#Headers],[Jan]],Dejanski_stroški_za_pisarno[#Headers],0))","v":{"v":-56,"d":"-56.00 €"}},{"$f":"INDEX(Načrtovani_stroški_za_pisarno[],MATCH(INDEX(Odmiki_stroškov_za_pisarno[],ROW()-ROW(Odmiki_stroškov_za_pisarno[[#Headers],[Feb]]),1),INDEX(Načrtovani_stroški_za_pisarno[],,1),0),MATCH(Odmiki_stroškov_za_pisarno[[#Headers],[Feb]],Načrtovani_stroški_za_pisarno[#Headers],0))-INDEX(Dejanski_stroški_za_pisarno[],MATCH(INDEX(Odmiki_stroškov_za_pisarno[],ROW()-ROW(Odmiki_stroškov_za_pisarno[[#Headers],[Feb]]),1),INDEX(Načrtovani_stroški_za_pisarno[],,1),0),MATCH(Odmiki_stroškov_za_pisarno[[#Headers],[Feb]],Dejanski_stroški_za_pisarno[#Headers],0))","v":{"v":58,"d":"58.00 €"}},{"$f":"INDEX(Načrtovani_stroški_za_pisarno[],MATCH(INDEX(Odmiki_stroškov_za_pisarno[],ROW()-ROW(Odmiki_stroškov_za_pisarno[[#Headers],[Mar]]),1),INDEX(Načrtovani_stroški_za_pisarno[],,1),0),MATCH(Odmiki_stroškov_za_pisarno[[#Headers],[Mar]],Načrtovani_stroški_za_pisarno[#Headers],0))-INDEX(Dejanski_stroški_za_pisarno[],MATCH(INDEX(Odmiki_stroškov_za_pisarno[],ROW()-ROW(Odmiki_stroškov_za_pisarno[[#Headers],[Mar]]),1),INDEX(Načrtovani_stroški_za_pisarno[],,1),0),MATCH(Odmiki_stroškov_za_pisarno[[#Headers],[Mar]],Dejanski_stroški_za_pisarno[#Headers],0))","v":{"v":40,"d":"40.00 €"}},{"$f":"INDEX(Načrtovani_stroški_za_pisarno[],MATCH(INDEX(Odmiki_stroškov_za_pisarno[],ROW()-ROW(Odmiki_stroškov_za_pisarno[[#Headers],[Apr]]),1),INDEX(Načrtovani_stroški_za_pisarno[],,1),0),MATCH(Odmiki_stroškov_za_pisarno[[#Headers],[Apr]],Načrtovani_stroški_za_pisarno[#Headers],0))-INDEX(Dejanski_stroški_za_pisarno[],MATCH(INDEX(Odmiki_stroškov_za_pisarno[],ROW()-ROW(Odmiki_stroškov_za_pisarno[[#Headers],[Apr]]),1),INDEX(Načrtovani_stroški_za_pisarno[],,1),0),MATCH(Odmiki_stroškov_za_pisarno[[#Headers],[Apr]],Dejanski_stroški_za_pisarno[#Headers],0))","v":{"v":-21,"d":"-21.00 €"}},{"$f":"INDEX(Načrtovani_stroški_za_pisarno[],MATCH(INDEX(Odmiki_stroškov_za_pisarno[],ROW()-ROW(Odmiki_stroškov_za_pisarno[[#Headers],[Maj]]),1),INDEX(Načrtovani_stroški_za_pisarno[],,1),0),MATCH(Odmiki_stroškov_za_pisarno[[#Headers],[Maj]],Načrtovani_stroški_za_pisarno[#Headers],0))-INDEX(Dejanski_stroški_za_pisarno[],MATCH(INDEX(Odmiki_stroškov_za_pisarno[],ROW()-ROW(Odmiki_stroškov_za_pisarno[[#Headers],[Maj]]),1),INDEX(Načrtovani_stroški_za_pisarno[],,1),0),MATCH(Odmiki_stroškov_za_pisarno[[#Headers],[Maj]],Dejanski_stroški_za_pisarno[#Headers],0))","v":{"v":-56,"d":"-56.00 €"}},{"$f":"INDEX(Načrtovani_stroški_za_pisarno[],MATCH(INDEX(Odmiki_stroškov_za_pisarno[],ROW()-ROW(Odmiki_stroškov_za_pisarno[[#Headers],[Jun]]),1),INDEX(Načrtovani_stroški_za_pisarno[],,1),0),MATCH(Odmiki_stroškov_za_pisarno[[#Headers],[Jun]],Načrtovani_stroški_za_pisarno[#Headers],0))-INDEX(Dejanski_stroški_za_pisarno[],MATCH(INDEX(Odmiki_stroškov_za_pisarno[],ROW()-ROW(Odmiki_stroškov_za_pisarno[[#Headers],[Jun]]),1),INDEX(Načrtovani_stroški_za_pisarno[],,1),0),MATCH(Odmiki_stroškov_za_pisarno[[#Headers],[Jun]],Dejanski_stroški_za_pisarno[#Headers],0))","v":{"v":-40,"d":"-40.00 €"}},{"$f":"INDEX(Načrtovani_stroški_za_pisarno[],MATCH(INDEX(Odmiki_stroškov_za_pisarno[],ROW()-ROW(Odmiki_stroškov_za_pisarno[[#Headers],[Jul]]),1),INDEX(Načrtovani_stroški_za_pisarno[],,1),0),MATCH(Odmiki_stroškov_za_pisarno[[#Headers],[Jul]],Načrtovani_stroški_za_pisarno[#Headers],0))-INDEX(Dejanski_stroški_za_pisarno[],MATCH(INDEX(Odmiki_stroškov_za_pisarno[],ROW()-ROW(Odmiki_stroškov_za_pisarno[[#Headers],[Jul]]),1),INDEX(Načrtovani_stroški_za_pisarno[],,1),0),MATCH(Odmiki_stroškov_za_pisarno[[#Headers],[Jul]],Dejanski_stroški_za_pisarno[#Headers],0))","v":{"v":200,"d":"200.00 €"}},{"$f":"INDEX(Načrtovani_stroški_za_pisarno[],MATCH(INDEX(Odmiki_stroškov_za_pisarno[],ROW()-ROW(Odmiki_stroškov_za_pisarno[[#Headers],[Avg]]),1),INDEX(Načrtovani_stroški_za_pisarno[],,1),0),MATCH(Odmiki_stroškov_za_pisarno[[#Headers],[Avg]],Načrtovani_stroški_za_pisarno[#Headers],0))-INDEX(Dejanski_stroški_za_pisarno[],MATCH(INDEX(Odmiki_stroškov_za_pisarno[],ROW()-ROW(Odmiki_stroškov_za_pisarno[[#Headers],[Avg]]),1),INDEX(Načrtovani_stroški_za_pisarno[],,1),0),MATCH(Odmiki_stroškov_za_pisarno[[#Headers],[Avg]],Dejanski_stroški_za_pisarno[#Headers],0))","v":{"v":200,"d":"200.00 €"}},{"$f":"INDEX(Načrtovani_stroški_za_pisarno[],MATCH(INDEX(Odmiki_stroškov_za_pisarno[],ROW()-ROW(Odmiki_stroškov_za_pisarno[[#Headers],[Sep]]),1),INDEX(Načrtovani_stroški_za_pisarno[],,1),0),MATCH(Odmiki_stroškov_za_pisarno[[#Headers],[Sep]],Načrtovani_stroški_za_pisarno[#Headers],0))-INDEX(Dejanski_stroški_za_pisarno[],MATCH(INDEX(Odmiki_stroškov_za_pisarno[],ROW()-ROW(Odmiki_stroškov_za_pisarno[[#Headers],[Sep]]),1),INDEX(Načrtovani_stroški_za_pisarno[],,1),0),MATCH(Odmiki_stroškov_za_pisarno[[#Headers],[Sep]],Dejanski_stroški_za_pisarno[#Headers],0))","v":{"v":200,"d":"200.00 €"}},{"$f":"INDEX(Načrtovani_stroški_za_pisarno[],MATCH(INDEX(Odmiki_stroškov_za_pisarno[],ROW()-ROW(Odmiki_stroškov_za_pisarno[[#Headers],[Okt]]),1),INDEX(Načrtovani_stroški_za_pisarno[],,1),0),MATCH(Odmiki_stroškov_za_pisarno[[#Headers],[Okt]],Načrtovani_stroški_za_pisarno[#Headers],0))-INDEX(Dejanski_stroški_za_pisarno[],MATCH(INDEX(Odmiki_stroškov_za_pisarno[],ROW()-ROW(Odmiki_stroškov_za_pisarno[[#Headers],[Okt]]),1),INDEX(Načrtovani_stroški_za_pisarno[],,1),0),MATCH(Odmiki_stroškov_za_pisarno[[#Headers],[Okt]],Dejanski_stroški_za_pisarno[#Headers],0))","v":{"v":200,"d":"200.00 €"}},{"$f":"INDEX(Načrtovani_stroški_za_pisarno[],MATCH(INDEX(Odmiki_stroškov_za_pisarno[],ROW()-ROW(Odmiki_stroškov_za_pisarno[[#Headers],[Nov]]),1),INDEX(Načrtovani_stroški_za_pisarno[],,1),0),MATCH(Odmiki_stroškov_za_pisarno[[#Headers],[Nov]],Načrtovani_stroški_za_pisarno[#Headers],0))-INDEX(Dejanski_stroški_za_pisarno[],MATCH(INDEX(Odmiki_stroškov_za_pisarno[],ROW()-ROW(Odmiki_stroškov_za_pisarno[[#Headers],[Nov]]),1),INDEX(Načrtovani_stroški_za_pisarno[],,1),0),MATCH(Odmiki_stroškov_za_pisarno[[#Headers],[Nov]],Dejanski_stroški_za_pisarno[#Headers],0))","v":{"v":200,"d":"200.00 €"}},{"$f":"INDEX(Načrtovani_stroški_za_pisarno[],MATCH(INDEX(Odmiki_stroškov_za_pisarno[],ROW()-ROW(Odmiki_stroškov_za_pisarno[[#Headers],[Dec]]),1),INDEX(Načrtovani_stroški_za_pisarno[],,1),0),MATCH(Odmiki_stroškov_za_pisarno[[#Headers],[Dec]],Načrtovani_stroški_za_pisarno[#Headers],0))-INDEX(Dejanski_stroški_za_pisarno[],MATCH(INDEX(Odmiki_stroškov_za_pisarno[],ROW()-ROW(Odmiki_stroškov_za_pisarno[[#Headers],[Dec]]),1),INDEX(Načrtovani_stroški_za_pisarno[],,1),0),MATCH(Odmiki_stroškov_za_pisarno[[#Headers],[Dec]],Dejanski_stroški_za_pisarno[#Headers],0))","v":{"v":200,"d":"200.00 €"}},{"$f":"SUM(Odmiki_stroškov_za_pisarno[[#This Row],[Jan]:[Dec]])","v":{"v":1125,"d":"1,125.00 €"}}]
[null,"Varnost",{"$f":"INDEX(Načrtovani_stroški_za_pisarno[],MATCH(INDEX(Odmiki_stroškov_za_pisarno[],ROW()-ROW(Odmiki_stroškov_za_pisarno[[#Headers],[Jan]]),1),INDEX(Načrtovani_stroški_za_pisarno[],,1),0),MATCH(Odmiki_stroškov_za_pisarno[[#Headers],[Jan]],Načrtovani_stroški_za_pisarno[#Headers],0))-INDEX(Dejanski_stroški_za_pisarno[],MATCH(INDEX(Odmiki_stroškov_za_pisarno[],ROW()-ROW(Odmiki_stroškov_za_pisarno[[#Headers],[Jan]]),1),INDEX(Načrtovani_stroški_za_pisarno[],,1),0),MATCH(Odmiki_stroškov_za_pisarno[[#Headers],[Jan]],Dejanski_stroški_za_pisarno[#Headers],0))","v":{"v":0,"d":"0.00 €"}},{"$f":"INDEX(Načrtovani_stroški_za_pisarno[],MATCH(INDEX(Odmiki_stroškov_za_pisarno[],ROW()-ROW(Odmiki_stroškov_za_pisarno[[#Headers],[Feb]]),1),INDEX(Načrtovani_stroški_za_pisarno[],,1),0),MATCH(Odmiki_stroškov_za_pisarno[[#Headers],[Feb]],Načrtovani_stroški_za_pisarno[#Headers],0))-INDEX(Dejanski_stroški_za_pisarno[],MATCH(INDEX(Odmiki_stroškov_za_pisarno[],ROW()-ROW(Odmiki_stroškov_za_pisarno[[#Headers],[Feb]]),1),INDEX(Načrtovani_stroški_za_pisarno[],,1),0),MATCH(Odmiki_stroškov_za_pisarno[[#Headers],[Feb]],Dejanski_stroški_za_pisarno[#Headers],0))","v":{"v":0,"d":"0.00 €"}},{"$f":"INDEX(Načrtovani_stroški_za_pisarno[],MATCH(INDEX(Odmiki_stroškov_za_pisarno[],ROW()-ROW(Odmiki_stroškov_za_pisarno[[#Headers],[Mar]]),1),INDEX(Načrtovani_stroški_za_pisarno[],,1),0),MATCH(Odmiki_stroškov_za_pisarno[[#Headers],[Mar]],Načrtovani_stroški_za_pisarno[#Headers],0))-INDEX(Dejanski_stroški_za_pisarno[],MATCH(INDEX(Odmiki_stroškov_za_pisarno[],ROW()-ROW(Odmiki_stroškov_za_pisarno[[#Headers],[Mar]]),1),INDEX(Načrtovani_stroški_za_pisarno[],,1),0),MATCH(Odmiki_stroškov_za_pisarno[[#Headers],[Mar]],Dejanski_stroški_za_pisarno[#Headers],0))","v":{"v":0,"d":"0.00 €"}},{"$f":"INDEX(Načrtovani_stroški_za_pisarno[],MATCH(INDEX(Odmiki_stroškov_za_pisarno[],ROW()-ROW(Odmiki_stroškov_za_pisarno[[#Headers],[Apr]]),1),INDEX(Načrtovani_stroški_za_pisarno[],,1),0),MATCH(Odmiki_stroškov_za_pisarno[[#Headers],[Apr]],Načrtovani_stroški_za_pisarno[#Headers],0))-INDEX(Dejanski_stroški_za_pisarno[],MATCH(INDEX(Odmiki_stroškov_za_pisarno[],ROW()-ROW(Odmiki_stroškov_za_pisarno[[#Headers],[Apr]]),1),INDEX(Načrtovani_stroški_za_pisarno[],,1),0),MATCH(Odmiki_stroškov_za_pisarno[[#Headers],[Apr]],Dejanski_stroški_za_pisarno[#Headers],0))","v":{"v":0,"d":"0.00 €"}},{"$f":"INDEX(Načrtovani_stroški_za_pisarno[],MATCH(INDEX(Odmiki_stroškov_za_pisarno[],ROW()-ROW(Odmiki_stroškov_za_pisarno[[#Headers],[Maj]]),1),INDEX(Načrtovani_stroški_za_pisarno[],,1),0),MATCH(Odmiki_stroškov_za_pisarno[[#Headers],[Maj]],Načrtovani_stroški_za_pisarno[#Headers],0))-INDEX(Dejanski_stroški_za_pisarno[],MATCH(INDEX(Odmiki_stroškov_za_pisarno[],ROW()-ROW(Odmiki_stroškov_za_pisarno[[#Headers],[Maj]]),1),INDEX(Načrtovani_stroški_za_pisarno[],,1),0),MATCH(Odmiki_stroškov_za_pisarno[[#Headers],[Maj]],Dejanski_stroški_za_pisarno[#Headers],0))","v":{"v":0,"d":"0.00 €"}},{"$f":"INDEX(Načrtovani_stroški_za_pisarno[],MATCH(INDEX(Odmiki_stroškov_za_pisarno[],ROW()-ROW(Odmiki_stroškov_za_pisarno[[#Headers],[Jun]]),1),INDEX(Načrtovani_stroški_za_pisarno[],,1),0),MATCH(Odmiki_stroškov_za_pisarno[[#Headers],[Jun]],Načrtovani_stroški_za_pisarno[#Headers],0))-INDEX(Dejanski_stroški_za_pisarno[],MATCH(INDEX(Odmiki_stroškov_za_pisarno[],ROW()-ROW(Odmiki_stroškov_za_pisarno[[#Headers],[Jun]]),1),INDEX(Načrtovani_stroški_za_pisarno[],,1),0),MATCH(Odmiki_stroškov_za_pisarno[[#Headers],[Jun]],Dejanski_stroški_za_pisarno[#Headers],0))","v":{"v":0,"d":"0.00 €"}},{"$f":"INDEX(Načrtovani_stroški_za_pisarno[],MATCH(INDEX(Odmiki_stroškov_za_pisarno[],ROW()-ROW(Odmiki_stroškov_za_pisarno[[#Headers],[Jul]]),1),INDEX(Načrtovani_stroški_za_pisarno[],,1),0),MATCH(Odmiki_stroškov_za_pisarno[[#Headers],[Jul]],Načrtovani_stroški_za_pisarno[#Headers],0))-INDEX(Dejanski_stroški_za_pisarno[],MATCH(INDEX(Odmiki_stroškov_za_pisarno[],ROW()-ROW(Odmiki_stroškov_za_pisarno[[#Headers],[Jul]]),1),INDEX(Načrtovani_stroški_za_pisarno[],,1),0),MATCH(Odmiki_stroškov_za_pisarno[[#Headers],[Jul]],Dejanski_stroški_za_pisarno[#Headers],0))","v":{"v":600,"d":"600.00 €"}},{"$f":"INDEX(Načrtovani_stroški_za_pisarno[],MATCH(INDEX(Odmiki_stroškov_za_pisarno[],ROW()-ROW(Odmiki_stroškov_za_pisarno[[#Headers],[Avg]]),1),INDEX(Načrtovani_stroški_za_pisarno[],,1),0),MATCH(Odmiki_stroškov_za_pisarno[[#Headers],[Avg]],Načrtovani_stroški_za_pisarno[#Headers],0))-INDEX(Dejanski_stroški_za_pisarno[],MATCH(INDEX(Odmiki_stroškov_za_pisarno[],ROW()-ROW(Odmiki_stroškov_za_pisarno[[#Headers],[Avg]]),1),INDEX(Načrtovani_stroški_za_pisarno[],,1),0),MATCH(Odmiki_stroškov_za_pisarno[[#Headers],[Avg]],Dejanski_stroški_za_pisarno[#Headers],0))","v":{"v":600,"d":"600.00 €"}},{"$f":"INDEX(Načrtovani_stroški_za_pisarno[],MATCH(INDEX(Odmiki_stroškov_za_pisarno[],ROW()-ROW(Odmiki_stroškov_za_pisarno[[#Headers],[Sep]]),1),INDEX(Načrtovani_stroški_za_pisarno[],,1),0),MATCH(Odmiki_stroškov_za_pisarno[[#Headers],[Sep]],Načrtovani_stroški_za_pisarno[#Headers],0))-INDEX(Dejanski_stroški_za_pisarno[],MATCH(INDEX(Odmiki_stroškov_za_pisarno[],ROW()-ROW(Odmiki_stroškov_za_pisarno[[#Headers],[Sep]]),1),INDEX(Načrtovani_stroški_za_pisarno[],,1),0),MATCH(Odmiki_stroškov_za_pisarno[[#Headers],[Sep]],Dejanski_stroški_za_pisarno[#Headers],0))","v":{"v":600,"d":"600.00 €"}},{"$f":"INDEX(Načrtovani_stroški_za_pisarno[],MATCH(INDEX(Odmiki_stroškov_za_pisarno[],ROW()-ROW(Odmiki_stroškov_za_pisarno[[#Headers],[Okt]]),1),INDEX(Načrtovani_stroški_za_pisarno[],,1),0),MATCH(Odmiki_stroškov_za_pisarno[[#Headers],[Okt]],Načrtovani_stroški_za_pisarno[#Headers],0))-INDEX(Dejanski_stroški_za_pisarno[],MATCH(INDEX(Odmiki_stroškov_za_pisarno[],ROW()-ROW(Odmiki_stroškov_za_pisarno[[#Headers],[Okt]]),1),INDEX(Načrtovani_stroški_za_pisarno[],,1),0),MATCH(Odmiki_stroškov_za_pisarno[[#Headers],[Okt]],Dejanski_stroški_za_pisarno[#Headers],0))","v":{"v":600,"d":"600.00 €"}},{"$f":"INDEX(Načrtovani_stroški_za_pisarno[],MATCH(INDEX(Odmiki_stroškov_za_pisarno[],ROW()-ROW(Odmiki_stroškov_za_pisarno[[#Headers],[Nov]]),1),INDEX(Načrtovani_stroški_za_pisarno[],,1),0),MATCH(Odmiki_stroškov_za_pisarno[[#Headers],[Nov]],Načrtovani_stroški_za_pisarno[#Headers],0))-INDEX(Dejanski_stroški_za_pisarno[],MATCH(INDEX(Odmiki_stroškov_za_pisarno[],ROW()-ROW(Odmiki_stroškov_za_pisarno[[#Headers],[Nov]]),1),INDEX(Načrtovani_stroški_za_pisarno[],,1),0),MATCH(Odmiki_stroškov_za_pisarno[[#Headers],[Nov]],Dejanski_stroški_za_pisarno[#Headers],0))","v":{"v":600,"d":"600.00 €"}},{"$f":"INDEX(Načrtovani_stroški_za_pisarno[],MATCH(INDEX(Odmiki_stroškov_za_pisarno[],ROW()-ROW(Odmiki_stroškov_za_pisarno[[#Headers],[Dec]]),1),INDEX(Načrtovani_stroški_za_pisarno[],,1),0),MATCH(Odmiki_stroškov_za_pisarno[[#Headers],[Dec]],Načrtovani_stroški_za_pisarno[#Headers],0))-INDEX(Dejanski_stroški_za_pisarno[],MATCH(INDEX(Odmiki_stroškov_za_pisarno[],ROW()-ROW(Odmiki_stroškov_za_pisarno[[#Headers],[Dec]]),1),INDEX(Načrtovani_stroški_za_pisarno[],,1),0),MATCH(Odmiki_stroškov_za_pisarno[[#Headers],[Dec]],Dejanski_stroški_za_pisarno[#Headers],0))","v":{"v":600,"d":"600.00 €"}},{"$f":"SUM(Odmiki_stroškov_za_pisarno[[#This Row],[Jan]:[Dec]])","v":{"v":3600,"d":"3,600.00 €"}}]
[null,"Delna vsota",{"$f":"SUBTOTAL(109,Odmiki_stroškov_za_pisarno[Jan])","v":{"v":-17,"d":"-17.00 €"}},{"$f":"SUBTOTAL(109,Odmiki_stroškov_za_pisarno[Feb])","v":{"v":72,"d":"72.00 €"}},{"$f":"SUBTOTAL(109,Odmiki_stroškov_za_pisarno[Mar])","v":{"v":78,"d":"78.00 €"}},{"$f":"SUBTOTAL(109,Odmiki_stroškov_za_pisarno[Apr])","v":{"v":-141,"d":"-141.00 €"}},{"$f":"SUBTOTAL(109,Odmiki_stroškov_za_pisarno[Maj])","v":{"v":-38,"d":"-38.00 €"}},{"$f":"SUBTOTAL(109,Odmiki_stroškov_za_pisarno[Jun])","v":{"v":16,"d":"16.00 €"}},{"$f":"SUBTOTAL(109,Odmiki_stroškov_za_pisarno[Jul])","v":{"v":11470,"d":"11,470.00 €"}},{"$f":"SUBTOTAL(109,Odmiki_stroškov_za_pisarno[Avg])","v":{"v":11470,"d":"11,470.00 €"}},{"$f":"SUBTOTAL(109,Odmiki_stroškov_za_pisarno[Sep])","v":{"v":11470,"d":"11,470.00 €"}},{"$f":"SUBTOTAL(109,Odmiki_stroškov_za_pisarno[Okt])","v":{"v":11470,"d":"11,470.00 €"}},{"$f":"SUBTOTAL(109,Odmiki_stroškov_za_pisarno[Nov])","v":{"v":11770,"d":"11,770.00 €"}},{"$f":"SUBTOTAL(109,Odmiki_stroškov_za_pisarno[Dec])","v":{"v":11770,"d":"11,770.00 €"}},{"$f":"SUBTOTAL(109,Odmiki_stroškov_za_pisarno[LETO])","v":{"v":69390,"d":"69,390.00 €"}}]
[]
["Odmik stroškov za trženje se samodejno izračuna v tabeli »Odmiki stroškov trženja«. Izračun se začne v celici na desni. Naslednji korak je v celici A30.","Trženje","Jan","Feb","Mar","Apr","Maj","Jun","Jul","Avg","Sep","Okt","Nov","Dec","LETO"]
[null,"Gostovanje spletnega mesta",{"$f":"INDEX(Načrtovani_stroški_trženja[],MATCH(INDEX(Odmiki_stroškov_trženja[],ROW()-ROW(Odmiki_stroškov_trženja[[#Headers],[Jan]]),1),INDEX(Načrtovani_stroški_trženja[],,1),0),MATCH(Odmiki_stroškov_trženja[[#Headers],[Jan]],Načrtovani_stroški_trženja[#Headers],0))-INDEX(Dejanski_stroški_trženja[],MATCH(INDEX(Odmiki_stroškov_trženja[],ROW()-ROW(Odmiki_stroškov_trženja[[#Headers],[Jan]]),1),INDEX(Načrtovani_stroški_trženja[],,1),0),MATCH(Odmiki_stroškov_trženja[[#Headers],[Jan]],Dejanski_stroški_trženja[#Headers],0))","v":{"v":0,"d":"0.00 €"}},{"$f":"INDEX(Načrtovani_stroški_trženja[],MATCH(INDEX(Odmiki_stroškov_trženja[],ROW()-ROW(Odmiki_stroškov_trženja[[#Headers],[Feb]]),1),INDEX(Načrtovani_stroški_trženja[],,1),0),MATCH(Odmiki_stroškov_trženja[[#Headers],[Feb]],Načrtovani_stroški_trženja[#Headers],0))-INDEX(Dejanski_stroški_trženja[],MATCH(INDEX(Odmiki_stroškov_trženja[],ROW()-ROW(Odmiki_stroškov_trženja[[#Headers],[Feb]]),1),INDEX(Načrtovani_stroški_trženja[],,1),0),MATCH(Odmiki_stroškov_trženja[[#Headers],[Feb]],Dejanski_stroški_trženja[#Headers],0))","v":{"v":0,"d":"0.00 €"}},{"$f":"INDEX(Načrtovani_stroški_trženja[],MATCH(INDEX(Odmiki_stroškov_trženja[],ROW()-ROW(Odmiki_stroškov_trženja[[#Headers],[Mar]]),1),INDEX(Načrtovani_stroški_trženja[],,1),0),MATCH(Odmiki_stroškov_trženja[[#Headers],[Mar]],Načrtovani_stroški_trženja[#Headers],0))-INDEX(Dejanski_stroški_trženja[],MATCH(INDEX(Odmiki_stroškov_trženja[],ROW()-ROW(Odmiki_stroškov_trženja[[#Headers],[Mar]]),1),INDEX(Načrtovani_stroški_trženja[],,1),0),MATCH(Odmiki_stroškov_trženja[[#Headers],[Mar]],Dejanski_stroški_trženja[#Headers],0))","v":{"v":0,"d":"0.00 €"}},{"$f":"INDEX(Načrtovani_stroški_trženja[],MATCH(INDEX(Odmiki_stroškov_trženja[],ROW()-ROW(Odmiki_stroškov_trženja[[#Headers],[Apr]]),1),INDEX(Načrtovani_stroški_trženja[],,1),0),MATCH(Odmiki_stroškov_trženja[[#Headers],[Apr]],Načrtovani_stroški_trženja[#Headers],0))-INDEX(Dejanski_stroški_trženja[],MATCH(INDEX(Odmiki_stroškov_trženja[],ROW()-ROW(Odmiki_stroškov_trženja[[#Headers],[Apr]]),1),INDEX(Načrtovani_stroški_trženja[],,1),0),MATCH(Odmiki_stroškov_trženja[[#Headers],[Apr]],Dejanski_stroški_trženja[#Headers],0))","v":{"v":0,"d":"0.00 €"}},{"$f":"INDEX(Načrtovani_stroški_trženja[],MATCH(INDEX(Odmiki_stroškov_trženja[],ROW()-ROW(Odmiki_stroškov_trženja[[#Headers],[Maj]]),1),INDEX(Načrtovani_stroški_trženja[],,1),0),MATCH(Odmiki_stroškov_trženja[[#Headers],[Maj]],Načrtovani_stroški_trženja[#Headers],0))-INDEX(Dejanski_stroški_trženja[],MATCH(INDEX(Odmiki_stroškov_trženja[],ROW()-ROW(Odmiki_stroškov_trženja[[#Headers],[Maj]]),1),INDEX(Načrtovani_stroški_trženja[],,1),0),MATCH(Odmiki_stroškov_trženja[[#Headers],[Maj]],Dejanski_stroški_trženja[#Headers],0))","v":{"v":0,"d":"0.00 €"}},{"$f":"INDEX(Načrtovani_stroški_trženja[],MATCH(INDEX(Odmiki_stroškov_trženja[],ROW()-ROW(Odmiki_stroškov_trženja[[#Headers],[Jun]]),1),INDEX(Načrtovani_stroški_trženja[],,1),0),MATCH(Odmiki_stroškov_trženja[[#Headers],[Jun]],Načrtovani_stroški_trženja[#Headers],0))-INDEX(Dejanski_stroški_trženja[],MATCH(INDEX(Odmiki_stroškov_trženja[],ROW()-ROW(Odmiki_stroškov_trženja[[#Headers],[Jun]]),1),INDEX(Načrtovani_stroški_trženja[],,1),0),MATCH(Odmiki_stroškov_trženja[[#Headers],[Jun]],Dejanski_stroški_trženja[#Headers],0))","v":{"v":0,"d":"0.00 €"}},{"$f":"INDEX(Načrtovani_stroški_trženja[],MATCH(INDEX(Odmiki_stroškov_trženja[],ROW()-ROW(Odmiki_stroškov_trženja[[#Headers],[Jul]]),1),INDEX(Načrtovani_stroški_trženja[],,1),0),MATCH(Odmiki_stroškov_trženja[[#Headers],[Jul]],Načrtovani_stroški_trženja[#Headers],0))-INDEX(Dejanski_stroški_trženja[],MATCH(INDEX(Odmiki_stroškov_trženja[],ROW()-ROW(Odmiki_stroškov_trženja[[#Headers],[Jul]]),1),INDEX(Načrtovani_stroški_trženja[],,1),0),MATCH(Odmiki_stroškov_trženja[[#Headers],[Jul]],Dejanski_stroški_trženja[#Headers],0))","v":{"v":500,"d":"500.00 €"}},{"$f":"INDEX(Načrtovani_stroški_trženja[],MATCH(INDEX(Odmiki_stroškov_trženja[],ROW()-ROW(Odmiki_stroškov_trženja[[#Headers],[Avg]]),1),INDEX(Načrtovani_stroški_trženja[],,1),0),MATCH(Odmiki_stroškov_trženja[[#Headers],[Avg]],Načrtovani_stroški_trženja[#Headers],0))-INDEX(Dejanski_stroški_trženja[],MATCH(INDEX(Odmiki_stroškov_trženja[],ROW()-ROW(Odmiki_stroškov_trženja[[#Headers],[Avg]]),1),INDEX(Načrtovani_stroški_trženja[],,1),0),MATCH(Odmiki_stroškov_trženja[[#Headers],[Avg]],Dejanski_stroški_trženja[#Headers],0))","v":{"v":500,"d":"500.00 €"}},{"$f":"INDEX(Načrtovani_stroški_trženja[],MATCH(INDEX(Odmiki_stroškov_trženja[],ROW()-ROW(Odmiki_stroškov_trženja[[#Headers],[Sep]]),1),INDEX(Načrtovani_stroški_trženja[],,1),0),MATCH(Odmiki_stroškov_trženja[[#Headers],[Sep]],Načrtovani_stroški_trženja[#Headers],0))-INDEX(Dejanski_stroški_trženja[],MATCH(INDEX(Odmiki_stroškov_trženja[],ROW()-ROW(Odmiki_stroškov_trženja[[#Headers],[Sep]]),1),INDEX(Načrtovani_stroški_trženja[],,1),0),MATCH(Odmiki_stroškov_trženja[[#Headers],[Sep]],Dejanski_stroški_trženja[#Headers],0))","v":{"v":500,"d":"500.00 €"}},{"$f":"INDEX(Načrtovani_stroški_trženja[],MATCH(INDEX(Odmiki_stroškov_trženja[],ROW()-ROW(Odmiki_stroškov_trženja[[#Headers],[Okt]]),1),INDEX(Načrtovani_stroški_trženja[],,1),0),MATCH(Odmiki_stroškov_trženja[[#Headers],[Okt]],Načrtovani_stroški_trženja[#Headers],0))-INDEX(Dejanski_stroški_trženja[],MATCH(INDEX(Odmiki_stroškov_trženja[],ROW()-ROW(Odmiki_stroškov_trženja[[#Headers],[Okt]]),1),INDEX(Načrtovani_stroški_trženja[],,1),0),MATCH(Odmiki_stroškov_trženja[[#Headers],[Okt]],Dejanski_stroški_trženja[#Headers],0))","v":{"v":500,"d":"500.00 €"}},{"$f":"INDEX(Načrtovani_stroški_trženja[],MATCH(INDEX(Odmiki_stroškov_trženja[],ROW()-ROW(Odmiki_stroškov_trženja[[#Headers],[Nov]]),1),INDEX(Načrtovani_stroški_trženja[],,1),0),MATCH(Odmiki_stroškov_trženja[[#Headers],[Nov]],Načrtovani_stroški_trženja[#Headers],0))-INDEX(Dejanski_stroški_trženja[],MATCH(INDEX(Odmiki_stroškov_trženja[],ROW()-ROW(Odmiki_stroškov_trženja[[#Headers],[Nov]]),1),INDEX(Načrtovani_stroški_trženja[],,1),0),MATCH(Odmiki_stroškov_trženja[[#Headers],[Nov]],Dejanski_stroški_trženja[#Headers],0))","v":{"v":500,"d":"500.00 €"}},{"$f":"INDEX(Načrtovani_stroški_trženja[],MATCH(INDEX(Odmiki_stroškov_trženja[],ROW()-ROW(Odmiki_stroškov_trženja[[#Headers],[Dec]]),1),INDEX(Načrtovani_stroški_trženja[],,1),0),MATCH(Odmiki_stroškov_trženja[[#Headers],[Dec]],Načrtovani_stroški_trženja[#Headers],0))-INDEX(Dejanski_stroški_trženja[],MATCH(INDEX(Odmiki_stroškov_trženja[],ROW()-ROW(Odmiki_stroškov_trženja[[#Headers],[Dec]]),1),INDEX(Načrtovani_stroški_trženja[],,1),0),MATCH(Odmiki_stroškov_trženja[[#Headers],[Dec]],Dejanski_stroški_trženja[#Headers],0))","v":{"v":500,"d":"500.00 €"}},{"$f":"SUM(Odmiki_stroškov_trženja[[#This Row],[Jan]:[Dec]])","v":{"v":3000,"d":"3,000.00 €"}}]
[null,"Posodobitve spletnega mesta",{"$f":"INDEX(Načrtovani_stroški_trženja[],MATCH(INDEX(Odmiki_stroškov_trženja[],ROW()-ROW(Odmiki_stroškov_trženja[[#Headers],[Jan]]),1),INDEX(Načrtovani_stroški_trženja[],,1),0),MATCH(Odmiki_stroškov_trženja[[#Headers],[Jan]],Načrtovani_stroški_trženja[#Headers],0))-INDEX(Dejanski_stroški_trženja[],MATCH(INDEX(Odmiki_stroškov_trženja[],ROW()-ROW(Odmiki_stroškov_trženja[[#Headers],[Jan]]),1),INDEX(Načrtovani_stroški_trženja[],,1),0),MATCH(Odmiki_stroškov_trženja[[#Headers],[Jan]],Dejanski_stroški_trženja[#Headers],0))","v":{"v":0,"d":"0.00 €"}},{"$f":"INDEX(Načrtovani_stroški_trženja[],MATCH(INDEX(Odmiki_stroškov_trženja[],ROW()-ROW(Odmiki_stroškov_trženja[[#Headers],[Feb]]),1),INDEX(Načrtovani_stroški_trženja[],,1),0),MATCH(Odmiki_stroškov_trženja[[#Headers],[Feb]],Načrtovani_stroški_trženja[#Headers],0))-INDEX(Dejanski_stroški_trženja[],MATCH(INDEX(Odmiki_stroškov_trženja[],ROW()-ROW(Odmiki_stroškov_trženja[[#Headers],[Feb]]),1),INDEX(Načrtovani_stroški_trženja[],,1),0),MATCH(Odmiki_stroškov_trženja[[#Headers],[Feb]],Dejanski_stroški_trženja[#Headers],0))","v":{"v":0,"d":"0.00 €"}},{"$f":"INDEX(Načrtovani_stroški_trženja[],MATCH(INDEX(Odmiki_stroškov_trženja[],ROW()-ROW(Odmiki_stroškov_trženja[[#Headers],[Mar]]),1),INDEX(Načrtovani_stroški_trženja[],,1),0),MATCH(Odmiki_stroškov_trženja[[#Headers],[Mar]],Načrtovani_stroški_trženja[#Headers],0))-INDEX(Dejanski_stroški_trženja[],MATCH(INDEX(Odmiki_stroškov_trženja[],ROW()-ROW(Odmiki_stroškov_trženja[[#Headers],[Mar]]),1),INDEX(Načrtovani_stroški_trženja[],,1),0),MATCH(Odmiki_stroškov_trženja[[#Headers],[Mar]],Dejanski_stroški_trženja[#Headers],0))","v":{"v":0,"d":"0.00 €"}},{"$f":"INDEX(Načrtovani_stroški_trženja[],MATCH(INDEX(Odmiki_stroškov_trženja[],ROW()-ROW(Odmiki_stroškov_trženja[[#Headers],[Apr]]),1),INDEX(Načrtovani_stroški_trženja[],,1),0),MATCH(Odmiki_stroškov_trženja[[#Headers],[Apr]],Načrtovani_stroški_trženja[#Headers],0))-INDEX(Dejanski_stroški_trženja[],MATCH(INDEX(Odmiki_stroškov_trženja[],ROW()-ROW(Odmiki_stroškov_trženja[[#Headers],[Apr]]),1),INDEX(Načrtovani_stroški_trženja[],,1),0),MATCH(Odmiki_stroškov_trženja[[#Headers],[Apr]],Dejanski_stroški_trženja[#Headers],0))","v":{"v":0,"d":"0.00 €"}},{"$f":"INDEX(Načrtovani_stroški_trženja[],MATCH(INDEX(Odmiki_stroškov_trženja[],ROW()-ROW(Odmiki_stroškov_trženja[[#Headers],[Maj]]),1),INDEX(Načrtovani_stroški_trženja[],,1),0),MATCH(Odmiki_stroškov_trženja[[#Headers],[Maj]],Načrtovani_stroški_trženja[#Headers],0))-INDEX(Dejanski_stroški_trženja[],MATCH(INDEX(Odmiki_stroškov_trženja[],ROW()-ROW(Odmiki_stroškov_trženja[[#Headers],[Maj]]),1),INDEX(Načrtovani_stroški_trženja[],,1),0),MATCH(Odmiki_stroškov_trženja[[#Headers],[Maj]],Dejanski_stroški_trženja[#Headers],0))","v":{"v":0,"d":"0.00 €"}},{"$f":"INDEX(Načrtovani_stroški_trženja[],MATCH(INDEX(Odmiki_stroškov_trženja[],ROW()-ROW(Odmiki_stroškov_trženja[[#Headers],[Jun]]),1),INDEX(Načrtovani_stroški_trženja[],,1),0),MATCH(Odmiki_stroškov_trženja[[#Headers],[Jun]],Načrtovani_stroški_trženja[#Headers],0))-INDEX(Dejanski_stroški_trženja[],MATCH(INDEX(Odmiki_stroškov_trženja[],ROW()-ROW(Odmiki_stroškov_trženja[[#Headers],[Jun]]),1),INDEX(Načrtovani_stroški_trženja[],,1),0),MATCH(Odmiki_stroškov_trženja[[#Headers],[Jun]],Dejanski_stroški_trženja[#Headers],0))","v":{"v":-500,"d":"-500.00 €"}},{"$f":"INDEX(Načrtovani_stroški_trženja[],MATCH(INDEX(Odmiki_stroškov_trženja[],ROW()-ROW(Odmiki_stroškov_trženja[[#Headers],[Jul]]),1),INDEX(Načrtovani_stroški_trženja[],,1),0),MATCH(Odmiki_stroškov_trženja[[#Headers],[Jul]],Načrtovani_stroški_trženja[#Headers],0))-INDEX(Dejanski_stroški_trženja[],MATCH(INDEX(Odmiki_stroškov_trženja[],ROW()-ROW(Odmiki_stroškov_trženja[[#Headers],[Jul]]),1),INDEX(Načrtovani_stroški_trženja[],,1),0),MATCH(Odmiki_stroškov_trženja[[#Headers],[Jul]],Dejanski_stroški_trženja[#Headers],0))","v":{"v":200,"d":"200.00 €"}},{"$f":"INDEX(Načrtovani_stroški_trženja[],MATCH(INDEX(Odmiki_stroškov_trženja[],ROW()-ROW(Odmiki_stroškov_trženja[[#Headers],[Avg]]),1),INDEX(Načrtovani_stroški_trženja[],,1),0),MATCH(Odmiki_stroškov_trženja[[#Headers],[Avg]],Načrtovani_stroški_trženja[#Headers],0))-INDEX(Dejanski_stroški_trženja[],MATCH(INDEX(Odmiki_stroškov_trženja[],ROW()-ROW(Odmiki_stroškov_trženja[[#Headers],[Avg]]),1),INDEX(Načrtovani_stroški_trženja[],,1),0),MATCH(Odmiki_stroškov_trženja[[#Headers],[Avg]],Dejanski_stroški_trženja[#Headers],0))","v":{"v":200,"d":"200.00 €"}},{"$f":"INDEX(Načrtovani_stroški_trženja[],MATCH(INDEX(Odmiki_stroškov_trženja[],ROW()-ROW(Odmiki_stroškov_trženja[[#Headers],[Sep]]),1),INDEX(Načrtovani_stroški_trženja[],,1),0),MATCH(Odmiki_stroškov_trženja[[#Headers],[Sep]],Načrtovani_stroški_trženja[#Headers],0))-INDEX(Dejanski_stroški_trženja[],MATCH(INDEX(Odmiki_stroškov_trženja[],ROW()-ROW(Odmiki_stroškov_trženja[[#Headers],[Sep]]),1),INDEX(Načrtovani_stroški_trženja[],,1),0),MATCH(Odmiki_stroškov_trženja[[#Headers],[Sep]],Dejanski_stroški_trženja[#Headers],0))","v":{"v":200,"d":"200.00 €"}},{"$f":"INDEX(Načrtovani_stroški_trženja[],MATCH(INDEX(Odmiki_stroškov_trženja[],ROW()-ROW(Odmiki_stroškov_trženja[[#Headers],[Okt]]),1),INDEX(Načrtovani_stroški_trženja[],,1),0),MATCH(Odmiki_stroškov_trženja[[#Headers],[Okt]],Načrtovani_stroški_trženja[#Headers],0))-INDEX(Dejanski_stroški_trženja[],MATCH(INDEX(Odmiki_stroškov_trženja[],ROW()-ROW(Odmiki_stroškov_trženja[[#Headers],[Okt]]),1),INDEX(Načrtovani_stroški_trženja[],,1),0),MATCH(Odmiki_stroškov_trženja[[#Headers],[Okt]],Dejanski_stroški_trženja[#Headers],0))","v":{"v":200,"d":"200.00 €"}},{"$f":"INDEX(Načrtovani_stroški_trženja[],MATCH(INDEX(Odmiki_stroškov_trženja[],ROW()-ROW(Odmiki_stroškov_trženja[[#Headers],[Nov]]),1),INDEX(Načrtovani_stroški_trženja[],,1),0),MATCH(Odmiki_stroškov_trženja[[#Headers],[Nov]],Načrtovani_stroški_trženja[#Headers],0))-INDEX(Dejanski_stroški_trženja[],MATCH(INDEX(Odmiki_stroškov_trženja[],ROW()-ROW(Odmiki_stroškov_trženja[[#Headers],[Nov]]),1),INDEX(Načrtovani_stroški_trženja[],,1),0),MATCH(Odmiki_stroškov_trženja[[#Headers],[Nov]],Dejanski_stroški_trženja[#Headers],0))","v":{"v":200,"d":"200.00 €"}},{"$f":"INDEX(Načrtovani_stroški_trženja[],MATCH(INDEX(Odmiki_stroškov_trženja[],ROW()-ROW(Odmiki_stroškov_trženja[[#Headers],[Dec]]),1),INDEX(Načrtovani_stroški_trženja[],,1),0),MATCH(Odmiki_stroškov_trženja[[#Headers],[Dec]],Načrtovani_stroški_trženja[#Headers],0))-INDEX(Dejanski_stroški_trženja[],MATCH(INDEX(Odmiki_stroškov_trženja[],ROW()-ROW(Odmiki_stroškov_trženja[[#Headers],[Dec]]),1),INDEX(Načrtovani_stroški_trženja[],,1),0),MATCH(Odmiki_stroškov_trženja[[#Headers],[Dec]],Dejanski_stroški_trženja[#Headers],0))","v":{"v":1000,"d":"1,000.00 €"}},{"$f":"SUM(Odmiki_stroškov_trženja[[#This Row],[Jan]:[Dec]])","v":{"v":1500,"d":"1,500.00 €"}}]
[null,"Dodatne priprave",{"$f":"INDEX(Načrtovani_stroški_trženja[],MATCH(INDEX(Odmiki_stroškov_trženja[],ROW()-ROW(Odmiki_stroškov_trženja[[#Headers],[Jan]]),1),INDEX(Načrtovani_stroški_trženja[],,1),0),MATCH(Odmiki_stroškov_trženja[[#Headers],[Jan]],Načrtovani_stroški_trženja[#Headers],0))-INDEX(Dejanski_stroški_trženja[],MATCH(INDEX(Odmiki_stroškov_trženja[],ROW()-ROW(Odmiki_stroškov_trženja[[#Headers],[Jan]]),1),INDEX(Načrtovani_stroški_trženja[],,1),0),MATCH(Odmiki_stroškov_trženja[[#Headers],[Jan]],Dejanski_stroški_trženja[#Headers],0))","v":{"v":200,"d":"200.00 €"}},{"$f":"INDEX(Načrtovani_stroški_trženja[],MATCH(INDEX(Odmiki_stroškov_trženja[],ROW()-ROW(Odmiki_stroškov_trženja[[#Headers],[Feb]]),1),INDEX(Načrtovani_stroški_trženja[],,1),0),MATCH(Odmiki_stroškov_trženja[[#Headers],[Feb]],Načrtovani_stroški_trženja[#Headers],0))-INDEX(Dejanski_stroški_trženja[],MATCH(INDEX(Odmiki_stroškov_trženja[],ROW()-ROW(Odmiki_stroškov_trženja[[#Headers],[Feb]]),1),INDEX(Načrtovani_stroški_trženja[],,1),0),MATCH(Odmiki_stroškov_trženja[[#Headers],[Feb]],Dejanski_stroški_trženja[#Headers],0))","v":{"v":0,"d":"0.00 €"}},{"$f":"INDEX(Načrtovani_stroški_trženja[],MATCH(INDEX(Odmiki_stroškov_trženja[],ROW()-ROW(Odmiki_stroškov_trženja[[#Headers],[Mar]]),1),INDEX(Načrtovani_stroški_trženja[],,1),0),MATCH(Odmiki_stroškov_trženja[[#Headers],[Mar]],Načrtovani_stroški_trženja[#Headers],0))-INDEX(Dejanski_stroški_trženja[],MATCH(INDEX(Odmiki_stroškov_trženja[],ROW()-ROW(Odmiki_stroškov_trženja[[#Headers],[Mar]]),1),INDEX(Načrtovani_stroški_trženja[],,1),0),MATCH(Odmiki_stroškov_trženja[[#Headers],[Mar]],Dejanski_stroški_trženja[#Headers],0))","v":{"v":0,"d":"0.00 €"}},{"$f":"INDEX(Načrtovani_stroški_trženja[],MATCH(INDEX(Odmiki_stroškov_trženja[],ROW()-ROW(Odmiki_stroškov_trženja[[#Headers],[Apr]]),1),INDEX(Načrtovani_stroški_trženja[],,1),0),MATCH(Odmiki_stroškov_trženja[[#Headers],[Apr]],Načrtovani_stroški_trženja[#Headers],0))-INDEX(Dejanski_stroški_trženja[],MATCH(INDEX(Odmiki_stroškov_trženja[],ROW()-ROW(Odmiki_stroškov_trženja[[#Headers],[Apr]]),1),INDEX(Načrtovani_stroški_trženja[],,1),0),MATCH(Odmiki_stroškov_trženja[[#Headers],[Apr]],Dejanski_stroški_trženja[#Headers],0))","v":{"v":-500,"d":"-500.00 €"}},{"$f":"INDEX(Načrtovani_stroški_trženja[],MATCH(INDEX(Odmiki_stroškov_trženja[],ROW()-ROW(Odmiki_stroškov_trženja[[#Headers],[Maj]]),1),INDEX(Načrtovani_stroški_trženja[],,1),0),MATCH(Odmiki_stroškov_trženja[[#Headers],[Maj]],Načrtovani_stroški_trženja[#Headers],0))-INDEX(Dejanski_stroški_trženja[],MATCH(INDEX(Odmiki_stroškov_trženja[],ROW()-ROW(Odmiki_stroškov_trženja[[#Headers],[Maj]]),1),INDEX(Načrtovani_stroški_trženja[],,1),0),MATCH(Odmiki_stroškov_trženja[[#Headers],[Maj]],Dejanski_stroški_trženja[#Headers],0))","v":{"v":0,"d":"0.00 €"}},{"$f":"INDEX(Načrtovani_stroški_trženja[],MATCH(INDEX(Odmiki_stroškov_trženja[],ROW()-ROW(Odmiki_stroškov_trženja[[#Headers],[Jun]]),1),INDEX(Načrtovani_stroški_trženja[],,1),0),MATCH(Odmiki_stroškov_trženja[[#Headers],[Jun]],Načrtovani_stroški_trženja[#Headers],0))-INDEX(Dejanski_stroški_trženja[],MATCH(INDEX(Odmiki_stroškov_trženja[],ROW()-ROW(Odmiki_stroškov_trženja[[#Headers],[Jun]]),1),INDEX(Načrtovani_stroški_trženja[],,1),0),MATCH(Odmiki_stroškov_trženja[[#Headers],[Jun]],Dejanski_stroški_trženja[#Headers],0))","v":{"v":0,"d":"0.00 €"}},{"$f":"INDEX(Načrtovani_stroški_trženja[],MATCH(INDEX(Odmiki_stroškov_trženja[],ROW()-ROW(Odmiki_stroškov_trženja[[#Headers],[Jul]]),1),INDEX(Načrtovani_stroški_trženja[],,1),0),MATCH(Odmiki_stroškov_trženja[[#Headers],[Jul]],Načrtovani_stroški_trženja[#Headers],0))-INDEX(Dejanski_stroški_trženja[],MATCH(INDEX(Odmiki_stroškov_trženja[],ROW()-ROW(Odmiki_stroškov_trženja[[#Headers],[Jul]]),1),INDEX(Načrtovani_stroški_trženja[],,1),0),MATCH(Odmiki_stroškov_trženja[[#Headers],[Jul]],Dejanski_stroški_trženja[#Headers],0))","v":{"v":5000,"d":"5,000.00 €"}},{"$f":"INDEX(Načrtovani_stroški_trženja[],MATCH(INDEX(Odmiki_stroškov_trženja[],ROW()-ROW(Odmiki_stroškov_trženja[[#Headers],[Avg]]),1),INDEX(Načrtovani_stroški_trženja[],,1),0),MATCH(Odmiki_stroškov_trženja[[#Headers],[Avg]],Načrtovani_stroški_trženja[#Headers],0))-INDEX(Dejanski_stroški_trženja[],MATCH(INDEX(Odmiki_stroškov_trženja[],ROW()-ROW(Odmiki_stroškov_trženja[[#Headers],[Avg]]),1),INDEX(Načrtovani_stroški_trženja[],,1),0),MATCH(Odmiki_stroškov_trženja[[#Headers],[Avg]],Dejanski_stroški_trženja[#Headers],0))","v":{"v":0,"d":"0.00 €"}},{"$f":"INDEX(Načrtovani_stroški_trženja[],MATCH(INDEX(Odmiki_stroškov_trženja[],ROW()-ROW(Odmiki_stroškov_trženja[[#Headers],[Sep]]),1),INDEX(Načrtovani_stroški_trženja[],,1),0),MATCH(Odmiki_stroškov_trženja[[#Headers],[Sep]],Načrtovani_stroški_trženja[#Headers],0))-INDEX(Dejanski_stroški_trženja[],MATCH(INDEX(Odmiki_stroškov_trženja[],ROW()-ROW(Odmiki_stroškov_trženja[[#Headers],[Sep]]),1),INDEX(Načrtovani_stroški_trženja[],,1),0),MATCH(Odmiki_stroškov_trženja[[#Headers],[Sep]],Dejanski_stroški_trženja[#Headers],0))","v":{"v":0,"d":"0.00 €"}},{"$f":"INDEX(Načrtovani_stroški_trženja[],MATCH(INDEX(Odmiki_stroškov_trženja[],ROW()-ROW(Odmiki_stroškov_trženja[[#Headers],[Okt]]),1),INDEX(Načrtovani_stroški_trženja[],,1),0),MATCH(Odmiki_stroškov_trženja[[#Headers],[Okt]],Načrtovani_stroški_trženja[#Headers],0))-INDEX(Dejanski_stroški_trženja[],MATCH(INDEX(Odmiki_stroškov_trženja[],ROW()-ROW(Odmiki_stroškov_trženja[[#Headers],[Okt]]),1),INDEX(Načrtovani_stroški_trženja[],,1),0),MATCH(Odmiki_stroškov_trženja[[#Headers],[Okt]],Dejanski_stroški_trženja[#Headers],0))","v":{"v":5000,"d":"5,000.00 €"}},{"$f":"INDEX(Načrtovani_stroški_trženja[],MATCH(INDEX(Odmiki_stroškov_trženja[],ROW()-ROW(Odmiki_stroškov_trženja[[#Headers],[Nov]]),1),INDEX(Načrtovani_stroški_trženja[],,1),0),MATCH(Odmiki_stroškov_trženja[[#Headers],[Nov]],Načrtovani_stroški_trženja[#Headers],0))-INDEX(Dejanski_stroški_trženja[],MATCH(INDEX(Odmiki_stroškov_trženja[],ROW()-ROW(Odmiki_stroškov_trženja[[#Headers],[Nov]]),1),INDEX(Načrtovani_stroški_trženja[],,1),0),MATCH(Odmiki_stroškov_trženja[[#Headers],[Nov]],Dejanski_stroški_trženja[#Headers],0))","v":{"v":0,"d":"0.00 €"}},{"$f":"INDEX(Načrtovani_stroški_trženja[],MATCH(INDEX(Odmiki_stroškov_trženja[],ROW()-ROW(Odmiki_stroškov_trženja[[#Headers],[Dec]]),1),INDEX(Načrtovani_stroški_trženja[],,1),0),MATCH(Odmiki_stroškov_trženja[[#Headers],[Dec]],Načrtovani_stroški_trženja[#Headers],0))-INDEX(Dejanski_stroški_trženja[],MATCH(INDEX(Odmiki_stroškov_trženja[],ROW()-ROW(Odmiki_stroškov_trženja[[#Headers],[Dec]]),1),INDEX(Načrtovani_stroški_trženja[],,1),0),MATCH(Odmiki_stroškov_trženja[[#Headers],[Dec]],Dejanski_stroški_trženja[#Headers],0))","v":{"v":0,"d":"0.00 €"}},{"$f":"SUM(Odmiki_stroškov_trženja[[#This Row],[Jan]:[Dec]])","v":{"v":9700,"d":"9,700.00 €"}}]
[null,"Dodatno tiskanje",{"$f":"INDEX(Načrtovani_stroški_trženja[],MATCH(INDEX(Odmiki_stroškov_trženja[],ROW()-ROW(Odmiki_stroškov_trženja[[#Headers],[Jan]]),1),INDEX(Načrtovani_stroški_trženja[],,1),0),MATCH(Odmiki_stroškov_trženja[[#Headers],[Jan]],Načrtovani_stroški_trženja[#Headers],0))-INDEX(Dejanski_stroški_trženja[],MATCH(INDEX(Odmiki_stroškov_trženja[],ROW()-ROW(Odmiki_stroškov_trženja[[#Headers],[Jan]]),1),INDEX(Načrtovani_stroški_trženja[],,1),0),MATCH(Odmiki_stroškov_trženja[[#Headers],[Jan]],Dejanski_stroški_trženja[#Headers],0))","v":{"v":100,"d":"100.00 €"}},{"$f":"INDEX(Načrtovani_stroški_trženja[],MATCH(INDEX(Odmiki_stroškov_trženja[],ROW()-ROW(Odmiki_stroškov_trženja[[#Headers],[Feb]]),1),INDEX(Načrtovani_stroški_trženja[],,1),0),MATCH(Odmiki_stroškov_trženja[[#Headers],[Feb]],Načrtovani_stroški_trženja[#Headers],0))-INDEX(Dejanski_stroški_trženja[],MATCH(INDEX(Odmiki_stroškov_trženja[],ROW()-ROW(Odmiki_stroškov_trženja[[#Headers],[Feb]]),1),INDEX(Načrtovani_stroški_trženja[],,1),0),MATCH(Odmiki_stroškov_trženja[[#Headers],[Feb]],Dejanski_stroški_trženja[#Headers],0))","v":{"v":-300,"d":"-300.00 €"}},{"$f":"INDEX(Načrtovani_stroški_trženja[],MATCH(INDEX(Odmiki_stroškov_trženja[],ROW()-ROW(Odmiki_stroškov_trženja[[#Headers],[Mar]]),1),INDEX(Načrtovani_stroški_trženja[],,1),0),MATCH(Odmiki_stroškov_trženja[[#Headers],[Mar]],Načrtovani_stroški_trženja[#Headers],0))-INDEX(Dejanski_stroški_trženja[],MATCH(INDEX(Odmiki_stroškov_trženja[],ROW()-ROW(Odmiki_stroškov_trženja[[#Headers],[Mar]]),1),INDEX(Načrtovani_stroški_trženja[],,1),0),MATCH(Odmiki_stroškov_trženja[[#Headers],[Mar]],Dejanski_stroški_trženja[#Headers],0))","v":{"v":100,"d":"100.00 €"}},{"$f":"INDEX(Načrtovani_stroški_trženja[],MATCH(INDEX(Odmiki_stroškov_trženja[],ROW()-ROW(Odmiki_stroškov_trženja[[#Headers],[Apr]]),1),INDEX(Načrtovani_stroški_trženja[],,1),0),MATCH(Odmiki_stroškov_trženja[[#Headers],[Apr]],Načrtovani_stroški_trženja[#Headers],0))-INDEX(Dejanski_stroški_trženja[],MATCH(INDEX(Odmiki_stroškov_trženja[],ROW()-ROW(Odmiki_stroškov_trženja[[#Headers],[Apr]]),1),INDEX(Načrtovani_stroški_trženja[],,1),0),MATCH(Odmiki_stroškov_trženja[[#Headers],[Apr]],Dejanski_stroški_trženja[#Headers],0))","v":{"v":100,"d":"100.00 €"}},{"$f":"INDEX(Načrtovani_stroški_trženja[],MATCH(INDEX(Odmiki_stroškov_trženja[],ROW()-ROW(Odmiki_stroškov_trženja[[#Headers],[Maj]]),1),INDEX(Načrtovani_stroški_trženja[],,1),0),MATCH(Odmiki_stroškov_trženja[[#Headers],[Maj]],Načrtovani_stroški_trženja[#Headers],0))-INDEX(Dejanski_stroški_trženja[],MATCH(INDEX(Odmiki_stroškov_trženja[],ROW()-ROW(Odmiki_stroškov_trženja[[#Headers],[Maj]]),1),INDEX(Načrtovani_stroški_trženja[],,1),0),MATCH(Odmiki_stroškov_trženja[[#Headers],[Maj]],Dejanski_stroški_trženja[#Headers],0))","v":{"v":-400,"d":"-400.00 €"}},{"$f":"INDEX(Načrtovani_stroški_trženja[],MATCH(INDEX(Odmiki_stroškov_trženja[],ROW()-ROW(Odmiki_stroškov_trženja[[#Headers],[Jun]]),1),INDEX(Načrtovani_stroški_trženja[],,1),0),MATCH(Odmiki_stroškov_trženja[[#Headers],[Jun]],Načrtovani_stroški_trženja[#Headers],0))-INDEX(Dejanski_stroški_trženja[],MATCH(INDEX(Odmiki_stroškov_trženja[],ROW()-ROW(Odmiki_stroškov_trženja[[#Headers],[Jun]]),1),INDEX(Načrtovani_stroški_trženja[],,1),0),MATCH(Odmiki_stroškov_trženja[[#Headers],[Jun]],Dejanski_stroški_trženja[#Headers],0))","v":{"v":20,"d":"20.00 €"}},{"$f":"INDEX(Načrtovani_stroški_trženja[],MATCH(INDEX(Odmiki_stroškov_trženja[],ROW()-ROW(Odmiki_stroškov_trženja[[#Headers],[Jul]]),1),INDEX(Načrtovani_stroški_trženja[],,1),0),MATCH(Odmiki_stroškov_trženja[[#Headers],[Jul]],Načrtovani_stroški_trženja[#Headers],0))-INDEX(Dejanski_stroški_trženja[],MATCH(INDEX(Odmiki_stroškov_trženja[],ROW()-ROW(Odmiki_stroškov_trženja[[#Headers],[Jul]]),1),INDEX(Načrtovani_stroški_trženja[],,1),0),MATCH(Odmiki_stroškov_trženja[[#Headers],[Jul]],Dejanski_stroški_trženja[#Headers],0))","v":{"v":200,"d":"200.00 €"}},{"$f":"INDEX(Načrtovani_stroški_trženja[],MATCH(INDEX(Odmiki_stroškov_trženja[],ROW()-ROW(Odmiki_stroškov_trženja[[#Headers],[Avg]]),1),INDEX(Načrtovani_stroški_trženja[],,1),0),MATCH(Odmiki_stroškov_trženja[[#Headers],[Avg]],Načrtovani_stroški_trženja[#Headers],0))-INDEX(Dejanski_stroški_trženja[],MATCH(INDEX(Odmiki_stroškov_trženja[],ROW()-ROW(Odmiki_stroškov_trženja[[#Headers],[Avg]]),1),INDEX(Načrtovani_stroški_trženja[],,1),0),MATCH(Odmiki_stroškov_trženja[[#Headers],[Avg]],Dejanski_stroški_trženja[#Headers],0))","v":{"v":200,"d":"200.00 €"}},{"$f":"INDEX(Načrtovani_stroški_trženja[],MATCH(INDEX(Odmiki_stroškov_trženja[],ROW()-ROW(Odmiki_stroškov_trženja[[#Headers],[Sep]]),1),INDEX(Načrtovani_stroški_trženja[],,1),0),MATCH(Odmiki_stroškov_trženja[[#Headers],[Sep]],Načrtovani_stroški_trženja[#Headers],0))-INDEX(Dejanski_stroški_trženja[],MATCH(INDEX(Odmiki_stroškov_trženja[],ROW()-ROW(Odmiki_stroškov_trženja[[#Headers],[Sep]]),1),INDEX(Načrtovani_stroški_trženja[],,1),0),MATCH(Odmiki_stroškov_trženja[[#Headers],[Sep]],Dejanski_stroški_trženja[#Headers],0))","v":{"v":200,"d":"200.00 €"}},{"$f":"INDEX(Načrtovani_stroški_trženja[],MATCH(INDEX(Odmiki_stroškov_trženja[],ROW()-ROW(Odmiki_stroškov_trženja[[#Headers],[Okt]]),1),INDEX(Načrtovani_stroški_trženja[],,1),0),MATCH(Odmiki_stroškov_trženja[[#Headers],[Okt]],Načrtovani_stroški_trženja[#Headers],0))-INDEX(Dejanski_stroški_trženja[],MATCH(INDEX(Odmiki_stroškov_trženja[],ROW()-ROW(Odmiki_stroškov_trženja[[#Headers],[Okt]]),1),INDEX(Načrtovani_stroški_trženja[],,1),0),MATCH(Odmiki_stroškov_trženja[[#Headers],[Okt]],Dejanski_stroški_trženja[#Headers],0))","v":{"v":200,"d":"200.00 €"}},{"$f":"INDEX(Načrtovani_stroški_trženja[],MATCH(INDEX(Odmiki_stroškov_trženja[],ROW()-ROW(Odmiki_stroškov_trženja[[#Headers],[Nov]]),1),INDEX(Načrtovani_stroški_trženja[],,1),0),MATCH(Odmiki_stroškov_trženja[[#Headers],[Nov]],Načrtovani_stroški_trženja[#Headers],0))-INDEX(Dejanski_stroški_trženja[],MATCH(INDEX(Odmiki_stroškov_trženja[],ROW()-ROW(Odmiki_stroškov_trženja[[#Headers],[Nov]]),1),INDEX(Načrtovani_stroški_trženja[],,1),0),MATCH(Odmiki_stroškov_trženja[[#Headers],[Nov]],Dejanski_stroški_trženja[#Headers],0))","v":{"v":200,"d":"200.00 €"}},{"$f":"INDEX(Načrtovani_stroški_trženja[],MATCH(INDEX(Odmiki_stroškov_trženja[],ROW()-ROW(Odmiki_stroškov_trženja[[#Headers],[Dec]]),1),INDEX(Načrtovani_stroški_trženja[],,1),0),MATCH(Odmiki_stroškov_trženja[[#Headers],[Dec]],Načrtovani_stroški_trženja[#Headers],0))-INDEX(Dejanski_stroški_trženja[],MATCH(INDEX(Odmiki_stroškov_trženja[],ROW()-ROW(Odmiki_stroškov_trženja[[#Headers],[Dec]]),1),INDEX(Načrtovani_stroški_trženja[],,1),0),MATCH(Odmiki_stroškov_trženja[[#Headers],[Dec]],Dejanski_stroški_trženja[#Headers],0))","v":{"v":200,"d":"200.00 €"}},{"$f":"SUM(Odmiki_stroškov_trženja[[#This Row],[Jan]:[Dec]])","v":{"v":820,"d":"820.00 €"}}]
[null,"Trženjski dogodki",{"$f":"INDEX(Načrtovani_stroški_trženja[],MATCH(INDEX(Odmiki_stroškov_trženja[],ROW()-ROW(Odmiki_stroškov_trženja[[#Headers],[Jan]]),1),INDEX(Načrtovani_stroški_trženja[],,1),0),MATCH(Odmiki_stroškov_trženja[[#Headers],[Jan]],Načrtovani_stroški_trženja[#Headers],0))-INDEX(Dejanski_stroški_trženja[],MATCH(INDEX(Odmiki_stroškov_trženja[],ROW()-ROW(Odmiki_stroškov_trženja[[#Headers],[Jan]]),1),INDEX(Načrtovani_stroški_trženja[],,1),0),MATCH(Odmiki_stroškov_trženja[[#Headers],[Jan]],Dejanski_stroški_trženja[#Headers],0))","v":{"v":200,"d":"200.00 €"}},{"$f":"INDEX(Načrtovani_stroški_trženja[],MATCH(INDEX(Odmiki_stroškov_trženja[],ROW()-ROW(Odmiki_stroškov_trženja[[#Headers],[Feb]]),1),INDEX(Načrtovani_stroški_trženja[],,1),0),MATCH(Odmiki_stroškov_trženja[[#Headers],[Feb]],Načrtovani_stroški_trženja[#Headers],0))-INDEX(Dejanski_stroški_trženja[],MATCH(INDEX(Odmiki_stroškov_trženja[],ROW()-ROW(Odmiki_stroškov_trženja[[#Headers],[Feb]]),1),INDEX(Načrtovani_stroški_trženja[],,1),0),MATCH(Odmiki_stroškov_trženja[[#Headers],[Feb]],Dejanski_stroški_trženja[#Headers],0))","v":{"v":-200,"d":"-200.00 €"}},{"$f":"INDEX(Načrtovani_stroški_trženja[],MATCH(INDEX(Odmiki_stroškov_trženja[],ROW()-ROW(Odmiki_stroškov_trženja[[#Headers],[Mar]]),1),INDEX(Načrtovani_stroški_trženja[],,1),0),MATCH(Odmiki_stroškov_trženja[[#Headers],[Mar]],Načrtovani_stroški_trženja[#Headers],0))-INDEX(Dejanski_stroški_trženja[],MATCH(INDEX(Odmiki_stroškov_trženja[],ROW()-ROW(Odmiki_stroškov_trženja[[#Headers],[Mar]]),1),INDEX(Načrtovani_stroški_trženja[],,1),0),MATCH(Odmiki_stroškov_trženja[[#Headers],[Mar]],Dejanski_stroški_trženja[#Headers],0))","v":{"v":-200,"d":"-200.00 €"}},{"$f":"INDEX(Načrtovani_stroški_trženja[],MATCH(INDEX(Odmiki_stroškov_trženja[],ROW()-ROW(Odmiki_stroškov_trženja[[#Headers],[Apr]]),1),INDEX(Načrtovani_stroški_trženja[],,1),0),MATCH(Odmiki_stroškov_trženja[[#Headers],[Apr]],Načrtovani_stroški_trženja[#Headers],0))-INDEX(Dejanski_stroški_trženja[],MATCH(INDEX(Odmiki_stroškov_trženja[],ROW()-ROW(Odmiki_stroškov_trženja[[#Headers],[Apr]]),1),INDEX(Načrtovani_stroški_trženja[],,1),0),MATCH(Odmiki_stroškov_trženja[[#Headers],[Apr]],Dejanski_stroški_trženja[#Headers],0))","v":{"v":300,"d":"300.00 €"}},{"$f":"INDEX(Načrtovani_stroški_trženja[],MATCH(INDEX(Odmiki_stroškov_trženja[],ROW()-ROW(Odmiki_stroškov_trženja[[#Headers],[Maj]]),1),INDEX(Načrtovani_stroški_trženja[],,1),0),MATCH(Odmiki_stroškov_trženja[[#Headers],[Maj]],Načrtovani_stroški_trženja[#Headers],0))-INDEX(Dejanski_stroški_trženja[],MATCH(INDEX(Odmiki_stroškov_trženja[],ROW()-ROW(Odmiki_stroškov_trženja[[#Headers],[Maj]]),1),INDEX(Načrtovani_stroški_trženja[],,1),0),MATCH(Odmiki_stroškov_trženja[[#Headers],[Maj]],Dejanski_stroški_trženja[#Headers],0))","v":{"v":500,"d":"500.00 €"}},{"$f":"INDEX(Načrtovani_stroški_trženja[],MATCH(INDEX(Odmiki_stroškov_trženja[],ROW()-ROW(Odmiki_stroškov_trženja[[#Headers],[Jun]]),1),INDEX(Načrtovani_stroški_trženja[],,1),0),MATCH(Odmiki_stroškov_trženja[[#Headers],[Jun]],Načrtovani_stroški_trženja[#Headers],0))-INDEX(Dejanski_stroški_trženja[],MATCH(INDEX(Odmiki_stroškov_trženja[],ROW()-ROW(Odmiki_stroškov_trženja[[#Headers],[Jun]]),1),INDEX(Načrtovani_stroški_trženja[],,1),0),MATCH(Odmiki_stroškov_trženja[[#Headers],[Jun]],Dejanski_stroški_trženja[#Headers],0))","v":{"v":-300,"d":"-300.00 €"}},{"$f":"INDEX(Načrtovani_stroški_trženja[],MATCH(INDEX(Odmiki_stroškov_trženja[],ROW()-ROW(Odmiki_stroškov_trženja[[#Headers],[Jul]]),1),INDEX(Načrtovani_stroški_trženja[],,1),0),MATCH(Odmiki_stroškov_trženja[[#Headers],[Jul]],Načrtovani_stroški_trženja[#Headers],0))-INDEX(Dejanski_stroški_trženja[],MATCH(INDEX(Odmiki_stroškov_trženja[],ROW()-ROW(Odmiki_stroškov_trženja[[#Headers],[Jul]]),1),INDEX(Načrtovani_stroški_trženja[],,1),0),MATCH(Odmiki_stroškov_trženja[[#Headers],[Jul]],Dejanski_stroški_trženja[#Headers],0))","v":{"v":2000,"d":"2,000.00 €"}},{"$f":"INDEX(Načrtovani_stroški_trženja[],MATCH(INDEX(Odmiki_stroškov_trženja[],ROW()-ROW(Odmiki_stroškov_trženja[[#Headers],[Avg]]),1),INDEX(Načrtovani_stroški_trženja[],,1),0),MATCH(Odmiki_stroškov_trženja[[#Headers],[Avg]],Načrtovani_stroški_trženja[#Headers],0))-INDEX(Dejanski_stroški_trženja[],MATCH(INDEX(Odmiki_stroškov_trženja[],ROW()-ROW(Odmiki_stroškov_trženja[[#Headers],[Avg]]),1),INDEX(Načrtovani_stroški_trženja[],,1),0),MATCH(Odmiki_stroškov_trženja[[#Headers],[Avg]],Dejanski_stroški_trženja[#Headers],0))","v":{"v":5000,"d":"5,000.00 €"}},{"$f":"INDEX(Načrtovani_stroški_trženja[],MATCH(INDEX(Odmiki_stroškov_trženja[],ROW()-ROW(Odmiki_stroškov_trženja[[#Headers],[Sep]]),1),INDEX(Načrtovani_stroški_trženja[],,1),0),MATCH(Odmiki_stroškov_trženja[[#Headers],[Sep]],Načrtovani_stroški_trženja[#Headers],0))-INDEX(Dejanski_stroški_trženja[],MATCH(INDEX(Odmiki_stroškov_trženja[],ROW()-ROW(Odmiki_stroškov_trženja[[#Headers],[Sep]]),1),INDEX(Načrtovani_stroški_trženja[],,1),0),MATCH(Odmiki_stroškov_trženja[[#Headers],[Sep]],Dejanski_stroški_trženja[#Headers],0))","v":{"v":2000,"d":"2,000.00 €"}},{"$f":"INDEX(Načrtovani_stroški_trženja[],MATCH(INDEX(Odmiki_stroškov_trženja[],ROW()-ROW(Odmiki_stroškov_trženja[[#Headers],[Okt]]),1),INDEX(Načrtovani_stroški_trženja[],,1),0),MATCH(Odmiki_stroškov_trženja[[#Headers],[Okt]],Načrtovani_stroški_trženja[#Headers],0))-INDEX(Dejanski_stroški_trženja[],MATCH(INDEX(Odmiki_stroškov_trženja[],ROW()-ROW(Odmiki_stroškov_trženja[[#Headers],[Okt]]),1),INDEX(Načrtovani_stroški_trženja[],,1),0),MATCH(Odmiki_stroškov_trženja[[#Headers],[Okt]],Dejanski_stroški_trženja[#Headers],0))","v":{"v":2000,"d":"2,000.00 €"}},{"$f":"INDEX(Načrtovani_stroški_trženja[],MATCH(INDEX(Odmiki_stroškov_trženja[],ROW()-ROW(Odmiki_stroškov_trženja[[#Headers],[Nov]]),1),INDEX(Načrtovani_stroški_trženja[],,1),0),MATCH(Odmiki_stroškov_trženja[[#Headers],[Nov]],Načrtovani_stroški_trženja[#Headers],0))-INDEX(Dejanski_stroški_trženja[],MATCH(INDEX(Odmiki_stroškov_trženja[],ROW()-ROW(Odmiki_stroškov_trženja[[#Headers],[Nov]]),1),INDEX(Načrtovani_stroški_trženja[],,1),0),MATCH(Odmiki_stroškov_trženja[[#Headers],[Nov]],Dejanski_stroški_trženja[#Headers],0))","v":{"v":2000,"d":"2,000.00 €"}},{"$f":"INDEX(Načrtovani_stroški_trženja[],MATCH(INDEX(Odmiki_stroškov_trženja[],ROW()-ROW(Odmiki_stroškov_trženja[[#Headers],[Dec]]),1),INDEX(Načrtovani_stroški_trženja[],,1),0),MATCH(Odmiki_stroškov_trženja[[#Headers],[Dec]],Načrtovani_stroški_trženja[#Headers],0))-INDEX(Dejanski_stroški_trženja[],MATCH(INDEX(Odmiki_stroškov_trženja[],ROW()-ROW(Odmiki_stroškov_trženja[[#Headers],[Dec]]),1),INDEX(Načrtovani_stroški_trženja[],,1),0),MATCH(Odmiki_stroškov_trženja[[#Headers],[Dec]],Dejanski_stroški_trženja[#Headers],0))","v":{"v":5000,"d":"5,000.00 €"}},{"$f":"SUM(Odmiki_stroškov_trženja[[#This Row],[Jan]:[Dec]])","v":{"v":18300,"d":"18,300.00 €"}}]
[null,"Različni stroški",{"$f":"INDEX(Načrtovani_stroški_trženja[],MATCH(INDEX(Odmiki_stroškov_trženja[],ROW()-ROW(Odmiki_stroškov_trženja[[#Headers],[Jan]]),1),INDEX(Načrtovani_stroški_trženja[],,1),0),MATCH(Odmiki_stroškov_trženja[[#Headers],[Jan]],Načrtovani_stroški_trženja[#Headers],0))-INDEX(Dejanski_stroški_trženja[],MATCH(INDEX(Odmiki_stroškov_trženja[],ROW()-ROW(Odmiki_stroškov_trženja[[#Headers],[Jan]]),1),INDEX(Načrtovani_stroški_trženja[],,1),0),MATCH(Odmiki_stroškov_trženja[[#Headers],[Jan]],Dejanski_stroški_trženja[#Headers],0))","v":{"v":55,"d":"55.00 €"}},{"$f":"INDEX(Načrtovani_stroški_trženja[],MATCH(INDEX(Odmiki_stroškov_trženja[],ROW()-ROW(Odmiki_stroškov_trženja[[#Headers],[Feb]]),1),INDEX(Načrtovani_stroški_trženja[],,1),0),MATCH(Odmiki_stroškov_trženja[[#Headers],[Feb]],Načrtovani_stroški_trženja[#Headers],0))-INDEX(Dejanski_stroški_trženja[],MATCH(INDEX(Odmiki_stroškov_trženja[],ROW()-ROW(Odmiki_stroškov_trženja[[#Headers],[Feb]]),1),INDEX(Načrtovani_stroški_trženja[],,1),0),MATCH(Odmiki_stroškov_trženja[[#Headers],[Feb]],Dejanski_stroški_trženja[#Headers],0))","v":{"v":44,"d":"44.00 €"}},{"$f":"INDEX(Načrtovani_stroški_trženja[],MATCH(INDEX(Odmiki_stroškov_trženja[],ROW()-ROW(Odmiki_stroškov_trženja[[#Headers],[Mar]]),1),INDEX(Načrtovani_stroški_trženja[],,1),0),MATCH(Odmiki_stroškov_trženja[[#Headers],[Mar]],Načrtovani_stroški_trženja[#Headers],0))-INDEX(Dejanski_stroški_trženja[],MATCH(INDEX(Odmiki_stroškov_trženja[],ROW()-ROW(Odmiki_stroškov_trženja[[#Headers],[Mar]]),1),INDEX(Načrtovani_stroški_trženja[],,1),0),MATCH(Odmiki_stroškov_trženja[[#Headers],[Mar]],Dejanski_stroški_trženja[#Headers],0))","v":{"v":77,"d":"77.00 €"}},{"$f":"INDEX(Načrtovani_stroški_trženja[],MATCH(INDEX(Odmiki_stroškov_trženja[],ROW()-ROW(Odmiki_stroškov_trženja[[#Headers],[Apr]]),1),INDEX(Načrtovani_stroški_trženja[],,1),0),MATCH(Odmiki_stroškov_trženja[[#Headers],[Apr]],Načrtovani_stroški_trženja[#Headers],0))-INDEX(Dejanski_stroški_trženja[],MATCH(INDEX(Odmiki_stroškov_trženja[],ROW()-ROW(Odmiki_stroškov_trženja[[#Headers],[Apr]]),1),INDEX(Načrtovani_stroški_trženja[],,1),0),MATCH(Odmiki_stroškov_trženja[[#Headers],[Apr]],Dejanski_stroški_trženja[#Headers],0))","v":{"v":-23,"d":"-23.00 €"}},{"$f":"INDEX(Načrtovani_stroški_trženja[],MATCH(INDEX(Odmiki_stroškov_trženja[],ROW()-ROW(Odmiki_stroškov_trženja[[#Headers],[Maj]]),1),INDEX(Načrtovani_stroški_trženja[],,1),0),MATCH(Odmiki_stroškov_trženja[[#Headers],[Maj]],Načrtovani_stroški_trženja[#Headers],0))-INDEX(Dejanski_stroški_trženja[],MATCH(INDEX(Odmiki_stroškov_trženja[],ROW()-ROW(Odmiki_stroškov_trženja[[#Headers],[Maj]]),1),INDEX(Načrtovani_stroški_trženja[],,1),0),MATCH(Odmiki_stroškov_trženja[[#Headers],[Maj]],Dejanski_stroški_trženja[#Headers],0))","v":{"v":13,"d":"13.00 €"}},{"$f":"INDEX(Načrtovani_stroški_trženja[],MATCH(INDEX(Odmiki_stroškov_trženja[],ROW()-ROW(Odmiki_stroškov_trženja[[#Headers],[Jun]]),1),INDEX(Načrtovani_stroški_trženja[],,1),0),MATCH(Odmiki_stroškov_trženja[[#Headers],[Jun]],Načrtovani_stroški_trženja[#Headers],0))-INDEX(Dejanski_stroški_trženja[],MATCH(INDEX(Odmiki_stroškov_trženja[],ROW()-ROW(Odmiki_stroškov_trženja[[#Headers],[Jun]]),1),INDEX(Načrtovani_stroški_trženja[],,1),0),MATCH(Odmiki_stroškov_trženja[[#Headers],[Jun]],Dejanski_stroški_trženja[#Headers],0))","v":{"v":-45,"d":"-45.00 €"}},{"$f":"INDEX(Načrtovani_stroški_trženja[],MATCH(INDEX(Odmiki_stroškov_trženja[],ROW()-ROW(Odmiki_stroškov_trženja[[#Headers],[Jul]]),1),INDEX(Načrtovani_stroški_trženja[],,1),0),MATCH(Odmiki_stroškov_trženja[[#Headers],[Jul]],Načrtovani_stroški_trženja[#Headers],0))-INDEX(Dejanski_stroški_trženja[],MATCH(INDEX(Odmiki_stroškov_trženja[],ROW()-ROW(Odmiki_stroškov_trženja[[#Headers],[Jul]]),1),INDEX(Načrtovani_stroški_trženja[],,1),0),MATCH(Odmiki_stroškov_trženja[[#Headers],[Jul]],Dejanski_stroški_trženja[#Headers],0))","v":{"v":200,"d":"200.00 €"}},{"$f":"INDEX(Načrtovani_stroški_trženja[],MATCH(INDEX(Odmiki_stroškov_trženja[],ROW()-ROW(Odmiki_stroškov_trženja[[#Headers],[Avg]]),1),INDEX(Načrtovani_stroški_trženja[],,1),0),MATCH(Odmiki_stroškov_trženja[[#Headers],[Avg]],Načrtovani_stroški_trženja[#Headers],0))-INDEX(Dejanski_stroški_trženja[],MATCH(INDEX(Odmiki_stroškov_trženja[],ROW()-ROW(Odmiki_stroškov_trženja[[#Headers],[Avg]]),1),INDEX(Načrtovani_stroški_trženja[],,1),0),MATCH(Odmiki_stroškov_trženja[[#Headers],[Avg]],Dejanski_stroški_trženja[#Headers],0))","v":{"v":200,"d":"200.00 €"}},{"$f":"INDEX(Načrtovani_stroški_trženja[],MATCH(INDEX(Odmiki_stroškov_trženja[],ROW()-ROW(Odmiki_stroškov_trženja[[#Headers],[Sep]]),1),INDEX(Načrtovani_stroški_trženja[],,1),0),MATCH(Odmiki_stroškov_trženja[[#Headers],[Sep]],Načrtovani_stroški_trženja[#Headers],0))-INDEX(Dejanski_stroški_trženja[],MATCH(INDEX(Odmiki_stroškov_trženja[],ROW()-ROW(Odmiki_stroškov_trženja[[#Headers],[Sep]]),1),INDEX(Načrtovani_stroški_trženja[],,1),0),MATCH(Odmiki_stroškov_trženja[[#Headers],[Sep]],Dejanski_stroški_trženja[#Headers],0))","v":{"v":200,"d":"200.00 €"}},{"$f":"INDEX(Načrtovani_stroški_trženja[],MATCH(INDEX(Odmiki_stroškov_trženja[],ROW()-ROW(Odmiki_stroškov_trženja[[#Headers],[Okt]]),1),INDEX(Načrtovani_stroški_trženja[],,1),0),MATCH(Odmiki_stroškov_trženja[[#Headers],[Okt]],Načrtovani_stroški_trženja[#Headers],0))-INDEX(Dejanski_stroški_trženja[],MATCH(INDEX(Odmiki_stroškov_trženja[],ROW()-ROW(Odmiki_stroškov_trženja[[#Headers],[Okt]]),1),INDEX(Načrtovani_stroški_trženja[],,1),0),MATCH(Odmiki_stroškov_trženja[[#Headers],[Okt]],Dejanski_stroški_trženja[#Headers],0))","v":{"v":200,"d":"200.00 €"}},{"$f":"INDEX(Načrtovani_stroški_trženja[],MATCH(INDEX(Odmiki_stroškov_trženja[],ROW()-ROW(Odmiki_stroškov_trženja[[#Headers],[Nov]]),1),INDEX(Načrtovani_stroški_trženja[],,1),0),MATCH(Odmiki_stroškov_trženja[[#Headers],[Nov]],Načrtovani_stroški_trženja[#Headers],0))-INDEX(Dejanski_stroški_trženja[],MATCH(INDEX(Odmiki_stroškov_trženja[],ROW()-ROW(Odmiki_stroškov_trženja[[#Headers],[Nov]]),1),INDEX(Načrtovani_stroški_trženja[],,1),0),MATCH(Odmiki_stroškov_trženja[[#Headers],[Nov]],Dejanski_stroški_trženja[#Headers],0))","v":{"v":200,"d":"200.00 €"}},{"$f":"INDEX(Načrtovani_stroški_trženja[],MATCH(INDEX(Odmiki_stroškov_trženja[],ROW()-ROW(Odmiki_stroškov_trženja[[#Headers],[Dec]]),1),INDEX(Načrtovani_stroški_trženja[],,1),0),MATCH(Odmiki_stroškov_trženja[[#Headers],[Dec]],Načrtovani_stroški_trženja[#Headers],0))-INDEX(Dejanski_stroški_trženja[],MATCH(INDEX(Odmiki_stroškov_trženja[],ROW()-ROW(Odmiki_stroškov_trženja[[#Headers],[Dec]]),1),INDEX(Načrtovani_stroški_trženja[],,1),0),MATCH(Odmiki_stroškov_trženja[[#Headers],[Dec]],Dejanski_stroški_trženja[#Headers],0))","v":{"v":200,"d":"200.00 €"}},{"$f":"SUM(Odmiki_stroškov_trženja[[#This Row],[Jan]:[Dec]])","v":{"v":1321,"d":"1,321.00 €"}}]
[null,"Delna vsota",{"$f":"SUBTOTAL(109,Odmiki_stroškov_trženja[Jan])","v":{"v":555,"d":"555.00 €"}},{"$f":"SUBTOTAL(109,Odmiki_stroškov_trženja[Feb])","v":{"v":-456,"d":"-456.00 €"}},{"$f":"SUBTOTAL(109,Odmiki_stroškov_trženja[Mar])","v":{"v":-23,"d":"-23.00 €"}},{"$f":"SUBTOTAL(109,Odmiki_stroškov_trženja[Apr])","v":{"v":-123,"d":"-123.00 €"}},{"$f":"SUBTOTAL(109,Odmiki_stroškov_trženja[Maj])","v":{"v":113,"d":"113.00 €"}},{"$f":"SUBTOTAL(109,Odmiki_stroškov_trženja[Jun])","v":{"v":-825,"d":"-825.00 €"}},{"$f":"SUBTOTAL(109,Odmiki_stroškov_trženja[Jul])","v":{"v":8100,"d":"8,100.00 €"}},{"$f":"SUBTOTAL(109,Odmiki_stroškov_trženja[Avg])","v":{"v":6100,"d":"6,100.00 €"}},{"$f":"SUBTOTAL(109,Odmiki_stroškov_trženja[Sep])","v":{"v":3100,"d":"3,100.00 €"}},{"$f":"SUBTOTAL(109,Odmiki_stroškov_trženja[Okt])","v":{"v":8100,"d":"8,100.00 €"}},{"$f":"SUBTOTAL(109,Odmiki_stroškov_trženja[Nov])","v":{"v":3100,"d":"3,100.00 €"}},{"$f":"SUBTOTAL(109,Odmiki_stroškov_trženja[Dec])","v":{"v":6900,"d":"6,900.00 €"}},{"$f":"SUBTOTAL(109,Odmiki_stroškov_trženja[LETO])","v":{"v":34641,"d":"34,641.00 €"}}]
[]
["Odmik stroškov za usposabljanje in potne stroške se samodejno izračuna v tabeli »Odmiki stroškov usposabljanja in potnih stroškov«. Izračun se začne v celici na desni. Naslednji korak je v celici A35.","Usposabljanje/potovanja","Jan","Feb","Mar","Apr","Maj","Jun","Jul","Avg","Sep","Okt","Nov","Dec","LETO"]
[null,"Učne ure",{"$f":"INDEX(Načrtovani_stroški_usposabljanja_in_potni_stroški[],MATCH(INDEX(Odmiki_stroškov_usposabljanja_in_potnih_stroškov[],ROW()-ROW(Odmiki_stroškov_usposabljanja_in_potnih_stroškov[[#Headers],[Jan]]),1),INDEX(Načrtovani_stroški_usposabljanja_in_potni_stroški[],,1),0),MATCH(Odmiki_stroškov_usposabljanja_in_potnih_stroškov[[#Headers],[Jan]],Načrtovani_stroški_usposabljanja_in_potni_stroški[#Headers],0))-INDEX(Dejanski_stroški_usposabljanja_in_potni_stroški[],MATCH(INDEX(Odmiki_stroškov_usposabljanja_in_potnih_stroškov[],ROW()-ROW(Odmiki_stroškov_usposabljanja_in_potnih_stroškov[[#Headers],[Jan]]),1),INDEX(Načrtovani_stroški_usposabljanja_in_potni_stroški[],,1),0),MATCH(Odmiki_stroškov_usposabljanja_in_potnih_stroškov[[#Headers],[Jan]],Dejanski_stroški_usposabljanja_in_potni_stroški[#Headers],0))","v":{"v":400,"d":"400.00 €"}},{"$f":"INDEX(Načrtovani_stroški_usposabljanja_in_potni_stroški[],MATCH(INDEX(Odmiki_stroškov_usposabljanja_in_potnih_stroškov[],ROW()-ROW(Odmiki_stroškov_usposabljanja_in_potnih_stroškov[[#Headers],[Feb]]),1),INDEX(Načrtovani_stroški_usposabljanja_in_potni_stroški[],,1),0),MATCH(Odmiki_stroškov_usposabljanja_in_potnih_stroškov[[#Headers],[Feb]],Načrtovani_stroški_usposabljanja_in_potni_stroški[#Headers],0))-INDEX(Dejanski_stroški_usposabljanja_in_potni_stroški[],MATCH(INDEX(Odmiki_stroškov_usposabljanja_in_potnih_stroškov[],ROW()-ROW(Odmiki_stroškov_usposabljanja_in_potnih_stroškov[[#Headers],[Feb]]),1),INDEX(Načrtovani_stroški_usposabljanja_in_potni_stroški[],,1),0),MATCH(Odmiki_stroškov_usposabljanja_in_potnih_stroškov[[#Headers],[Feb]],Dejanski_stroški_usposabljanja_in_potni_stroški[#Headers],0))","v":{"v":-400,"d":"-400.00 €"}},{"$f":"INDEX(Načrtovani_stroški_usposabljanja_in_potni_stroški[],MATCH(INDEX(Odmiki_stroškov_usposabljanja_in_potnih_stroškov[],ROW()-ROW(Odmiki_stroškov_usposabljanja_in_potnih_stroškov[[#Headers],[Mar]]),1),INDEX(Načrtovani_stroški_usposabljanja_in_potni_stroški[],,1),0),MATCH(Odmiki_stroškov_usposabljanja_in_potnih_stroškov[[#Headers],[Mar]],Načrtovani_stroški_usposabljanja_in_potni_stroški[#Headers],0))-INDEX(Dejanski_stroški_usposabljanja_in_potni_stroški[],MATCH(INDEX(Odmiki_stroškov_usposabljanja_in_potnih_stroškov[],ROW()-ROW(Odmiki_stroškov_usposabljanja_in_potnih_stroškov[[#Headers],[Mar]]),1),INDEX(Načrtovani_stroški_usposabljanja_in_potni_stroški[],,1),0),MATCH(Odmiki_stroškov_usposabljanja_in_potnih_stroškov[[#Headers],[Mar]],Dejanski_stroški_usposabljanja_in_potni_stroški[#Headers],0))","v":{"v":600,"d":"600.00 €"}},{"$f":"INDEX(Načrtovani_stroški_usposabljanja_in_potni_stroški[],MATCH(INDEX(Odmiki_stroškov_usposabljanja_in_potnih_stroškov[],ROW()-ROW(Odmiki_stroškov_usposabljanja_in_potnih_stroškov[[#Headers],[Apr]]),1),INDEX(Načrtovani_stroški_usposabljanja_in_potni_stroški[],,1),0),MATCH(Odmiki_stroškov_usposabljanja_in_potnih_stroškov[[#Headers],[Apr]],Načrtovani_stroški_usposabljanja_in_potni_stroški[#Headers],0))-INDEX(Dejanski_stroški_usposabljanja_in_potni_stroški[],MATCH(INDEX(Odmiki_stroškov_usposabljanja_in_potnih_stroškov[],ROW()-ROW(Odmiki_stroškov_usposabljanja_in_potnih_stroškov[[#Headers],[Apr]]),1),INDEX(Načrtovani_stroški_usposabljanja_in_potni_stroški[],,1),0),MATCH(Odmiki_stroškov_usposabljanja_in_potnih_stroškov[[#Headers],[Apr]],Dejanski_stroški_usposabljanja_in_potni_stroški[#Headers],0))","v":{"v":400,"d":"400.00 €"}},{"$f":"INDEX(Načrtovani_stroški_usposabljanja_in_potni_stroški[],MATCH(INDEX(Odmiki_stroškov_usposabljanja_in_potnih_stroškov[],ROW()-ROW(Odmiki_stroškov_usposabljanja_in_potnih_stroškov[[#Headers],[Maj]]),1),INDEX(Načrtovani_stroški_usposabljanja_in_potni_stroški[],,1),0),MATCH(Odmiki_stroškov_usposabljanja_in_potnih_stroškov[[#Headers],[Maj]],Načrtovani_stroški_usposabljanja_in_potni_stroški[#Headers],0))-INDEX(Dejanski_stroški_usposabljanja_in_potni_stroški[],MATCH(INDEX(Odmiki_stroškov_usposabljanja_in_potnih_stroškov[],ROW()-ROW(Odmiki_stroškov_usposabljanja_in_potnih_stroškov[[#Headers],[Maj]]),1),INDEX(Načrtovani_stroški_usposabljanja_in_potni_stroški[],,1),0),MATCH(Odmiki_stroškov_usposabljanja_in_potnih_stroškov[[#Headers],[Maj]],Dejanski_stroški_usposabljanja_in_potni_stroški[#Headers],0))","v":{"v":800,"d":"800.00 €"}},{"$f":"INDEX(Načrtovani_stroški_usposabljanja_in_potni_stroški[],MATCH(INDEX(Odmiki_stroškov_usposabljanja_in_potnih_stroškov[],ROW()-ROW(Odmiki_stroškov_usposabljanja_in_potnih_stroškov[[#Headers],[Jun]]),1),INDEX(Načrtovani_stroški_usposabljanja_in_potni_stroški[],,1),0),MATCH(Odmiki_stroškov_usposabljanja_in_potnih_stroškov[[#Headers],[Jun]],Načrtovani_stroški_usposabljanja_in_potni_stroški[#Headers],0))-INDEX(Dejanski_stroški_usposabljanja_in_potni_stroški[],MATCH(INDEX(Odmiki_stroškov_usposabljanja_in_potnih_stroškov[],ROW()-ROW(Odmiki_stroškov_usposabljanja_in_potnih_stroškov[[#Headers],[Jun]]),1),INDEX(Načrtovani_stroški_usposabljanja_in_potni_stroški[],,1),0),MATCH(Odmiki_stroškov_usposabljanja_in_potnih_stroškov[[#Headers],[Jun]],Dejanski_stroški_usposabljanja_in_potni_stroški[#Headers],0))","v":{"v":-800,"d":"-800.00 €"}},{"$f":"INDEX(Načrtovani_stroški_usposabljanja_in_potni_stroški[],MATCH(INDEX(Odmiki_stroškov_usposabljanja_in_potnih_stroškov[],ROW()-ROW(Odmiki_stroškov_usposabljanja_in_potnih_stroškov[[#Headers],[Jul]]),1),INDEX(Načrtovani_stroški_usposabljanja_in_potni_stroški[],,1),0),MATCH(Odmiki_stroškov_usposabljanja_in_potnih_stroškov[[#Headers],[Jul]],Načrtovani_stroški_usposabljanja_in_potni_stroški[#Headers],0))-INDEX(Dejanski_stroški_usposabljanja_in_potni_stroški[],MATCH(INDEX(Odmiki_stroškov_usposabljanja_in_potnih_stroškov[],ROW()-ROW(Odmiki_stroškov_usposabljanja_in_potnih_stroškov[[#Headers],[Jul]]),1),INDEX(Načrtovani_stroški_usposabljanja_in_potni_stroški[],,1),0),MATCH(Odmiki_stroškov_usposabljanja_in_potnih_stroškov[[#Headers],[Jul]],Dejanski_stroški_usposabljanja_in_potni_stroški[#Headers],0))","v":{"v":2000,"d":"2,000.00 €"}},{"$f":"INDEX(Načrtovani_stroški_usposabljanja_in_potni_stroški[],MATCH(INDEX(Odmiki_stroškov_usposabljanja_in_potnih_stroškov[],ROW()-ROW(Odmiki_stroškov_usposabljanja_in_potnih_stroškov[[#Headers],[Avg]]),1),INDEX(Načrtovani_stroški_usposabljanja_in_potni_stroški[],,1),0),MATCH(Odmiki_stroškov_usposabljanja_in_potnih_stroškov[[#Headers],[Avg]],Načrtovani_stroški_usposabljanja_in_potni_stroški[#Headers],0))-INDEX(Dejanski_stroški_usposabljanja_in_potni_stroški[],MATCH(INDEX(Odmiki_stroškov_usposabljanja_in_potnih_stroškov[],ROW()-ROW(Odmiki_stroškov_usposabljanja_in_potnih_stroškov[[#Headers],[Avg]]),1),INDEX(Načrtovani_stroški_usposabljanja_in_potni_stroški[],,1),0),MATCH(Odmiki_stroškov_usposabljanja_in_potnih_stroškov[[#Headers],[Avg]],Dejanski_stroški_usposabljanja_in_potni_stroški[#Headers],0))","v":{"v":2000,"d":"2,000.00 €"}},{"$f":"INDEX(Načrtovani_stroški_usposabljanja_in_potni_stroški[],MATCH(INDEX(Odmiki_stroškov_usposabljanja_in_potnih_stroškov[],ROW()-ROW(Odmiki_stroškov_usposabljanja_in_potnih_stroškov[[#Headers],[Sep]]),1),INDEX(Načrtovani_stroški_usposabljanja_in_potni_stroški[],,1),0),MATCH(Odmiki_stroškov_usposabljanja_in_potnih_stroškov[[#Headers],[Sep]],Načrtovani_stroški_usposabljanja_in_potni_stroški[#Headers],0))-INDEX(Dejanski_stroški_usposabljanja_in_potni_stroški[],MATCH(INDEX(Odmiki_stroškov_usposabljanja_in_potnih_stroškov[],ROW()-ROW(Odmiki_stroškov_usposabljanja_in_potnih_stroškov[[#Headers],[Sep]]),1),INDEX(Načrtovani_stroški_usposabljanja_in_potni_stroški[],,1),0),MATCH(Odmiki_stroškov_usposabljanja_in_potnih_stroškov[[#Headers],[Sep]],Dejanski_stroški_usposabljanja_in_potni_stroški[#Headers],0))","v":{"v":2000,"d":"2,000.00 €"}},{"$f":"INDEX(Načrtovani_stroški_usposabljanja_in_potni_stroški[],MATCH(INDEX(Odmiki_stroškov_usposabljanja_in_potnih_stroškov[],ROW()-ROW(Odmiki_stroškov_usposabljanja_in_potnih_stroškov[[#Headers],[Okt]]),1),INDEX(Načrtovani_stroški_usposabljanja_in_potni_stroški[],,1),0),MATCH(Odmiki_stroškov_usposabljanja_in_potnih_stroškov[[#Headers],[Okt]],Načrtovani_stroški_usposabljanja_in_potni_stroški[#Headers],0))-INDEX(Dejanski_stroški_usposabljanja_in_potni_stroški[],MATCH(INDEX(Odmiki_stroškov_usposabljanja_in_potnih_stroškov[],ROW()-ROW(Odmiki_stroškov_usposabljanja_in_potnih_stroškov[[#Headers],[Okt]]),1),INDEX(Načrtovani_stroški_usposabljanja_in_potni_stroški[],,1),0),MATCH(Odmiki_stroškov_usposabljanja_in_potnih_stroškov[[#Headers],[Okt]],Dejanski_stroški_usposabljanja_in_potni_stroški[#Headers],0))","v":{"v":2000,"d":"2,000.00 €"}},{"$f":"INDEX(Načrtovani_stroški_usposabljanja_in_potni_stroški[],MATCH(INDEX(Odmiki_stroškov_usposabljanja_in_potnih_stroškov[],ROW()-ROW(Odmiki_stroškov_usposabljanja_in_potnih_stroškov[[#Headers],[Nov]]),1),INDEX(Načrtovani_stroški_usposabljanja_in_potni_stroški[],,1),0),MATCH(Odmiki_stroškov_usposabljanja_in_potnih_stroškov[[#Headers],[Nov]],Načrtovani_stroški_usposabljanja_in_potni_stroški[#Headers],0))-INDEX(Dejanski_stroški_usposabljanja_in_potni_stroški[],MATCH(INDEX(Odmiki_stroškov_usposabljanja_in_potnih_stroškov[],ROW()-ROW(Odmiki_stroškov_usposabljanja_in_potnih_stroškov[[#Headers],[Nov]]),1),INDEX(Načrtovani_stroški_usposabljanja_in_potni_stroški[],,1),0),MATCH(Odmiki_stroškov_usposabljanja_in_potnih_stroškov[[#Headers],[Nov]],Dejanski_stroški_usposabljanja_in_potni_stroški[#Headers],0))","v":{"v":2000,"d":"2,000.00 €"}},{"$f":"INDEX(Načrtovani_stroški_usposabljanja_in_potni_stroški[],MATCH(INDEX(Odmiki_stroškov_usposabljanja_in_potnih_stroškov[],ROW()-ROW(Odmiki_stroškov_usposabljanja_in_potnih_stroškov[[#Headers],[Dec]]),1),INDEX(Načrtovani_stroški_usposabljanja_in_potni_stroški[],,1),0),MATCH(Odmiki_stroškov_usposabljanja_in_potnih_stroškov[[#Headers],[Dec]],Načrtovani_stroški_usposabljanja_in_potni_stroški[#Headers],0))-INDEX(Dejanski_stroški_usposabljanja_in_potni_stroški[],MATCH(INDEX(Odmiki_stroškov_usposabljanja_in_potnih_stroškov[],ROW()-ROW(Odmiki_stroškov_usposabljanja_in_potnih_stroškov[[#Headers],[Dec]]),1),INDEX(Načrtovani_stroški_usposabljanja_in_potni_stroški[],,1),0),MATCH(Odmiki_stroškov_usposabljanja_in_potnih_stroškov[[#Headers],[Dec]],Dejanski_stroški_usposabljanja_in_potni_stroški[#Headers],0))","v":{"v":2000,"d":"2,000.00 €"}},{"$f":"SUM(Odmiki_stroškov_usposabljanja_in_potnih_stroškov[[#This Row],[Jan]:[Dec]])","v":{"v":13000,"d":"13,000.00 €"}}]
[null,"Potni stroški zaradi usposabljanja",{"$f":"INDEX(Načrtovani_stroški_usposabljanja_in_potni_stroški[],MATCH(INDEX(Odmiki_stroškov_usposabljanja_in_potnih_stroškov[],ROW()-ROW(Odmiki_stroškov_usposabljanja_in_potnih_stroškov[[#Headers],[Jan]]),1),INDEX(Načrtovani_stroški_usposabljanja_in_potni_stroški[],,1),0),MATCH(Odmiki_stroškov_usposabljanja_in_potnih_stroškov[[#Headers],[Jan]],Načrtovani_stroški_usposabljanja_in_potni_stroški[#Headers],0))-INDEX(Dejanski_stroški_usposabljanja_in_potni_stroški[],MATCH(INDEX(Odmiki_stroškov_usposabljanja_in_potnih_stroškov[],ROW()-ROW(Odmiki_stroškov_usposabljanja_in_potnih_stroškov[[#Headers],[Jan]]),1),INDEX(Načrtovani_stroški_usposabljanja_in_potni_stroški[],,1),0),MATCH(Odmiki_stroškov_usposabljanja_in_potnih_stroškov[[#Headers],[Jan]],Dejanski_stroški_usposabljanja_in_potni_stroški[#Headers],0))","v":{"v":800,"d":"800.00 €"}},{"$f":"INDEX(Načrtovani_stroški_usposabljanja_in_potni_stroški[],MATCH(INDEX(Odmiki_stroškov_usposabljanja_in_potnih_stroškov[],ROW()-ROW(Odmiki_stroškov_usposabljanja_in_potnih_stroškov[[#Headers],[Feb]]),1),INDEX(Načrtovani_stroški_usposabljanja_in_potni_stroški[],,1),0),MATCH(Odmiki_stroškov_usposabljanja_in_potnih_stroškov[[#Headers],[Feb]],Načrtovani_stroški_usposabljanja_in_potni_stroški[#Headers],0))-INDEX(Dejanski_stroški_usposabljanja_in_potni_stroški[],MATCH(INDEX(Odmiki_stroškov_usposabljanja_in_potnih_stroškov[],ROW()-ROW(Odmiki_stroškov_usposabljanja_in_potnih_stroškov[[#Headers],[Feb]]),1),INDEX(Načrtovani_stroški_usposabljanja_in_potni_stroški[],,1),0),MATCH(Odmiki_stroškov_usposabljanja_in_potnih_stroškov[[#Headers],[Feb]],Dejanski_stroški_usposabljanja_in_potni_stroški[#Headers],0))","v":{"v":-200,"d":"-200.00 €"}},{"$f":"INDEX(Načrtovani_stroški_usposabljanja_in_potni_stroški[],MATCH(INDEX(Odmiki_stroškov_usposabljanja_in_potnih_stroškov[],ROW()-ROW(Odmiki_stroškov_usposabljanja_in_potnih_stroškov[[#Headers],[Mar]]),1),INDEX(Načrtovani_stroški_usposabljanja_in_potni_stroški[],,1),0),MATCH(Odmiki_stroškov_usposabljanja_in_potnih_stroškov[[#Headers],[Mar]],Načrtovani_stroški_usposabljanja_in_potni_stroški[#Headers],0))-INDEX(Dejanski_stroški_usposabljanja_in_potni_stroški[],MATCH(INDEX(Odmiki_stroškov_usposabljanja_in_potnih_stroškov[],ROW()-ROW(Odmiki_stroškov_usposabljanja_in_potnih_stroškov[[#Headers],[Mar]]),1),INDEX(Načrtovani_stroški_usposabljanja_in_potni_stroški[],,1),0),MATCH(Odmiki_stroškov_usposabljanja_in_potnih_stroškov[[#Headers],[Mar]],Dejanski_stroški_usposabljanja_in_potni_stroški[#Headers],0))","v":{"v":600,"d":"600.00 €"}},{"$f":"INDEX(Načrtovani_stroški_usposabljanja_in_potni_stroški[],MATCH(INDEX(Odmiki_stroškov_usposabljanja_in_potnih_stroškov[],ROW()-ROW(Odmiki_stroškov_usposabljanja_in_potnih_stroškov[[#Headers],[Apr]]),1),INDEX(Načrtovani_stroški_usposabljanja_in_potni_stroški[],,1),0),MATCH(Odmiki_stroškov_usposabljanja_in_potnih_stroškov[[#Headers],[Apr]],Načrtovani_stroški_usposabljanja_in_potni_stroški[#Headers],0))-INDEX(Dejanski_stroški_usposabljanja_in_potni_stroški[],MATCH(INDEX(Odmiki_stroškov_usposabljanja_in_potnih_stroškov[],ROW()-ROW(Odmiki_stroškov_usposabljanja_in_potnih_stroškov[[#Headers],[Apr]]),1),INDEX(Načrtovani_stroški_usposabljanja_in_potni_stroški[],,1),0),MATCH(Odmiki_stroškov_usposabljanja_in_potnih_stroškov[[#Headers],[Apr]],Dejanski_stroški_usposabljanja_in_potni_stroški[#Headers],0))","v":{"v":800,"d":"800.00 €"}},{"$f":"INDEX(Načrtovani_stroški_usposabljanja_in_potni_stroški[],MATCH(INDEX(Odmiki_stroškov_usposabljanja_in_potnih_stroškov[],ROW()-ROW(Odmiki_stroškov_usposabljanja_in_potnih_stroškov[[#Headers],[Maj]]),1),INDEX(Načrtovani_stroški_usposabljanja_in_potni_stroški[],,1),0),MATCH(Odmiki_stroškov_usposabljanja_in_potnih_stroškov[[#Headers],[Maj]],Načrtovani_stroški_usposabljanja_in_potni_stroški[#Headers],0))-INDEX(Dejanski_stroški_usposabljanja_in_potni_stroški[],MATCH(INDEX(Odmiki_stroškov_usposabljanja_in_potnih_stroškov[],ROW()-ROW(Odmiki_stroškov_usposabljanja_in_potnih_stroškov[[#Headers],[Maj]]),1),INDEX(Načrtovani_stroški_usposabljanja_in_potni_stroški[],,1),0),MATCH(Odmiki_stroškov_usposabljanja_in_potnih_stroškov[[#Headers],[Maj]],Dejanski_stroški_usposabljanja_in_potni_stroški[#Headers],0))","v":{"v":1200,"d":"1,200.00 €"}},{"$f":"INDEX(Načrtovani_stroški_usposabljanja_in_potni_stroški[],MATCH(INDEX(Odmiki_stroškov_usposabljanja_in_potnih_stroškov[],ROW()-ROW(Odmiki_stroškov_usposabljanja_in_potnih_stroškov[[#Headers],[Jun]]),1),INDEX(Načrtovani_stroški_usposabljanja_in_potni_stroški[],,1),0),MATCH(Odmiki_stroškov_usposabljanja_in_potnih_stroškov[[#Headers],[Jun]],Načrtovani_stroški_usposabljanja_in_potni_stroški[#Headers],0))-INDEX(Dejanski_stroški_usposabljanja_in_potni_stroški[],MATCH(INDEX(Odmiki_stroškov_usposabljanja_in_potnih_stroškov[],ROW()-ROW(Odmiki_stroškov_usposabljanja_in_potnih_stroškov[[#Headers],[Jun]]),1),INDEX(Načrtovani_stroški_usposabljanja_in_potni_stroški[],,1),0),MATCH(Odmiki_stroškov_usposabljanja_in_potnih_stroškov[[#Headers],[Jun]],Dejanski_stroški_usposabljanja_in_potni_stroški[#Headers],0))","v":{"v":-1500,"d":"-1,500.00 €"}},{"$f":"INDEX(Načrtovani_stroški_usposabljanja_in_potni_stroški[],MATCH(INDEX(Odmiki_stroškov_usposabljanja_in_potnih_stroškov[],ROW()-ROW(Odmiki_stroškov_usposabljanja_in_potnih_stroškov[[#Headers],[Jul]]),1),INDEX(Načrtovani_stroški_usposabljanja_in_potni_stroški[],,1),0),MATCH(Odmiki_stroškov_usposabljanja_in_potnih_stroškov[[#Headers],[Jul]],Načrtovani_stroški_usposabljanja_in_potni_stroški[#Headers],0))-INDEX(Dejanski_stroški_usposabljanja_in_potni_stroški[],MATCH(INDEX(Odmiki_stroškov_usposabljanja_in_potnih_stroškov[],ROW()-ROW(Odmiki_stroškov_usposabljanja_in_potnih_stroškov[[#Headers],[Jul]]),1),INDEX(Načrtovani_stroški_usposabljanja_in_potni_stroški[],,1),0),MATCH(Odmiki_stroškov_usposabljanja_in_potnih_stroškov[[#Headers],[Jul]],Dejanski_stroški_usposabljanja_in_potni_stroški[#Headers],0))","v":{"v":2000,"d":"2,000.00 €"}},{"$f":"INDEX(Načrtovani_stroški_usposabljanja_in_potni_stroški[],MATCH(INDEX(Odmiki_stroškov_usposabljanja_in_potnih_stroškov[],ROW()-ROW(Odmiki_stroškov_usposabljanja_in_potnih_stroškov[[#Headers],[Avg]]),1),INDEX(Načrtovani_stroški_usposabljanja_in_potni_stroški[],,1),0),MATCH(Odmiki_stroškov_usposabljanja_in_potnih_stroškov[[#Headers],[Avg]],Načrtovani_stroški_usposabljanja_in_potni_stroški[#Headers],0))-INDEX(Dejanski_stroški_usposabljanja_in_potni_stroški[],MATCH(INDEX(Odmiki_stroškov_usposabljanja_in_potnih_stroškov[],ROW()-ROW(Odmiki_stroškov_usposabljanja_in_potnih_stroškov[[#Headers],[Avg]]),1),INDEX(Načrtovani_stroški_usposabljanja_in_potni_stroški[],,1),0),MATCH(Odmiki_stroškov_usposabljanja_in_potnih_stroškov[[#Headers],[Avg]],Dejanski_stroški_usposabljanja_in_potni_stroški[#Headers],0))","v":{"v":2000,"d":"2,000.00 €"}},{"$f":"INDEX(Načrtovani_stroški_usposabljanja_in_potni_stroški[],MATCH(INDEX(Odmiki_stroškov_usposabljanja_in_potnih_stroškov[],ROW()-ROW(Odmiki_stroškov_usposabljanja_in_potnih_stroškov[[#Headers],[Sep]]),1),INDEX(Načrtovani_stroški_usposabljanja_in_potni_stroški[],,1),0),MATCH(Odmiki_stroškov_usposabljanja_in_potnih_stroškov[[#Headers],[Sep]],Načrtovani_stroški_usposabljanja_in_potni_stroški[#Headers],0))-INDEX(Dejanski_stroški_usposabljanja_in_potni_stroški[],MATCH(INDEX(Odmiki_stroškov_usposabljanja_in_potnih_stroškov[],ROW()-ROW(Odmiki_stroškov_usposabljanja_in_potnih_stroškov[[#Headers],[Sep]]),1),INDEX(Načrtovani_stroški_usposabljanja_in_potni_stroški[],,1),0),MATCH(Odmiki_stroškov_usposabljanja_in_potnih_stroškov[[#Headers],[Sep]],Dejanski_stroški_usposabljanja_in_potni_stroški[#Headers],0))","v":{"v":2000,"d":"2,000.00 €"}},{"$f":"INDEX(Načrtovani_stroški_usposabljanja_in_potni_stroški[],MATCH(INDEX(Odmiki_stroškov_usposabljanja_in_potnih_stroškov[],ROW()-ROW(Odmiki_stroškov_usposabljanja_in_potnih_stroškov[[#Headers],[Okt]]),1),INDEX(Načrtovani_stroški_usposabljanja_in_potni_stroški[],,1),0),MATCH(Odmiki_stroškov_usposabljanja_in_potnih_stroškov[[#Headers],[Okt]],Načrtovani_stroški_usposabljanja_in_potni_stroški[#Headers],0))-INDEX(Dejanski_stroški_usposabljanja_in_potni_stroški[],MATCH(INDEX(Odmiki_stroškov_usposabljanja_in_potnih_stroškov[],ROW()-ROW(Odmiki_stroškov_usposabljanja_in_potnih_stroškov[[#Headers],[Okt]]),1),INDEX(Načrtovani_stroški_usposabljanja_in_potni_stroški[],,1),0),MATCH(Odmiki_stroškov_usposabljanja_in_potnih_stroškov[[#Headers],[Okt]],Dejanski_stroški_usposabljanja_in_potni_stroški[#Headers],0))","v":{"v":2000,"d":"2,000.00 €"}},{"$f":"INDEX(Načrtovani_stroški_usposabljanja_in_potni_stroški[],MATCH(INDEX(Odmiki_stroškov_usposabljanja_in_potnih_stroškov[],ROW()-ROW(Odmiki_stroškov_usposabljanja_in_potnih_stroškov[[#Headers],[Nov]]),1),INDEX(Načrtovani_stroški_usposabljanja_in_potni_stroški[],,1),0),MATCH(Odmiki_stroškov_usposabljanja_in_potnih_stroškov[[#Headers],[Nov]],Načrtovani_stroški_usposabljanja_in_potni_stroški[#Headers],0))-INDEX(Dejanski_stroški_usposabljanja_in_potni_stroški[],MATCH(INDEX(Odmiki_stroškov_usposabljanja_in_potnih_stroškov[],ROW()-ROW(Odmiki_stroškov_usposabljanja_in_potnih_stroškov[[#Headers],[Nov]]),1),INDEX(Načrtovani_stroški_usposabljanja_in_potni_stroški[],,1),0),MATCH(Odmiki_stroškov_usposabljanja_in_potnih_stroškov[[#Headers],[Nov]],Dejanski_stroški_usposabljanja_in_potni_stroški[#Headers],0))","v":{"v":2000,"d":"2,000.00 €"}},{"$f":"INDEX(Načrtovani_stroški_usposabljanja_in_potni_stroški[],MATCH(INDEX(Odmiki_stroškov_usposabljanja_in_potnih_stroškov[],ROW()-ROW(Odmiki_stroškov_usposabljanja_in_potnih_stroškov[[#Headers],[Dec]]),1),INDEX(Načrtovani_stroški_usposabljanja_in_potni_stroški[],,1),0),MATCH(Odmiki_stroškov_usposabljanja_in_potnih_stroškov[[#Headers],[Dec]],Načrtovani_stroški_usposabljanja_in_potni_stroški[#Headers],0))-INDEX(Dejanski_stroški_usposabljanja_in_potni_stroški[],MATCH(INDEX(Odmiki_stroškov_usposabljanja_in_potnih_stroškov[],ROW()-ROW(Odmiki_stroškov_usposabljanja_in_potnih_stroškov[[#Headers],[Dec]]),1),INDEX(Načrtovani_stroški_usposabljanja_in_potni_stroški[],,1),0),MATCH(Odmiki_stroškov_usposabljanja_in_potnih_stroškov[[#Headers],[Dec]],Dejanski_stroški_usposabljanja_in_potni_stroški[#Headers],0))","v":{"v":2000,"d":"2,000.00 €"}},{"$f":"SUM(Odmiki_stroškov_usposabljanja_in_potnih_stroškov[[#This Row],[Jan]:[Dec]])","v":{"v":13700,"d":"13,700.00 €"}}]
[null,"Delna vsota",{"$f":"SUBTOTAL(109,Odmiki_stroškov_usposabljanja_in_potnih_stroškov[Jan])","v":{"v":1200,"d":"1,200.00 €"}},{"$f":"SUBTOTAL(109,Odmiki_stroškov_usposabljanja_in_potnih_stroškov[Feb])","v":{"v":-600,"d":"-600.00 €"}},{"$f":"SUBTOTAL(109,Odmiki_stroškov_usposabljanja_in_potnih_stroškov[Mar])","v":{"v":1200,"d":"1,200.00 €"}},{"$f":"SUBTOTAL(109,Odmiki_stroškov_usposabljanja_in_potnih_stroškov[Apr])","v":{"v":1200,"d":"1,200.00 €"}},{"$f":"SUBTOTAL(109,Odmiki_stroškov_usposabljanja_in_potnih_stroškov[Maj])","v":{"v":2000,"d":"2,000.00 €"}},{"$f":"SUBTOTAL(109,Odmiki_stroškov_usposabljanja_in_potnih_stroškov[Jun])","v":{"v":-2300,"d":"-2,300.00 €"}},{"$f":"SUBTOTAL(109,Odmiki_stroškov_usposabljanja_in_potnih_stroškov[Jul])","v":{"v":4000,"d":"4,000.00 €"}},{"$f":"SUBTOTAL(109,Odmiki_stroškov_usposabljanja_in_potnih_stroškov[Avg])","v":{"v":4000,"d":"4,000.00 €"}},{"$f":"SUBTOTAL(109,Odmiki_stroškov_usposabljanja_in_potnih_stroškov[Sep])","v":{"v":4000,"d":"4,000.00 €"}},{"$f":"SUBTOTAL(109,Odmiki_stroškov_usposabljanja_in_potnih_stroškov[Okt])","v":{"v":4000,"d":"4,000.00 €"}},{"$f":"SUBTOTAL(109,Odmiki_stroškov_usposabljanja_in_potnih_stroškov[Nov])","v":{"v":4000,"d":"4,000.00 €"}},{"$f":"SUBTOTAL(109,Odmiki_stroškov_usposabljanja_in_potnih_stroškov[Dec])","v":{"v":4000,"d":"4,000.00 €"}},{"$f":"SUBTOTAL(109,Odmiki_stroškov_usposabljanja_in_potnih_stroškov[LETO])","v":{"v":26700,"d":"26,700.00 €"}}]
[]
["Odmiki stroškov se samodejno izračunajo v tabeli »Skupni znesek odmika«. Izračun se začne v celici na desni.","SKUPNI ZNESKI","Jan","Feb","Mar","Apr","Maj","Jun","Jul","Avg","Sep","Okt","Nov","Dec","Leto"]
[null,"Mesečni dejanski stroški",{"$f":"Odmiki_stroškov_usposabljanja_in_potnih_stroškov[[#Totals],[Jan]]+Odmiki_stroškov_trženja[[#Totals],[Jan]]+Odmiki_stroškov_za_pisarno[[#Totals],[Jan]]+Odmiki_stroškov_za_zaposlene[[#Totals],[Jan]]","v":{"v":1738,"d":"1,738.00 €"}},{"$f":"Odmiki_stroškov_usposabljanja_in_potnih_stroškov[[#Totals],[Feb]]+Odmiki_stroškov_trženja[[#Totals],[Feb]]+Odmiki_stroškov_za_pisarno[[#Totals],[Feb]]+Odmiki_stroškov_za_zaposlene[[#Totals],[Feb]]","v":{"v":-984,"d":"-984.00 €"}},{"$f":"Odmiki_stroškov_usposabljanja_in_potnih_stroškov[[#Totals],[Mar]]+Odmiki_stroškov_trženja[[#Totals],[Mar]]+Odmiki_stroškov_za_pisarno[[#Totals],[Mar]]+Odmiki_stroškov_za_zaposlene[[#Totals],[Mar]]","v":{"v":1255,"d":"1,255.00 €"}},{"$f":"Odmiki_stroškov_usposabljanja_in_potnih_stroškov[[#Totals],[Apr]]+Odmiki_stroškov_trženja[[#Totals],[Apr]]+Odmiki_stroškov_za_pisarno[[#Totals],[Apr]]+Odmiki_stroškov_za_zaposlene[[#Totals],[Apr]]","v":{"v":301,"d":"301.00 €"}},{"$f":"Odmiki_stroškov_usposabljanja_in_potnih_stroškov[[#Totals],[Maj]]+Odmiki_stroškov_trženja[[#Totals],[Maj]]+Odmiki_stroškov_za_pisarno[[#Totals],[Maj]]+Odmiki_stroškov_za_zaposlene[[#Totals],[Maj]]","v":{"v":1440,"d":"1,440.00 €"}},{"$f":"Odmiki_stroškov_usposabljanja_in_potnih_stroškov[[#Totals],[Jun]]+Odmiki_stroškov_trženja[[#Totals],[Jun]]+Odmiki_stroškov_za_pisarno[[#Totals],[Jun]]+Odmiki_stroškov_za_zaposlene[[#Totals],[Jun]]","v":{"v":-3744,"d":"-3,744.00 €"}},{"$f":"Odmiki_stroškov_usposabljanja_in_potnih_stroškov[[#Totals],[Jul]]+Odmiki_stroškov_trženja[[#Totals],[Jul]]+Odmiki_stroškov_za_pisarno[[#Totals],[Jul]]+Odmiki_stroškov_za_zaposlene[[#Totals],[Jul]]","v":{"v":134695,"d":"134,695.00 €"}},{"$f":"Odmiki_stroškov_usposabljanja_in_potnih_stroškov[[#Totals],[Avg]]+Odmiki_stroškov_trženja[[#Totals],[Avg]]+Odmiki_stroškov_za_pisarno[[#Totals],[Avg]]+Odmiki_stroškov_za_zaposlene[[#Totals],[Avg]]","v":{"v":138918,"d":"138,918.00 €"}},{"$f":"Odmiki_stroškov_usposabljanja_in_potnih_stroškov[[#Totals],[Sep]]+Odmiki_stroškov_trženja[[#Totals],[Sep]]+Odmiki_stroškov_za_pisarno[[#Totals],[Sep]]+Odmiki_stroškov_za_zaposlene[[#Totals],[Sep]]","v":{"v":135918,"d":"135,918.00 €"}},{"$f":"Odmiki_stroškov_usposabljanja_in_potnih_stroškov[[#Totals],[Okt]]+Odmiki_stroškov_trženja[[#Totals],[Okt]]+Odmiki_stroškov_za_pisarno[[#Totals],[Okt]]+Odmiki_stroškov_za_zaposlene[[#Totals],[Okt]]","v":{"v":140918,"d":"140,918.00 €"}},{"$f":"Odmiki_stroškov_usposabljanja_in_potnih_stroškov[[#Totals],[Nov]]+Odmiki_stroškov_trženja[[#Totals],[Nov]]+Odmiki_stroškov_za_pisarno[[#Totals],[Nov]]+Odmiki_stroškov_za_zaposlene[[#Totals],[Nov]]","v":{"v":136218,"d":"136,218.00 €"}},{"$f":"Odmiki_stroškov_usposabljanja_in_potnih_stroškov[[#Totals],[Dec]]+Odmiki_stroškov_trženja[[#Totals],[Dec]]+Odmiki_stroškov_za_pisarno[[#Totals],[Dec]]+Odmiki_stroškov_za_zaposlene[[#Totals],[Dec]]","v":{"v":140018,"d":"140,018.00 €"}},{"$f":"Odmiki_stroškov_usposabljanja_in_potnih_stroškov[[#Totals],[LETO]]+Odmiki_stroškov_trženja[[#Totals],[LETO]]+Odmiki_stroškov_za_pisarno[[#Totals],[LETO]]+Odmiki_stroškov_za_zaposlene[[#Totals],[LETO]]","v":{"v":826691,"d":"826,691.00 €"}}]
[null,"SKUPNI dejanski stroški",{"$f":"SUM($C$36:C36)","v":{"v":1738,"d":"1,738.00 €"}},{"$f":"SUM($C$36:D36)","v":{"v":754,"d":"754.00 €"}},{"$f":"SUM($C$36:E36)","v":{"v":2009,"d":"2,009.00 €"}},{"$f":"SUM($C$36:F36)","v":{"v":2310,"d":"2,310.00 €"}},{"$f":"SUM($C$36:G36)","v":{"v":3750,"d":"3,750.00 €"}},{"$f":"SUM($C$36:H36)","v":{"v":6,"d":"6.00 €"}},{"$f":"SUM($C$36:I36)","v":{"v":134701,"d":"134,701.00 €"}},{"$f":"SUM($C$36:J36)","v":{"v":273619,"d":"273,619.00 €"}},{"$f":"SUM($C$36:K36)","v":{"v":409537,"d":"409,537.00 €"}},{"$f":"SUM($C$36:L36)","v":{"v":550455,"d":"550,455.00 €"}},{"$f":"SUM($C$36:M36)","v":{"v":686673,"d":"686,673.00 €"}},{"$f":"SUM($C$36:N36)","v":{"v":826691,"d":"826,691.00 €"}}]

{"sheet":"ANALIZA STROŠKOV","index":4,"n_rows":14,"n_cols":16,"rows_kept":14,"merged":[[1,1,2,3],[1,5,1,6],[2,4,2,6],[11,1,11,2],[11,3,11,5],[13,1,36,5]]}
["Letni načrtovani in dejanski stroški, odmiki stroškov in odstotek odmika se samodejno izračunajo za vsako kategorijo stroškov na tem delovnem listu. Koristna navodila za uporabo tega delovnega lista najdete v celicah v tem stolpcu. Puščica dol za začetek dela. ",{"$nulls":5}," ",{"$nulls":8}," "]
["Ime podjetja se samodejno posodobi v celici na desni strani. Vnesite logotip v celico F2.",{"$f":"'NAČRTOVANI STROŠKI'!B2:D3","v":"Ime podjetja"},{"$nulls":3},"Označba mesta za logotip je v tej celici."]
["Naslov tega delovnega lista je v celici E3. Naslednji korak je v celici A5.",{"$nulls":3},{"$f":"naslov_delovnega_lista","v":"Podrobna ocena stroškov"}]
[]
["Načrtovani stroški, dejanski stroški, odmiki stroškov in odstotek odmika se samodejno izračunajo v tabeli »Analiza«. Izračun se začne v celici na desni. Naslednji korak je v celici A12.","Kategorija stroškov","Načrtovani stroški","Dejanski stroški","Odmiki stroškov","Odstotek odmika"]
[null,"Stroški za zaposlene",{"$f":"Načrtovani_stroški_za_zaposlene[[#Totals],[LETO]]","v":{"v":1355090,"d":"1,355,090.00 €"}},{"$f":"Dejanski_stroški_za_zaposlene[[#Totals],[LETO]]","v":{"v":659130,"d":"659,130.00 €"}},{"$f":"C6-D6","v":{"v":695960,"d":"695,960.00 €"}},{"$f":"E6/C6","v":{"v":0.5135895032802249,"d":"51%"}}]
[null,{"$f":"'NAČRTOVANI STROŠKI'!B10","v":"Stroški za pisarno"},{"$f":"Načrtovani_stroški_za_pisarno[[#Totals],[LETO]]","v":{"v":138740,"d":"138,740.00 €"}},{"$f":"Dejanski_stroški_za_pisarno[[#Totals],[LETO]]","v":{"v":69350,"d":"69,350.00 €"}},{"$f":"C7-D7","v":{"v":69390,"d":"69,390.00 €"}},{"$f":"E7/C7","v":{"v":0.5001441545336601,"d":"50%"}}]
[null,{"$f":"'NAČRTOVANI STROŠKI'!B21","v":"Trženje"},{"$f":"Načrtovani_stroški_trženja[[#Totals],[LETO]]","v":{"v":67800,"d":"67,800.00 €"}},{"$f":"Dejanski_stroški_trženja[[#Totals],[LETO]]","v":{"v":33159,"d":"33,159.00 €"}},{"$f":"C8-D8","v":{"v":34641,"d":"34,641.00 €"}},{"$f":"E8/C8","v":{"v":0.510929203539823,"d":"51%"}}]
[null,{"$f":"'NAČRTOVANI STROŠKI'!B30","v":"Usposabljanje/potovanja"},{"$f":"Načrtovani_stroški_usposabljanja_in_potni_stroški[[#Totals],[LETO]]","v":{"v":48000,"d":"48,000.00 €"}},{"$f":"Dejanski_stroški_usposabljanja_in_potni_stroški[[#Totals],[LETO]]","v":{"v":21300,"d":"21,300.00 €"}},{"$f":"C9-D9","v":{"v":26700,"d":"26,700.00 €"}},{"$f":"E9/C9","v":{"v":0.55625,"d":"56%"}}]
[null,{"$f":"'NAČRTOVANI STROŠKI'!B35","v":"SKUPNI ZNESKI"},{"$f":"'NAČRTOVANI STROŠKI'!O36","v":{"v":1609630,"d":"1,609,630.00 €"}},{"$f":"'DEJANSKI STROŠKI'!O36","v":{"v":782939,"d":"782,939.00 €"}},{"$f":"C10-D10","v":{"v":826691,"d":"826,691.00 €"}},{"$f":"E10/C10","v":{"v":0.5135907009685455,"d":"51%"}}]
[]
["Torni grafikon za načrtovani stroški je v celici na desni, tortni grafikon za dejanski stroški pa v celici D12. Naslednji korak je v celici A14.","Tortni grafikon s prikazom načrtovanih stroškov po različnih kategorijah je v tej celici. ",null,"Tortni grafikon s prikazom dejanskih stroškov po različnih kategorijah je v tej celici. "]
[]
["Grafikon, ki prikazuje načrtovano in dejansko stroške, ter odmik mesečni stroški je v celici na desni."]